Workbook

Sheet Main
B10: 2020-06-29
B12: Sheet No. | C12: Template Name | D12: Summary
B13: 1 | C13: Future Intra | D13: For Intraday trading in F&O segment
B14: 2 | C14: Cash Intra | D14: For Intraday trading in cash market segment
B15: 3 | C15: Mid-cap Intra | D15: For Intraday trading in Mid-cap stocks
B16: 4 | C16: Bulk Deals | D16: Reveals Bulk Deals carried on NSE & BSE
B17: 5 | C17: Call Tracker
K27: `

Sheet Future Intra
M5: Back to Main Page
A6: FOR INTRA DAY TRADING | L6: =Main!B10 -> 2020-06-29
A9: Sr.no | B9: Sector | C9: Scrip | D9: CLOSE RATE | E9: Pivot Point | F9: Supports | I9: Resistances
B10: Sector | D10: Point | E10: Point | F10: S1 | G10: S2 | H10: S3 | I10: R1 | J10: R2 | K10: R3 | L10: HIGH | M10: LOW | N10: OI | O10: % Change in OI
A11: 1 | B11: Index | C11: BANKNIFTY | D11: 21462.15 | E11: 21448.73 | F11: 21180.47 | G11: 20898.78 | H11: 20630.52 | I11: 21730.42 | J11: 21998.68 | K11: 22280.37 | L11: 21717 | M11: 21167.05 | N11: 1239775 | O11: -5.32%
A12: 2 | B12: Index | C12: NIFTY | D12: 10318.00 | E12: 10300.65 | F12: 10252.60 | G12: 10187.20 | H12: 10139.15 | I12: 10366.05 | J12: 10414.10 | K12: 10479.50 | L12: 10348.7 | M12: 10235.25 | N12: 12467550 | O12: 9.31%
A13: 3 | B13: Cement | C13: ACC | D13: 1288.65 | E13: 1277.75 | F13: 1262.75 | G13: 1236.85 | H13: 1221.85 | I13: 1303.65 | J13: 1318.65 | K13: 1344.55 | L13: 1292.75 | M13: 1251.85 | N13: 2304000 | O13: 3.85%
A14: 4 | B14: Others | C14: ADANIENT | D14: 162.55 | E14: 163.65 | F14: 160.30 | G14: 158.05 | H14: 154.70 | I14: 165.90 | J14: 169.25 | K14: 171.50 | L14: 167 | M14: 161.4 | N14: 17936000 | O14: 0.47%
A15: 5 | B15: Others | C15: ADANIPORTS | D15: 343.60 | E15: 344.42 | F15: 339.33 | G15: 335.07 | H15: 329.98 | I15: 348.68 | J15: 353.77 | K15: 358.03 | L15: 349.5 | M15: 340.15 | N15: 30512500 | O15: -0.89%
A16: 6 | B16: Automobile | C16: AMARAJABAT | D16: 648.95 | E16: 648.23 | F16: 643.42 | G16: 637.88 | H16: 633.07 | I16: 653.77 | J16: 658.58 | K16: 664.12 | L16: 653.05 | M16: 642.7 | N16: 1817000 | O16: 1.17%
A17: 7 | B17: Cement | C17: AMBUJACEM | D17: 188.10 | E17: 187.70 | F17: 186.50 | G17: 184.90 | H17: 183.70 | I17: 189.30 | J17: 190.50 | K17: 192.10 | L17: 188.9 | M17: 186.1 | N17: 18477000 | O17: 1.08%
A18: 8 | B18: Others | C18: APOLLOHOSP | D18: 1382.30 | E18: 1410.65 | F18: 1343.30 | G18: 1304.30 | H18: 1236.95 | I18: 1449.65 | J18: 1517.00 | K18: 1556.00 | L18: 1478 | M18: 1371.65 | N18: 1380000 | O18: 21.32%
A19: 9 | B19: Automobile | C19: APOLLOTYRE | D19: 111.20 | E19: 112.25 | F19: 109.60 | G19: 108.00 | H19: 105.35 | I19: 113.85 | J19: 116.50 | K19: 118.10 | L19: 114.9 | M19: 110.65 | N19: 10235000 | O19: 0.39%
A20: 10 | B20: Automobile | C20: ASHOKLEY | D20: 52.15 | E20: 52.92 | F20: 50.18 | G20: 48.22 | H20: 45.48 | I20: 54.88 | J20: 57.62 | K20: 59.58 | L20: 55.65 | M20: 50.95 | N20: 32076000 | O20: 4.61%
A21: 11 | B21: FMCG | C21: ASIANPAINT | D21: 1684.40 | E21: 1688.13 | F21: 1662.32 | G21: 1640.23 | H21: 1614.42 | I21: 1710.22 | J21: 1736.03 | K21: 1758.12 | L21: 1713.95 | M21: 1666.05 | N21: 5187600 | O21: -1.81%
A22: 12 | B22: Pharma | C22: AUROPHARMA | D22: 781.10 | E22: 785.13 | F22: 771.62 | G22: 762.13 | H22: 748.62 | I22: 794.62 | J22: 808.13 | K22: 817.62 | L22: 798.65 | M22: 775.65 | N22: 11638900 | O22: 4.23%
A23: 13 | B23: Banking | C23: AXISBANK | D23: 424.45 | E23: 423.12 | F23: 417.83 | G23: 411.22 | H23: 405.93 | I23: 429.73 | J23: 435.02 | K23: 441.63 | L23: 428.4 | M23: 416.5 | N23: 63090000 | O23: -1.94%
A24: 14 | B24: Automobile | C24: BAJAJ-AUTO | D24: 2859.80 | E24: 2858.22 | F24: 2816.73 | G24: 2773.67 | H24: 2732.18 | I24: 2901.28 | J24: 2942.77 | K24: 2985.83 | L24: 2899.7 | M24: 2815.15 | N24: 1787500 | O24: -0.04%
A25: 15 | B25: Finance | C25: BAJAJFINSV | D25: 5952.20 | E25: 5983.52 | F25: 5827.03 | G25: 5701.87 | H25: 5545.38 | I25: 6108.68 | J25: 6265.17 | K25: 6390.33 | L25: 6140 | M25: 5858.35 | N25: 749125 | O25: -1.22%
A26: 16 | B26: Finance | C26: BAJFINANCE | D26: 2892.40 | E26: 2929.50 | F26: 2814.00 | G26: 2735.60 | H26: 2620.10 | I26: 3007.90 | J26: 3123.40 | K26: 3201.80 | L26: 3045 | M26: 2851.1 | N26: 6835750 | O26: 4.81%
A27: 17 | B27: Automobile | C27: BALKRISIND | D27: 1242.45 | E27: 1248.15 | F27: 1230.30 | G27: 1218.15 | H27: 1200.30 | I27: 1260.30 | J27: 1278.15 | K27: 1290.30 | L27: 1266 | M27: 1236 | N27: 837600 | O27: -0.38%
A28: 18 | B28: Banking | C28: BANDHANBNK | D28: 337.90 | E28: 337.67 | F28: 330.93 | G28: 323.97 | H28: 317.23 | I28: 344.63 | J28: 351.37 | K28: 358.33 | L28: 344.4 | M28: 330.7 | N28: 9999000 | O28: 2.66%
A29: 19 | B29: Banking | C29: BANKBARODA | D29: 51.90 | E29: 52.17 | F29: 51.13 | G29: 50.37 | H29: 49.33 | I29: 52.93 | J29: 53.97 | K29: 54.73 | L29: 53.2 | M29: 51.4 | N29: 41508400 | O29: -3.34%
A30: 20 | B30: FMCG | C30: BATAINDIA | D30: 1321.55 | E30: 1324.35 | F30: 1310.25 | G30: 1298.95 | H30: 1284.85 | I30: 1335.65 | J30: 1349.75 | K30: 1361.05 | L30: 1338.45 | M30: 1313.05 | N30: 1301300 | O30: -1.54%
A31: 21 | B31: Capital_Goods | C31: BEL | D31: 85.15 | E31: 85.03 | F31: 83.57 | G31: 81.98 | H31: 80.52 | I31: 86.62 | J31: 88.08 | K31: 89.67 | L31: 86.5 | M31: 83.45 | N31: 17008800 | O31: -1.58%
A32: 22 | B32: FMCG | C32: BERGEPAINT | D32: 511.65 | E32: 516.05 | F32: 503.10 | G32: 494.55 | H32: 481.60 | I32: 524.60 | J32: 537.55 | K32: 546.10 | L32: 529 | M32: 507.5 | N32: 4305400 | O32: 3.52%
A33: 23 | B33: Automobile | C33: BHARATFORG | D33: 352.10 | E33: 355.47 | F33: 347.13 | G33: 342.17 | H33: 333.83 | I33: 360.43 | J33: 368.77 | K33: 373.73 | L33: 363.8 | M33: 350.5 | N33: 5694000 | O33: 1.82%
A34: 24 | B34: Telecom | C34: BHARTIARTL | D34: 558.95 | E34: 560.33 | F34: 555.07 | G34: 551.18 | H34: 545.92 | I34: 564.22 | J34: 569.48 | K34: 573.37 | L34: 565.6 | M34: 556.45 | N34: 78599013 | O34: 0.04%
A35: 25 | B35: Capital_Goods | C35: BHEL | D35: 36.90 | E35: 37.30 | F35: 35.90 | G35: 34.90 | H35: 33.50 | I35: 38.30 | J35: 39.70 | K35: 40.70 | L35: 38.7 | M35: 36.3 | N35: 48447000 | O35: -1.79%
A36: 26 | B36: Pharma | C36: BIOCON | D36: 401.90 | E36: 403.90 | F36: 397.20 | G36: 392.50 | H36: 385.80 | I36: 408.60 | J36: 415.30 | K36: 420.00 | L36: 410.6 | M36: 399.2 | N36: 15520400 | O36: 2.63%
A37: 27 | B37: Automobile | C37: BOSCHLTD | D37: 11228.90 | E37: 11318.55 | F37: 11038.60 | G37: 10848.30 | H37: 10568.35 | I37: 11508.85 | J37: 11788.80 | K37: 11979.10 | L37: 11598.5 | M37: 11128.25 | N37: 136350 | O37: 4.12%
A38: 28 | B38: Oil_Gas | C38: BPCL | D38: 393.50 | E38: 387.93 | F38: 378.72 | G38: 363.93 | H38: 354.72 | I38: 402.72 | J38: 411.93 | K38: 426.72 | L38: 397.15 | M38: 373.15 | N38: 19864800 | O38: 7.26%
A39: 29 | B39: FMCG | C39: BRITANNIA | D39: 3458.15 | E39: 3470.38 | F39: 3434.77 | G39: 3411.38 | H39: 3375.77 | I39: 3493.77 | J39: 3529.38 | K39: 3552.77 | L39: 3506 | M39: 3447 | N39: 1614200 | O39: 0.30%
A40: 30 | B40: Pharma | C40: CADILAHC | D40: 363.50 | E40: 366.35 | F40: 359.70 | G40: 355.90 | H40: 349.25 | I40: 370.15 | J40: 376.80 | K40: 380.60 | L40: 373 | M40: 362.55 | N40: 6080800 | O40: 5.02%
A41: 31 | B41: Banking | C41: CANBK | D41: 104.20 | E41: 104.87 | F41: 102.03 | G41: 99.87 | H41: 97.03 | I41: 107.03 | J41: 109.87 | K41: 112.03 | L41: 107.7 | M41: 102.7 | N41: 9700000 | O41: -10.23%
A42: 32 | B42: Textile | C42: CENTURYTEX | D42: 307.60 | E42: 307.85 | F42: 302.20 | G42: 296.80 | H42: 291.15 | I42: 313.25 | J42: 318.90 | K42: 324.30 | L42: 313.5 | M42: 302.45 | N42: 2388400 | O42: -0.81%
A43: 33 | B43: Finance | C43: CHOLAFIN | D43: 197.25 | E43: 199.30 | F43: 190.70 | G43: 184.15 | H43: 175.55 | I43: 205.85 | J43: 214.45 | K43: 221.00 | L43: 207.9 | M43: 192.75 | N43: 7550000 | O43: 8.83%
A44: 34 | B44: Pharma | C44: CIPLA | D44: 633.75 | E44: 635.88 | F44: 627.97 | G44: 622.18 | H44: 614.27 | I44: 641.67 | J44: 649.58 | K44: 655.37 | L44: 643.8 | M44: 630.1 | N44: 12295400 | O44: 0.52%
A45: 35 | B45: Others | C45: COALINDIA | D45: 141.90 | E45: 141.37 | F45: 139.78 | G45: 137.67 | H45: 136.08 | I45: 143.48 | J45: 145.07 | K45: 147.18 | L45: 142.95 | M45: 139.25 | N45: 33610800 | O45: -0.33%
A46: 36 | B46: FMCG | C46: COLPAL | D46: 1394.20 | E46: 1399.33 | F46: 1381.12 | G46: 1368.03 | H46: 1349.82 | I46: 1412.42 | J46: 1430.63 | K46: 1443.72 | L46: 1417.55 | M46: 1386.25 | N46: 2179800 | O46: 5.24%
A47: 37 | B47: Others | C47: CONCOR | D47: 432.95 | E47: 431.58 | F47: 425.47 | G47: 417.98 | H47: 411.87 | I47: 439.07 | J47: 445.18 | K47: 452.67 | L47: 437.7 | M47: 424.1 | N47: 4831233 | O47: 4.25%
A48: 38 | B48: Capital_Goods | C48: CUMMINSIND | D48: 411.10 | E48: 411.50 | F48: 405.00 | G48: 398.90 | H48: 392.40 | I48: 417.60 | J48: 424.10 | K48: 430.20 | L48: 418 | M48: 405.4 | N48: 1434000 | O48: 14.24%
A49: 39 | B49: FMCG | C49: DABUR | D49: 459.90 | E49: 459.82 | F49: 455.08 | G49: 450.27 | H49: 445.53 | I49: 464.63 | J49: 469.37 | K49: 474.18 | L49: 464.55 | M49: 455 | N49: 12272500 | O49: 0.26%
A50: 40 | B50: Pharma | C50: DIVISLAB | D50: 2350.75 | E50: 2353.97 | F50: 2329.93 | G50: 2309.12 | H50: 2285.08 | I50: 2374.78 | J50: 2398.82 | K50: 2419.63 | L50: 2378 | M50: 2333.15 | N50: 3206800 | O50: 2.04%
A51: 41 | B51: Realty | C51: DLF | D51: 154.65 | E51: 155.40 | F51: 151.50 | G51: 148.35 | H51: 144.45 | I51: 158.55 | J51: 162.45 | K51: 165.60 | L51: 159.3 | M51: 152.25 | N51: 26805900 | O51: 1.86%
A52: 42 | B52: Pharma | C52: DRREDDY | D52: 3963.05 | E52: 3982.03 | F52: 3919.12 | G52: 3875.18 | H52: 3812.27 | I52: 4025.97 | J52: 4088.88 | K52: 4132.82 | L52: 4044.95 | M52: 3938.1 | N52: 3225000 | O52: 0.11%
A53: 43 | B53: Automobile | C53: EICHERMOT | D53: 18482.60 | E53: 18370.72 | F53: 18171.88 | G53: 17861.17 | H53: 17662.33 | I53: 18681.43 | J53: 18880.27 | K53: 19190.98 | L53: 18569.55 | M53: 18060 | N53: 282800 | O53: 2.68%
A54: 44 | B54: Finance | C54: EQUITAS | D54: 55.45 | E54: 55.52 | F54: 54.13 | G54: 52.82 | H54: 51.43 | I54: 56.83 | J54: 58.22 | K54: 59.53 | L54: 56.9 | M54: 54.2 | N54: 13330400 | O54: 6.95%
A55: 45 | B55: Automobile | C55: ESCORTS | D55: 1016.75 | E55: 1021.68 | F55: 998.27 | G55: 979.78 | H55: 956.37 | I55: 1040.17 | J55: 1063.58 | K55: 1082.07 | L55: 1045.1 | M55: 1003.2 | N55: 2515700 | O55: -3.13%
A56: 46 | B56: Automobile | C56: EXIDEIND | D56: 149.10 | E56: 150.07 | F56: 147.63 | G56: 146.17 | H56: 143.73 | I56: 151.53 | J56: 153.97 | K56: 155.43 | L56: 152.5 | M56: 148.6 | N56: 11638800 | O56: 7.02%
A57: 47 | B57: Banking | C57: FEDERALBNK | D57: 53.30 | E57: 53.68 | F57: 52.27 | G57: 51.23 | H57: 49.82 | I57: 54.72 | J57: 56.13 | K57: 57.17 | L57: 55.1 | M57: 52.65 | N57: 58480000 | O57: -2.40%
A58: 48 | B58: Oil_Gas | C58: GAIL | D58: 104.95 | E58: 104.55 | F58: 103.40 | G58: 101.85 | H58: 100.70 | I58: 106.10 | J58: 107.25 | K58: 108.80 | L58: 105.7 | M58: 103 | N58: 33592700 | O58: -2.86%
A59: 49 | B59: Pharma | C59: GLENMARK | D59: 465.95 | E59: 468.57 | F59: 459.23 | G59: 452.52 | H59: 443.18 | I59: 475.28 | J59: 484.62 | K59: 491.33 | L59: 477.9 | M59: 461.85 | N59: 4839200 | O59: 28.45%
A60: 50 | B60: Infrastructure | C60: GMRINFRA | D60: 20.50 | E60: 20.58 | F60: 20.32 | G60: 20.13 | H60: 19.87 | I60: 20.77 | J60: 21.03 | K60: 21.22 | L60: 20.85 | M60: 20.4 | N60: 79650000 | O60: 2.25%
A61: 51 | B61: FMCG | C61: GODREJCP | D61: 685.95 | E61: 686.98 | F61: 678.97 | G61: 671.98 | H61: 663.97 | I61: 693.97 | J61: 701.98 | K61: 708.97 | L61: 695 | M61: 680 | N61: 6280000 | O61: 1.40%
A62: 52 | B62: Others | C62: GODREJPROP | D62: 868.85 | E62: 872.20 | F62: 853.65 | G62: 838.45 | H62: 819.90 | I62: 887.40 | J62: 905.95 | K62: 921.15 | L62: 890.75 | M62: 857 | N62: 386100 | O62: -7.04%
A63: 53 | B63: Cement | C63: GRASIM | D63: 617.10 | E63: 617.80 | F63: 608.80 | G63: 600.50 | H63: 591.50 | I63: 626.10 | J63: 635.10 | K63: 643.40 | L63: 626.8 | M63: 609.5 | N63: 18847050 | O63: 1.36%
A64: 54 | B64: Others | C64: HAVELLS | D64: 580.95 | E64: 583.02 | F64: 573.08 | G64: 565.22 | H64: 555.28 | I64: 590.88 | J64: 600.82 | K64: 608.68 | L64: 592.95 | M64: 575.15 | N64: 5116000 | O64: -0.02%
A65: 55 | B65: Technology | C65: HCLTECH | D65: 563.05 | E65: 560.68 | F65: 546.77 | G65: 530.48 | H65: 516.57 | I65: 576.97 | J65: 590.88 | K65: 607.17 | L65: 574.6 | M65: 544.4 | N65: 19936000 | O65: 9.93%
A66: 56 | B66: Finance | C66: HDFC | D66: 1750.60 | E66: 1757.50 | F66: 1725.00 | G66: 1699.40 | H66: 1666.90 | I66: 1783.10 | J66: 1815.60 | K66: 1841.20 | L66: 1790 | M66: 1731.9 | N66: 30247500 | O66: 1.86%
A67: 57 | B67: Banking | C67: HDFCBANK | D67: 1044.30 | E67: 1037.58 | F67: 1025.77 | G67: 1007.23 | H67: 995.42 | I67: 1056.12 | J67: 1067.93 | K67: 1086.47 | L67: 1049.4 | M67: 1019.05 | N67: 38500000 | O67: 11.17%
A68: 58 | B68: Finance | C68: HDFCLIFE | D68: 542.40 | E68: 542.55 | F68: 535.60 | G68: 528.80 | H68: 521.85 | I68: 549.35 | J68: 556.30 | K68: 563.10 | L68: 549.5 | M68: 535.75 | N68: 14378100 | O68: -0.83%
A69: 59 | B69: Automobile | C69: HEROMOTOCO | D69: 2512.55 | E69: 2524.48 | F69: 2489.07 | G69: 2465.58 | H69: 2430.17 | I69: 2547.97 | J69: 2583.38 | K69: 2606.87 | L69: 2559.9 | M69: 2501 | N69: 2658900 | O69: -4.32%
A70: 60 | B70: Metals | C70: HINDALCO | D70: 151.15 | E70: 150.42 | F70: 148.93 | G70: 146.72 | H70: 145.23 | I70: 152.63 | J70: 154.12 | K70: 156.33 | L70: 151.9 | M70: 148.2 | N70: 31725400 | O70: 0.72%
A71: 61 | B71: Oil_Gas | C71: HINDPETRO | D71: 222.15 | E71: 221.42 | F71: 216.28 | G71: 210.42 | H71: 205.28 | I71: 227.28 | J71: 232.42 | K71: 238.28 | L71: 226.55 | M71: 215.55 | N71: 17047800 | O71: 5.73%
A72: 62 | B72: FMCG | C72: HINDUNILVR | D72: 2148.05 | E72: 2152.62 | F72: 2130.73 | G72: 2113.42 | H72: 2091.53 | I72: 2169.93 | J72: 2191.82 | K72: 2209.13 | L72: 2174.5 | M72: 2135.3 | N72: 17097300 | O72: -0.25%
A73: 63 | B73: Finance | C73: IBULHSGFIN | D73: 225.95 | E73: 226.13 | F73: 214.92 | G73: 203.88 | H73: 192.67 | I73: 237.17 | J73: 248.38 | K73: 259.42 | L73: 237.35 | M73: 215.1 | N73: 11315000 | O73: -7.24%
A74: 64 | B74: Banking | C74: ICICIBANK | D74: 348.80 | E74: 350.80 | F74: 342.85 | G74: 336.90 | H74: 328.95 | I74: 356.75 | J74: 364.70 | K74: 370.65 | L74: 358.75 | M74: 344.85 | N74: 113668500 | O74: 1.75%
A75: 65 | B75: Finance | C75: ICICIPRULI | D75: 422.45 | E75: 426.05 | F75: 414.65 | G75: 406.85 | H75: 395.45 | I75: 433.85 | J75: 445.25 | K75: 453.05 | L75: 437.45 | M75: 418.25 | N75: 7045500 | O75: 0.02%
A76: 66 | B76: Telecom | C76: IDEA | D76: 10.50 | E76: 10.43 | F76: 10.02 | G76: 9.53 | H76: 9.12 | I76: 10.92 | J76: 11.33 | K76: 11.82 | L76: 10.85 | M76: 9.95 | N76: 365680000 | O76: 111.33%
A77: 67 | B77: Banking | C77: IDFCFIRSTB | D77: 26.90 | E77: 27.15 | F77: 26.50 | G77: 26.10 | H77: 25.45 | I77: 27.55 | J77: 28.20 | K77: 28.60 | L77: 27.8 | M77: 26.75 | N77: 103835000 | O77: 1.30%
A78: 68 | B78: Oil_Gas | C78: IGL | D78: 442.95 | E78: 444.47 | F78: 437.78 | G78: 432.62 | H78: 425.93 | I78: 449.63 | J78: 456.32 | K78: 461.48 | L78: 451.15 | M78: 439.3 | N78: 7933750 | O78: 3.61%
A79: 69 | B79: Others | C79: INDIGO | D79: 1028.40 | E79: 1035.85 | F79: 1012.20 | G79: 996.00 | H79: 972.35 | I79: 1052.05 | J79: 1075.70 | K79: 1091.90 | L79: 1059.5 | M79: 1019.65 | N79: 2636000 | O79: 8.08%
A80: 70 | B80: Banking | C80: INDUSINDBK | D80: 494.55 | E80: 493.60 | F80: 484.05 | G80: 473.55 | H80: 464.00 | I80: 504.10 | J80: 513.65 | K80: 524.15 | L80: 503.15 | M80: 483.1 | N80: 30616000 | O80: 2.74%
A81: 71 | B81: Telecom | C81: INFRATEL | D81: 220.90 | E81: 222.77 | F81: 216.88 | G81: 212.87 | H81: 206.98 | I81: 226.78 | J81: 232.67 | K81: 236.68 | L81: 228.65 | M81: 218.75 | N81: 9122400 | O81: 1.59%
A82: 72 | B82: Technology | C82: INFY | D82: 745.20 | E82: 733.30 | F82: 718.80 | G82: 692.40 | H82: 677.90 | I82: 759.70 | J82: 774.20 | K82: 800.60 | L82: 747.8 | M82: 706.9 | N82: 52772400 | O82: 5.99%
A83: 73 | B83: Oil_Gas | C83: IOC | D83: 89.25 | E83: 88.40 | F83: 86.65 | G83: 84.05 | H83: 82.30 | I83: 91.00 | J83: 92.75 | K83: 95.35 | L83: 90.15 | M83: 85.8 | N83: 56065200 | O83: 4.47%
A84: 74 | B84: FMCG | C84: ITC | D84: 193.15 | E84: 196.52 | F84: 188.43 | G84: 183.72 | H84: 175.63 | I84: 201.23 | J84: 209.32 | K84: 214.03 | L84: 204.6 | M84: 191.8 | N84: 76627200 | O84: 6.59%
A85: 75 | B85: Metals | C85: JINDALSTEL | D85: 153.20 | E85: 154.20 | F85: 150.75 | G85: 148.30 | H85: 144.85 | I85: 156.65 | J85: 160.10 | K85: 162.55 | L85: 157.65 | M85: 151.75 | N85: 14080000 | O85: 5.07%
A86: 76 | B86: Metals | C86: JSWSTEEL | D86: 190.65 | E86: 192.00 | F86: 188.25 | G86: 185.85 | H86: 182.10 | I86: 194.40 | J86: 198.15 | K86: 200.55 | L86: 195.75 | M86: 189.6 | N86: 39787200 | O86: 2.26%
A87: 77 | B87: Others | C87: JUBLFOOD | D87: 1758.35 | E87: 1761.85 | F87: 1733.85 | G87: 1709.35 | H87: 1681.35 | I87: 1786.35 | J87: 1814.35 | K87: 1838.85 | L87: 1789.85 | M87: 1737.35 | N87: 2339000 | O87: 0.75%
A88: 78 | B88: Others | C88: JUSTDIAL | D88: 377.90 | E88: 380.60 | F88: 368.80 | G88: 359.70 | H88: 347.90 | I88: 389.70 | J88: 401.50 | K88: 410.60 | L88: 392.4 | M88: 371.5 | N88: 1384600 | O88: 23.32%
A89: 79 | B89: Banking | C89: KOTAKBANK | D89: 1338.05 | E89: 1344.72 | F89: 1314.43 | G89: 1290.82 | H89: 1260.53 | I89: 1368.33 | J89: 1398.62 | K89: 1422.23 | L89: 1375 | M89: 1321.1 | N89: 9371600 | O89: 6.92%
A90: 80 | B90: Finance | C90: L&TFH | D90: 68.65 | E90: 69.57 | F90: 66.83 | G90: 65.02 | H90: 62.28 | I90: 71.38 | J90: 74.12 | K90: 75.93 | L90: 72.3 | M90: 67.75 | N90: 22793600 | O90: 2.82%
A91: 81 | B91: Finance | C91: LICHSGFIN | D91: 270.60 | E91: 272.92 | F91: 267.23 | G91: 263.87 | H91: 258.18 | I91: 276.28 | J91: 281.97 | K91: 285.33 | L91: 278.6 | M91: 269.55 | N91: 7532000 | O91: -4.92%
A92: 82 | B92: Capital_Goods | C92: LT | D92: 957.10 | E92: 954.03 | F92: 938.62 | G92: 920.13 | H92: 904.72 | I92: 972.52 | J92: 987.93 | K92: 1006.42 | L92: 969.45 | M92: 935.55 | N92: 9161350 | O92: 0.50%
A93: 83 | B93: Pharma | C93: LUPIN | D93: 923.00 | E93: 928.27 | F93: 914.13 | G93: 905.27 | H93: 891.13 | I93: 937.13 | J93: 951.27 | K93: 960.13 | L93: 942.4 | M93: 919.4 | N93: 7073700 | O93: 1.11%
A94: 84 | B94: Automobile | C94: M&M | D94: 499.80 | E94: 503.05 | F94: 493.15 | G94: 486.50 | H94: 476.60 | I94: 509.70 | J94: 519.60 | K94: 526.25 | L94: 512.95 | M94: 496.4 | N94: 17719800 | O94: 0.99%
A95: 85 | B95: Finance | C95: M&MFIN | D95: 176.75 | E95: 178.92 | F95: 171.98 | G95: 167.22 | H95: 160.28 | I95: 183.68 | J95: 190.62 | K95: 195.38 | L95: 185.85 | M95: 174.15 | N95: 11218200 | O95: -0.82%
A96: 86 | B96: Finance | C96: MANAPPURAM | D96: 156.60 | E96: 157.55 | F96: 153.85 | G96: 151.10 | H96: 147.40 | I96: 160.30 | J96: 164.00 | K96: 166.75 | L96: 161.25 | M96: 154.8 | N96: 13818000 | O96: -3.11%
A97: 87 | B97: FMCG | C97: MARICO | D97: 345.20 | E97: 345.08 | F97: 343.27 | G97: 341.33 | H97: 339.52 | I97: 347.02 | J97: 348.83 | K97: 350.77 | L97: 346.9 | M97: 343.15 | N97: 11138000 | O97: 2.82%
A98: 88 | B98: Automobile | C98: MARUTI | D98: 5749.65 | E98: 5750.67 | F98: 5683.38 | G98: 5617.12 | H98: 5549.83 | I98: 5816.93 | J98: 5884.22 | K98: 5950.48 | L98: 5817.95 | M98: 5684.4 | N98: 2880600 | O98: -0.18%
A99: 89 | B99: FMCG | C99: MCDOWELL-N | D99: 592.15 | E99: 597.85 | F99: 583.30 | G99: 574.45 | H99: 559.90 | I99: 606.70 | J99: 621.25 | K99: 630.10 | L99: 612.4 | M99: 589 | N99: 13078750 | O99: 0.92%
A100: 90 | B100: Finance | C100: MFSL | D100: 514.55 | E100: 517.20 | F100: 504.35 | G100: 494.15 | H100: 481.30 | I100: 527.40 | J100: 540.25 | K100: 550.45 | L100: 530.05 | M100: 507 | N100: 1236300 | O100: -17.66%
A101: 91 | B101: Oil_Gas | C101: MGL | D101: 1070.95 | E101: 1076.02 | F101: 1062.58 | G101: 1054.22 | H101: 1040.78 | I101: 1084.38 | J101: 1097.82 | K101: 1106.18 | L101: 1089.45 | M101: 1067.65 | N101: 636000 | O101: -3.81%
A102: 92 | B102: Technology | C102: MINDTREE | D102: 941.10 | E102: 942.72 | F102: 910.43 | G102: 879.77 | H102: 847.48 | I102: 973.38 | J102: 1005.67 | K102: 1036.33 | L102: 975 | M102: 912.05 | N102: 1749600 | O102: 33.44%
A103: 93 | B103: Automobile | C103: MOTHERSUMI | D103: 96.10 | E103: 96.80 | F103: 95.15 | G103: 94.20 | H103: 92.55 | I103: 97.75 | J103: 99.40 | K103: 100.35 | L103: 98.45 | M103: 95.85 | N103: 22743000 | O103: 0.40%
A104: 94 | B104: Automobile | C104: MRF | D104: 66144.85 | E104: 65851.27 | F104: 65113.58 | G104: 64082.32 | H104: 63344.63 | I104: 66882.53 | J104: 67620.22 | K104: 68651.48 | L104: 66588.95 | M104: 64820 | N104: 17250 | O104: 12.30%
A105: 95 | B105: Finance | C105: MUTHOOTFIN | D105: 1090.30 | E105: 1104.68 | F105: 1066.82 | G105: 1043.33 | H105: 1005.47 | I105: 1128.17 | J105: 1166.03 | K105: 1189.52 | L105: 1142.55 | M105: 1081.2 | N105: 2923500 | O105: -2.53%
A106: 96 | B106: Metals | C106: NATIONALUM | D106: 33.60 | E106: 33.92 | F106: 32.73 | G106: 31.87 | H106: 30.68 | I106: 34.78 | J106: 35.97 | K106: 36.83 | L106: 35.1 | M106: 33.05 | N106: 38097000 | O106: 4.04%
A107: 97 | B107: Others | C107: NAUKRI | D107: 2758.60 | E107: 2774.82 | F107: 2731.73 | G107: 2704.87 | H107: 2661.78 | I107: 2801.68 | J107: 2844.77 | K107: 2871.63 | L107: 2817.9 | M107: 2747.95 | N107: 657000 | O107: 4.16%
A108: 98 | B108: Infrastructure | C108: NCC | D108: 31.10 | E108: 31.87 | F108: 30.13 | G108: 29.17 | H108: 27.43 | I108: 32.83 | J108: 34.57 | K108: 35.53 | L108: 33.6 | M108: 30.9 | N108: 17430000 | O108: 4.01%
A109: 99 | B109: FMCG | C109: NESTLEIND | D109: 16631.70 | E109: 16707.15 | F109: 16493.65 | G109: 16355.60 | H109: 16142.10 | I109: 16845.20 | J109: 17058.70 | K109: 17196.75 | L109: 16920.65 | M109: 16569.1 | N109: 503050 | O109: -0.85%
A110: 100 | B110: Technology | C110: NIITTECH | D110: 1462.25 | E110: 1452.25 | F110: 1398.40 | G110: 1334.55 | H110: 1280.70 | I110: 1516.10 | J110: 1569.95 | K110: 1633.80 | L110: 1506.1 | M110: 1388.4 | N110: 580500 | O110: 13.82%
A111: 101 | B111: Metals | C111: NMDC | D111: 84.20 | E111: 84.58 | F111: 83.22 | G111: 82.23 | H111: 80.87 | I111: 85.57 | J111: 86.93 | K111: 87.92 | L111: 85.95 | M111: 83.6 | N111: 26351100 | O111: 2.45%
A112: 102 | B112: Power | C112: NTPC | D112: 97.20 | E112: 96.87 | F112: 96.13 | G112: 95.07 | H112: 94.33 | I112: 97.93 | J112: 98.67 | K112: 99.73 | L112: 97.6 | M112: 95.8 | N112: 59855700 | O112: -0.62%
A113: 103 | B113: Oil_Gas | C113: ONGC | D113: 84.20 | E113: 83.87 | F113: 82.83 | G113: 81.47 | H113: 80.43 | I113: 85.23 | J113: 86.27 | K113: 87.63 | L113: 84.9 | M113: 82.5 | N113: 68445300 | O113: -3.39%
A114: 104 | B114: Textile | C114: PAGEIND | D114: 20150.00 | E114: 20279.98 | F114: 19868.02 | G114: 19586.03 | H114: 19174.07 | I114: 20561.97 | J114: 20973.93 | K114: 21255.92 | L114: 20691.95 | M114: 19998 | N114: 112380 | O114: -0.61%
A115: 105 | B115: Pharma | C115: PEL | D115: 1331.70 | E115: 1329.83 | F115: 1303.47 | G115: 1275.23 | H115: 1248.87 | I115: 1358.07 | J115: 1384.43 | K115: 1412.67 | L115: 1356.2 | M115: 1301.6 | N115: 3769150 | O115: -4.43%
A116: 106 | B116: Oil_Gas | C116: PETRONET | D116: 265.30 | E116: 264.68 | F116: 261.37 | G116: 257.43 | H116: 254.12 | I116: 268.62 | J116: 271.93 | K116: 275.87 | L116: 268 | M116: 260.75 | N116: 12615000 | O116: 1.30%
A117: 107 | B117: Finance | C117: PFC | D117: 90.35 | E117: 90.37 | F117: 89.08 | G117: 87.82 | H117: 86.53 | I117: 91.63 | J117: 92.92 | K117: 94.18 | L117: 91.65 | M117: 89.1 | N117: 46971200 | O117: 1.65%
A118: 108 | B118: FMCG | C118: PIDILITIND | D118: 1389.60 | E118: 1389.87 | F118: 1371.73 | G118: 1353.87 | H118: 1335.73 | I118: 1407.73 | J118: 1425.87 | K118: 1443.73 | L118: 1408 | M118: 1372 | N118: 3441500 | O118: 1.62%
A119: 109 | B119: Banking | C119: PNB | D119: 36.55 | E119: 37.00 | F119: 35.90 | G119: 35.25 | H119: 34.15 | I119: 37.65 | J119: 38.75 | K119: 39.40 | L119: 38.1 | M119: 36.35 | N119: 46732000 | O119: 1.74%
A120: 110 | B120: Power | C120: POWERGRID | D120: 179.50 | E120: 180.03 | F120: 177.97 | G120: 176.43 | H120: 174.37 | I120: 181.57 | J120: 183.63 | K120: 185.17 | L120: 182.1 | M120: 178.5 | N120: 31588000 | O120: -0.06%
A121: 111 | B121: Media | C121: PVR | D121: 990.90 | E121: 996.80 | F121: 967.60 | G121: 944.30 | H121: 915.10 | I121: 1020.10 | J121: 1049.30 | K121: 1072.60 | L121: 1026 | M121: 973.5 | N121: 1264800 | O121: 6.36%
A122: 112 | B122: Cement | C122: RAMCOCEM | D122: 635.95 | E122: 635.28 | F122: 627.67 | G122: 619.38 | H122: 611.77 | I122: 643.57 | J122: 651.18 | K122: 659.47 | L122: 642.9 | M122: 627 | N122: 1017450 | O122: 2.13%
A123: 113 | B123: Banking | C123: RBLBANK | D123: 186.75 | E123: 189.10 | F123: 181.55 | G123: 176.35 | H123: 168.80 | I123: 194.30 | J123: 201.85 | K123: 207.05 | L123: 196.65 | M123: 183.9 | N123: 18140200 | O123: 11.79%
A124: 114 | B124: Power | C124: RECLTD | D124: 112.85 | E124: 113.82 | F124: 111.43 | G124: 110.02 | H124: 107.63 | I124: 115.23 | J124: 117.62 | K124: 119.03 | L124: 116.2 | M124: 112.4 | N124: 12858000 | O124: -5.88%
A125: 115 | B125: Oil_Gas | C125: RELIANCE | D125: 1738.70 | E125: 1732.98 | F125: 1718.27 | G125: 1697.83 | H125: 1683.12 | I125: 1753.42 | J125: 1768.13 | K125: 1788.57 | L125: 1747.7 | M125: 1712.55 | N125: 36637750 | O125: 5.06%
A126: 116 | B126: Metals | C126: SAIL | D126: 30.60 | E126: 30.85 | F126: 30.05 | G126: 29.50 | H126: 28.70 | I126: 31.40 | J126: 32.20 | K126: 32.75 | L126: 31.65 | M126: 30.3 | N126: 46379000 | O126: 12.64%
A127: 117 | B127: Finance | C127: SBILIFE | D127: 785.35 | E127: 791.25 | F127: 777.25 | G127: 769.15 | H127: 755.15 | I127: 799.35 | J127: 813.35 | K127: 821.45 | L127: 805.25 | M127: 783.15 | N127: 5205750 | O127: 5.78%
A128: 118 | B128: Banking | C128: SBIN | D128: 184.25 | E128: 185.32 | F128: 181.93 | G128: 179.62 | H128: 176.23 | I128: 187.63 | J128: 191.02 | K128: 193.33 | L128: 188.7 | M128: 183 | N128: 105579000 | O128: 0.64%
A129: 119 | B129: Cement | C129: SHREECEM | D129: 22442.85 | E129: 22262.78 | F129: 22005.57 | G129: 21568.28 | H129: 21311.07 | I129: 22700.07 | J129: 22957.28 | K129: 23394.57 | L129: 22520 | M129: 21825.5 | N129: 139400 | O129: 1.98%
A130: 120 | B130: Capital_Goods | C130: SIEMENS | D130: 1117.70 | E130: 1117.30 | F130: 1108.60 | G130: 1099.50 | H130: 1090.80 | I130: 1126.40 | J130: 1135.10 | K130: 1144.20 | L130: 1126 | M130: 1108.2 | N130: 2307250 | O130: 1.21%
A131: 121 | B131: Textile | C131: SRF | D131: 3590.50 | E131: 3613.10 | F131: 3552.60 | G131: 3514.70 | H131: 3454.20 | I131: 3651.00 | J131: 3711.50 | K131: 3749.40 | L131: 3673.6 | M131: 3575.2 | N131: 517250 | O131: 1.37%
A132: 122 | B132: Finance | C132: SRTRANSFIN | D132: 703.15 | E132: 711.38 | F132: 686.77 | G132: 670.38 | H132: 645.77 | I132: 727.77 | J132: 752.38 | K132: 768.77 | L132: 736 | M132: 695 | N132: 2867150 | O132: 11.02%
A133: 123 | B133: Pharma | C133: SUNPHARMA | D133: 478.45 | E133: 480.25 | F133: 468.75 | G133: 459.05 | H133: 447.55 | I133: 489.95 | J133: 501.45 | K133: 511.15 | L133: 491.75 | M133: 470.55 | N133: 31745000 | O133: -2.48%
A134: 124 | B134: Media | C134: SUNTV | D134: 419.90 | E134: 418.93 | F134: 410.97 | G134: 402.03 | H134: 394.07 | I134: 427.87 | J134: 435.83 | K134: 444.77 | L134: 426.9 | M134: 410 | N134: 5452500 | O134: -1.49%
A135: 125 | B135: Fertilisers | C135: TATACHEM | D135: 315.00 | E135: 317.72 | F135: 311.73 | G135: 308.47 | H135: 302.48 | I135: 320.98 | J135: 326.97 | K135: 330.23 | L135: 323.7 | M135: 314.45 | N135: 1588000 | O135: 11.36%
A136: 126 | B136: Others | C136: TATACONSUM | D136: 386.30 | E136: 386.47 | F136: 382.98 | G136: 379.67 | H136: 376.18 | I136: 389.78 | J136: 393.27 | K136: 396.58 | L136: 389.95 | M136: 383.15 | N136: 12946500 | O136: 2.57%
A137: 127 | B137: Automobile | C137: TATAMOTORS | D137: 101.20 | E137: 102.47 | F137: 99.03 | G137: 96.87 | H137: 93.43 | I137: 104.63 | J137: 108.07 | K137: 110.23 | L137: 105.9 | M137: 100.3 | N137: 79218600 | O137: 1.61%
A138: 128 | B138: Power | C138: TATAPOWER | D138: 46.20 | E138: 45.92 | F138: 44.63 | G138: 43.07 | H138: 41.78 | I138: 47.48 | J138: 48.77 | K138: 50.33 | L138: 47.2 | M138: 44.35 | N138: 54742500 | O138: 2.14%
A139: 129 | B139: Metals | C139: TATASTEEL | D139: 319.20 | E139: 320.40 | F139: 315.45 | G139: 311.70 | H139: 306.75 | I139: 324.15 | J139: 329.10 | K139: 332.85 | L139: 325.35 | M139: 316.65 | N139: 15395200 | O139: -2.80%
A140: 130 | B140: Technology | C140: TCS | D140: 2108.70 | E140: 2079.42 | F140: 2043.23 | G140: 1977.77 | H140: 1941.58 | I140: 2144.88 | J140: 2181.07 | K140: 2246.53 | L140: 2115.6 | M140: 2013.95 | N140: 8754600 | O140: 11.00%
A141: 131 | B141: Technology | C141: TECHM | D141: 556.65 | E141: 559.12 | F141: 546.78 | G141: 536.92 | H141: 524.58 | I141: 568.98 | J141: 581.32 | K141: 591.18 | L141: 571.45 | M141: 549.25 | N141: 18236400 | O141: 8.93%
A142: 132 | B142: FMCG | C142: TITAN | D142: 966.75 | E142: 972.22 | F142: 954.88 | G142: 943.02 | H142: 925.68 | I142: 984.08 | J142: 1001.42 | K142: 1013.28 | L142: 989.55 | M142: 960.35 | N142: 6526500 | O142: 2.93%
A143: 133 | B143: Pharma | C143: TORNTPHARM | D143: 2472.50 | E143: 2481.82 | F143: 2441.08 | G143: 2409.67 | H143: 2368.93 | I143: 2513.23 | J143: 2553.97 | K143: 2585.38 | L143: 2522.55 | M143: 2450.4 | N143: 1198500 | O143: 1.91%
A144: 134 | B144: Power | C144: TORNTPOWER | D144: 325.85 | E144: 326.28 | F144: 323.27 | G144: 320.68 | H144: 317.67 | I144: 328.87 | J144: 331.88 | K144: 334.47 | L144: 329.3 | M144: 323.7 | N144: 1833000 | O144: 4.27%
A145: 135 | B145: Automobile | C145: TVSMOTOR | D145: 377.95 | E145: 377.80 | F145: 373.45 | G145: 368.95 | H145: 364.60 | I145: 382.30 | J145: 386.65 | K145: 391.15 | L145: 382.15 | M145: 373.3 | N145: 3918600 | O145: 2.12%
A146: 136 | B146: FMCG | C146: UBL | D146: 1010.75 | E146: 1026.25 | F146: 992.50 | G146: 974.25 | H146: 940.50 | I146: 1044.50 | J146: 1078.25 | K146: 1096.50 | L146: 1060 | M146: 1008 | N146: 856100 | O146: 18.62%
A147: 137 | B147: Finance | C147: UJJIVAN | D147: 233.40 | E147: 230.42 | F147: 223.33 | G147: 213.27 | H147: 206.18 | I147: 240.48 | J147: 247.57 | K147: 257.63 | L147: 237.5 | M147: 220.35 | N147: 2985400 | O147: 17.69%
A148: 138 | B148: Cement | C148: ULTRACEMCO | D148: 3849.85 | E148: 3829.20 | F148: 3793.80 | G148: 3737.75 | H148: 3702.35 | I148: 3885.25 | J148: 3920.65 | K148: 3976.70 | L148: 3864.6 | M148: 3773.15 | N148: 2221800 | O148: -0.23%
A149: 139 | B149: Fertilisers | C149: UPL | D149: 437.30 | E149: 439.48 | F149: 433.37 | G149: 429.43 | H149: 423.32 | I149: 443.42 | J149: 449.53 | K149: 453.47 | L149: 445.6 | M149: 435.55 | N149: 9418500 | O149: 1.58%
A150: 140 | B150: Metals | C150: VEDL | D150: 110.05 | E150: 110.87 | F150: 108.53 | G150: 107.02 | H150: 104.68 | I150: 112.38 | J150: 114.72 | K150: 116.23 | L150: 113.2 | M150: 109.35 | N150: 103657800 | O150: -3.08%
A151: 141 | B151: Capital_Goods | C151: VOLTAS | D151: 543.40 | E151: 546.83 | F151: 536.72 | G151: 530.03 | H151: 519.92 | I151: 553.52 | J151: 563.63 | K151: 570.32 | L151: 556.95 | M151: 540.15 | N151: 3563000 | O151: -1.98%
A152: 142 | B152: Technology | C152: WIPRO | D152: 225.40 | E152: 224.42 | F152: 219.48 | G152: 213.57 | H152: 208.63 | I152: 230.33 | J152: 235.27 | K152: 241.18 | L152: 229.35 | M152: 218.5 | N152: 24934400 | O152: 10.10%
A153: 143 | B153: Media | C153: ZEEL | D153: 176.45 | E153: 177.12 | F153: 173.18 | G153: 169.92 | H153: 165.98 | I153: 180.38 | J153: 184.32 | K153: 187.58 | L153: 181.05 | M153: 173.85 | N153: 23199000 | O153: 0.49%
A154: 144
A155: 145
A156: 146
A157: 147
A175: Pivot Point: This is trigger point for intra day buy/sell based on the price range of the previous day
A176: As per the tool,the trader should take BUY position just above Pivot and keep the stop loss of pivot point and the first target would be Resistance 1(R1)
A177: If R1 is crossed then R2 becomes the next target with stop loss of at R1
A178: Similarly if price goes below pivot point then the trader should sell and keep a stop loss of pivot point and the first target would be S1
A179: If S1 is crossed then S2 becomes the next target with stop loss of at S1
A181: Disclaimer:
A182: This document has been prepared by the Retail Research Desk of Asit C Mehta
A183: Investment Intermediates Ltd. and is meant for use of the recipient only
A184: and is not for circulation. This document is not to be reported or
A185: copied or made available to others. It should not be considered to be
A186: taken as an offer to sell or a solicitation to buy any security. The
A187: information contained herein is from sources believed reliable. We do
A188: not represent that it is accurate or complete and it should not be
A189: relied upon as such. We may from time to time have positions in and buy
A190: and sell securities referred to herein

Sheet Cash Intra
M5: Back to Main Page
A6: FOR INTRA DAY TRADING | K6: =Main!B10 -> 2020-06-29
A8: Sr.no | B8: Scrip | C8: CLOSE RATE | D8: Pivot Point | E8: Supports | H8: Resistances
C9: Point | E9: S1 | F9: S2 | G9: S3 | H9: R1 | I9: R2 | J9: R3 | K9: HIGH | L9: LOW | M9: Total Trade Quanity in Lakhs
A10: 1 | B10: Nifty 50 | C10: 10383 | D10: 10368.03 | E10: 10326.22 | F10: 10269.43 | G10: 10227.62 | H10: 10424.82 | I10: 10466.63 | J10: 10523.42 | K10: 10409.85 | L10: 10311.25
A11: 2 | B11: Nifty Bank | C11: 21592.05 | D11: 21565.60 | E11: 21346.55 | F11: 21101.05 | G11: 20882.00 | H11: 21811.10 | I11: 22030.15 | J11: 22275.65 | K11: 21784.65 | L11: 21320.1
A12: 3 | B12: Nifty CPSE | C12: 1482.45 | D12: 1479.82 | E12: 1470.53 | F12: 1458.62 | G12: 1449.33 | H12: 1491.73 | I12: 1501.02 | J12: 1512.93 | K12: 1489.1 | L12: 1467.9
A13: 4 | B13: Nifty Infra | C13: 3078.5 | D13: 3070.62 | E13: 3055.63 | F13: 3032.77 | G13: 3017.78 | H13: 3093.48 | I13: 3108.47 | J13: 3131.33 | K13: 3085.6 | L13: 3047.75
A14: 5 | B14: Nifty IT | C14: 14994.65 | D14: 14852.37 | E14: 14618.73 | F14: 14242.82 | G14: 14009.18 | H14: 15228.28 | I14: 15461.92 | J14: 15837.83 | K14: 15086 | L14: 14476.45
A15: 6 | B15: Nifty PSE | C15: 2581.65 | D15: 2575.35 | E15: 2560.20 | F15: 2538.75 | G15: 2523.60 | H15: 2596.80 | I15: 2611.95 | J15: 2633.40 | K15: 2590.5 | L15: 2553.9
A16: 7 | B16: Nifty Midcap 50 | C16: 4171.75 | D16: 4187.13 | E16: 4144.52 | F16: 4117.28 | G16: 4074.67 | H16: 4214.37 | I16: 4256.98 | J16: 4284.22 | K16: 4229.75 | L16: 4159.9
A17: 8 | B17: ACC | C17: 1288.6 | D17: 1278.68 | E17: 1262.37 | F17: 1236.13 | G17: 1219.82 | H17: 1304.92 | I17: 1321.23 | J17: 1347.47 | K17: 1295 | L17: 1252.45 | M17: 9.99776
A18: 9 | B18: AUBANK | C18: 572.25 | D18: 585.43 | E18: 552.42 | F18: 532.58 | G18: 499.57 | H18: 605.27 | I18: 638.28 | J18: 658.12 | K18: 618.45 | L18: 565.6 | M18: 7.15128
A19: 10 | B19: ADANIPORTS | C19: 343.2 | D19: 343.93 | E19: 338.87 | F19: 334.53 | G19: 329.47 | H19: 348.27 | I19: 353.33 | J19: 357.67 | K19: 349 | L19: 339.6 | M19: 39.79519
A20: 11 | B20: ADANIPOWER | C20: 36.75 | D20: 37.02 | E20: 36.13 | F20: 35.52 | G20: 34.63 | H20: 37.63 | I20: 38.52 | J20: 39.13 | K20: 37.9 | L20: 36.4 | M20: 55.33269
A21: 12 | B21: ABCAPITAL | C21: 64.25 | D21: 64.65 | E21: 63.40 | F21: 62.55 | G21: 61.30 | H21: 65.50 | I21: 66.75 | J21: 67.60 | K21: 65.9 | L21: 63.8 | M21: 44.88609
A22: 13 | B22: ABFRL | C22: 129.3 | D22: 130.27 | E22: 127.63 | F22: 125.97 | G22: 123.33 | H22: 131.93 | I22: 134.57 | J22: 136.23 | K22: 132.9 | L22: 128.6 | M22: 18.54568
A23: 14 | B23: AJANTPHARM | C23: 1446.75 | D23: 1454.53 | E23: 1434.07 | F23: 1421.38 | G23: 1400.92 | H23: 1467.22 | I23: 1487.68 | J23: 1500.37 | K23: 1475 | L23: 1441.85 | M23: 0.71087
A24: 15 | B24: ALKEM | C24: 2349.35 | D24: 2349.82 | E24: 2319.63 | F24: 2289.92 | G24: 2259.73 | H24: 2379.53 | I24: 2409.72 | J24: 2439.43 | K24: 2380 | L24: 2320.1 | M24: 1.41519
A25: 16 | B25: AMARAJABAT | C25: 647.85 | D25: 646.75 | E25: 641.95 | F25: 636.05 | G25: 631.25 | H25: 652.65 | I25: 657.45 | J25: 663.35 | K25: 651.55 | L25: 640.85 | M25: 8.38124
A26: 17 | B26: AMBUJACEM | C26: 188 | D26: 187.62 | E26: 186.53 | F26: 185.07 | G26: 183.98 | H26: 189.08 | I26: 190.17 | J26: 191.63 | K26: 188.7 | L26: 186.15 | M26: 33.04712
A27: 18 | B27: APOLLOHOSP | C27: 1388.15 | D27: 1414.82 | E27: 1349.63 | F27: 1311.12 | G27: 1245.93 | H27: 1453.33 | I27: 1518.52 | J27: 1557.03 | K27: 1480 | L27: 1376.3 | M27: 38.62488
A28: 19 | B28: APOLLOTYRE | C28: 111 | D28: 112.22 | E28: 109.48 | F28: 107.97 | G28: 105.23 | H28: 113.73 | I28: 116.47 | J28: 117.98 | K28: 114.95 | L28: 110.7 | M28: 91.37531
A29: 20 | B29: ASHOKLEY | C29: 52.45 | D29: 53.25 | E29: 51.00 | F29: 49.55 | G29: 47.30 | H29: 54.70 | I29: 56.95 | J29: 58.40 | K29: 55.5 | L29: 51.8 | M29: 757.75657
A30: 21 | B30: ASIANPAINT | C30: 1686.75 | D30: 1689.27 | E30: 1668.18 | F30: 1649.62 | G30: 1628.53 | H30: 1707.83 | I30: 1728.92 | J30: 1747.48 | K30: 1710.35 | L30: 1670.7 | M30: 21.30096
A31: 22 | B31: AUROPHARMA | C31: 780.1 | D31: 784.07 | E31: 771.13 | F31: 762.17 | G31: 749.23 | H31: 793.03 | I31: 805.97 | J31: 814.93 | K31: 797 | L31: 775.1 | M31: 27.20261
A32: 23 | B32: DMART | C32: 2294.4 | D32: 2307.42 | E32: 2276.98 | F32: 2259.57 | G32: 2229.13 | H32: 2324.83 | I32: 2355.27 | J32: 2372.68 | K32: 2337.85 | L32: 2290 | M32: 2.03494
A33: 24 | B33: AXISBANK | C33: 424.85 | D33: 423.87 | E33: 418.98 | F33: 413.12 | G33: 408.23 | H33: 429.73 | I33: 434.62 | J33: 440.48 | K33: 428.75 | L33: 418 | M33: 326.11425
A34: 25 | B34: BAJAJ-AUTO | C34: 2867.6 | D34: 2864.20 | E34: 2828.40 | F34: 2789.20 | G34: 2753.40 | H34: 2903.40 | I34: 2939.20 | J34: 2978.40 | K34: 2900 | L34: 2825 | M34: 12.27666
A35: 26 | B35: BAJFINANCE | C35: 2903.5 | D35: 2944.78 | E35: 2830.77 | F35: 2758.03 | G35: 2644.02 | H35: 3017.52 | I35: 3131.53 | J35: 3204.27 | K35: 3058.8 | L35: 2872.05 | M35: 125.73521
A36: 27 | B36: BAJAJFINSV | C36: 5946.3 | D36: 5983.28 | E36: 5833.02 | F36: 5719.73 | G36: 5569.47 | H36: 6096.57 | I36: 6246.83 | J36: 6360.12 | K36: 6133.55 | L36: 5870 | M36: 10.67247
A37: 28 | B37: BAJAJHLDNG | C37: 2705.05 | D37: 2737.85 | E37: 2650.70 | F37: 2596.35 | G37: 2509.20 | H37: 2792.20 | I37: 2879.35 | J37: 2933.70 | K37: 2825 | L37: 2683.5 | M37: 0.69325
A38: 29 | B38: BALKRISIND | C38: 1242.6 | D38: 1248.27 | E38: 1228.38 | F38: 1214.17 | G38: 1194.28 | H38: 1262.48 | I38: 1282.37 | J38: 1296.58 | K38: 1268.15 | L38: 1234.05 | M38: 4.43829
A39: 30 | B39: BANDHANBNK | C39: 337.95 | D39: 338.53 | E39: 331.77 | F39: 325.58 | G39: 318.82 | H39: 344.72 | I39: 351.48 | J39: 357.67 | K39: 345.3 | L39: 332.35 | M39: 129.52924
A40: 31 | B40: BANKBARODA | C40: 51.85 | D40: 52.15 | E40: 51.20 | F40: 50.55 | G40: 49.60 | H40: 52.80 | I40: 53.75 | J40: 54.40 | K40: 53.1 | L40: 51.5 | M40: 366.51763
A41: 32 | B41: BANKINDIA | C41: 51.35 | D41: 51.28 | E41: 50.27 | F41: 49.18 | G41: 48.17 | H41: 52.37 | I41: 53.38 | J41: 54.47 | K41: 52.3 | L41: 50.2 | M41: 83.4633
A42: 33 | B42: BATAINDIA | C42: 1325.6 | D42: 1328.42 | E42: 1314.83 | F42: 1304.07 | G42: 1290.48 | H42: 1339.18 | I42: 1352.77 | J42: 1363.53 | K42: 1342 | L42: 1317.65 | M42: 4.64571
A43: 34 | B43: BERGEPAINT | C43: 510.8 | D43: 515.73 | E43: 503.07 | F43: 495.33 | G43: 482.67 | H43: 523.47 | I43: 536.13 | J43: 543.87 | K43: 528.4 | L43: 508 | M43: 13.80256
A44: 35 | B44: BEL | C44: 85.3 | D44: 85.18 | E44: 83.92 | F44: 82.53 | G44: 81.27 | H44: 86.57 | I44: 87.83 | J44: 89.22 | K44: 86.45 | L44: 83.8 | M44: 153.75634
A45: 36 | B45: BHARATFORG | C45: 352.5 | D45: 355.38 | E45: 347.57 | F45: 342.63 | G45: 334.82 | H45: 360.32 | I45: 368.13 | J45: 373.07 | K45: 363.2 | L45: 350.45 | M45: 12.46484
A46: 37 | B46: BHEL | C46: 36.9 | D46: 37.37 | E46: 36.03 | F46: 35.17 | G46: 33.83 | H46: 38.23 | I46: 39.57 | J46: 40.43 | K46: 38.7 | L46: 36.5 | M46: 904.85855
A47: 38 | B47: BPCL | C47: 393.65 | D47: 387.87 | E47: 378.78 | F47: 363.92 | G47: 354.83 | H47: 402.73 | I47: 411.82 | J47: 426.68 | K47: 396.95 | L47: 373 | M47: 121.88087
A48: 39 | B48: BHARTIARTL | C48: 560.4 | D48: 561.32 | E48: 556.23 | F48: 552.07 | G48: 546.98 | H48: 565.48 | I48: 570.57 | J48: 574.73 | K48: 566.4 | L48: 557.15 | M48: 111.09042
A49: 40 | B49: INFRATEL | C49: 220.6 | D49: 223.43 | E49: 215.37 | F49: 210.13 | G49: 202.07 | H49: 228.67 | I49: 236.73 | J49: 241.97 | K49: 231.5 | L49: 218.2 | M49: 100.84789
A50: 41 | B50: BIOCON | C50: 401.8 | D50: 403.85 | E50: 397.25 | F50: 392.70 | G50: 386.10 | H50: 408.40 | I50: 415.00 | J50: 419.55 | K50: 410.45 | L50: 399.3 | M50: 68.2506
A51: 42 | B51: BBTC | C51: 1045.35 | D51: 1051.75 | E51: 1028.80 | F51: 1012.25 | G51: 989.30 | H51: 1068.30 | I51: 1091.25 | J51: 1107.80 | K51: 1074.7 | L51: 1035.2 | M51: 0.75691
A52: 43 | B52: BOSCHLTD | C52: 11213.5 | D52: 11302.02 | E52: 11029.48 | F52: 10845.47 | G52: 10572.93 | H52: 11486.03 | I52: 11758.57 | J52: 11942.58 | K52: 11574.55 | L52: 11118 | M52: 0.39854
A53: 44 | B53: BRITANNIA | C53: 3456.4 | D53: 3466.87 | E53: 3433.83 | F53: 3411.27 | G53: 3378.23 | H53: 3489.43 | I53: 3522.47 | J53: 3545.03 | K53: 3499.9 | L53: 3444.3 | M53: 4.48352
A54: 45 | B54: CESC | C54: 607.1 | D54: 611.42 | E54: 600.83 | F54: 594.57 | G54: 583.98 | H54: 617.68 | I54: 628.27 | J54: 634.53 | K54: 622 | L54: 605.15 | M54: 1.17861
A55: 46 | B55: CADILAHC | C55: 363.85 | D55: 366.53 | E55: 360.37 | F55: 356.88 | G55: 350.72 | H55: 370.02 | I55: 376.18 | J55: 379.67 | K55: 372.7 | L55: 363.05 | M55: 43.12446
A56: 47 | B56: CANBK | C56: 104.5 | D56: 105.02 | E56: 102.58 | F56: 100.67 | G56: 98.23 | H56: 106.93 | I56: 109.37 | J56: 111.28 | K56: 107.45 | L56: 103.1 | M56: 183.83138
A57: 48 | B57: CASTROLIND | C57: 128.3 | D57: 129.03 | E57: 126.67 | F57: 125.03 | G57: 122.67 | H57: 130.67 | I57: 133.03 | J57: 134.67 | K57: 131.4 | L57: 127.4 | M57: 23.81617
A58: 49 | B58: CHOLAFIN | C58: 201.8 | D58: 204.52 | E58: 197.28 | F58: 192.77 | G58: 185.53 | H58: 209.03 | I58: 216.27 | J58: 220.78 | K58: 211.75 | L58: 200 | M58: 169.97483
A59: 50 | B59: CIPLA | C59: 634.9 | D59: 636.72 | E59: 629.78 | F59: 624.67 | G59: 617.73 | H59: 641.83 | I59: 648.77 | J59: 653.88 | K59: 643.65 | L59: 631.6 | M59: 38.47867
A60: 51 | B60: CUB | C60: 124.4 | D60: 123.97 | E60: 122.93 | F60: 121.47 | G60: 120.43 | H60: 125.43 | I60: 126.47 | J60: 127.93 | K60: 125 | L60: 122.5 | M60: 15.07584
A61: 52 | B61: COALINDIA | C61: 142.1 | D61: 141.57 | E61: 140.13 | F61: 138.17 | G61: 136.73 | H61: 143.53 | I61: 144.97 | J61: 146.93 | K61: 143 | L61: 139.6 | M61: 80.96021
A62: 53 | B62: COLPAL | C62: 1391.25 | D62: 1398.52 | E62: 1376.03 | F62: 1360.82 | G62: 1338.33 | H62: 1413.73 | I62: 1436.22 | J62: 1451.43 | K62: 1421 | L62: 1383.3 | M62: 5.04571
A63: 54 | B63: CONCOR | C63: 433.8 | D63: 431.93 | E63: 424.87 | F63: 415.93 | G63: 408.87 | H63: 440.87 | I63: 447.93 | J63: 456.87 | K63: 439 | L63: 423 | M63: 22.28682
A64: 55 | B64: COROMANDEL | C64: 757.35 | D64: 756.80 | E64: 744.80 | F64: 732.25 | G64: 720.25 | H64: 769.35 | I64: 781.35 | J64: 793.90 | K64: 768.8 | L64: 744.25 | M64: 5.0801
A65: 56 | B65: CROMPTON | C65: 236.25 | D65: 234.85 | E65: 230.80 | F65: 225.35 | G65: 221.30 | H65: 240.30 | I65: 244.35 | J65: 249.80 | K65: 238.9 | L65: 229.4 | M65: 5.9998
A66: 57 | B66: CUMMINSIND | C66: 410.6 | D66: 411.17 | E66: 404.93 | F66: 399.27 | G66: 393.03 | H66: 416.83 | I66: 423.07 | J66: 428.73 | K66: 417.4 | L66: 405.5 | M66: 15.74985
A67: 58 | B67: DLF | C67: 154.4 | D67: 155.30 | E67: 151.45 | F67: 148.50 | G67: 144.65 | H67: 158.25 | I67: 162.10 | J67: 165.05 | K67: 159.15 | L67: 152.35 | M67: 105.24946
A68: 59 | B68: DABUR | C68: 460.35 | D68: 460.12 | E68: 455.28 | F68: 450.22 | G68: 445.38 | H68: 465.18 | I68: 470.02 | J68: 475.08 | K68: 464.95 | L68: 455.05 | M68: 31.02744
A69: 60 | B69: DALBHARAT | C69: 700 | D69: 702.28 | E69: 688.77 | F69: 677.53 | G69: 664.02 | H69: 713.52 | I69: 727.03 | J69: 738.27 | K69: 715.8 | L69: 691.05 | M69: 1.62064
A70: 61 | B70: DIVISLAB | C70: 2350.75 | D70: 2355.07 | E70: 2328.23 | F70: 2305.72 | G70: 2278.88 | H70: 2377.58 | I70: 2404.42 | J70: 2426.93 | K70: 2381.9 | L70: 2332.55 | M70: 4.9712
A71: 62 | B71: DRREDDY | C71: 3998.6 | D71: 4009.53 | E71: 3954.07 | F71: 3909.53 | G71: 3854.07 | H71: 4054.07 | I71: 4109.53 | J71: 4154.07 | K71: 4065 | L71: 3965 | M71: 7.43912
A72: 63 | B72: EDELWEISS | C72: 57 | D72: 56.92 | E72: 56.83 | F72: 56.67 | G72: 56.58 | H72: 57.08 | I72: 57.17 | J72: 57.33 | K72: 57 | L72: 56.75 | M72: 7.04665
A73: 64 | B73: EICHERMOT | C73: 18473.4 | D73: 18373.83 | E73: 18196.57 | F73: 17919.73 | G73: 17742.47 | H73: 18650.67 | I73: 18827.93 | J73: 19104.77 | K73: 18551.1 | L73: 18097 | M73: 2.24886
A74: 65 | B74: EMAMILTD | C74: 220.95 | D74: 222.87 | E74: 212.28 | F74: 203.62 | G74: 193.03 | H74: 231.53 | I74: 242.12 | J74: 250.78 | K74: 233.45 | L74: 214.2 | M74: 27.40475
A75: 66 | B75: ENDURANCE | C75: 895.9 | D75: 903.50 | E75: 882.40 | F75: 868.90 | G75: 847.80 | H75: 917.00 | I75: 938.10 | J75: 951.60 | K75: 924.6 | L75: 890 | M75: 2.4285
A76: 67 | B76: ENGINERSIN | C76: 79.9 | D76: 79.02 | E76: 77.28 | F76: 74.67 | G76: 72.93 | H76: 81.63 | I76: 83.37 | J76: 85.98 | K76: 80.75 | L76: 76.4 | M76: 114.09751
A77: 68 | B77: ESCORTS | C77: 1017.35 | D77: 1022.62 | E77: 1000.13 | F77: 982.92 | G77: 960.43 | H77: 1039.83 | I77: 1062.32 | J77: 1079.53 | K77: 1045.1 | L77: 1005.4 | M77: 21.40776
A78: 69 | B78: EXIDEIND | C78: 148.9 | D78: 149.85 | E78: 147.55 | F78: 146.20 | G78: 143.90 | H78: 151.20 | I78: 153.50 | J78: 154.85 | K78: 152.15 | L78: 148.5 | M78: 50.30192
A79: 70 | B79: FEDERALBNK | C79: 53.45 | D79: 53.73 | E79: 52.52 | F79: 51.58 | G79: 50.37 | H79: 54.67 | I79: 55.88 | J79: 56.82 | K79: 54.95 | L79: 52.8 | M79: 391.74675
A80: 71 | B80: FORTIS | C80: 123.35 | D80: 124.08 | E80: 122.27 | F80: 121.18 | G80: 119.37 | H80: 125.17 | I80: 126.98 | J80: 128.07 | K80: 125.9 | L80: 123 | M80: 15.79278
A81: 72 | B81: FCONSUMER | C81: 18.35 | D81: 18.35 | E81: 18.35 | F81: 18.35 | G81: 18.35 | H81: 18.35 | I81: 18.35 | J81: 18.35 | K81: 18.35 | L81: 18.35 | M81: 3.11217
A82: 73 | B82: FRETAIL | C82: 142.4 | D82: 141.27 | E82: 140.13 | F82: 137.87 | G82: 136.73 | H82: 143.53 | I82: 144.67 | J82: 146.93 | K82: 142.4 | L82: 139 | M82: 50.5848
A83: 74 | B83: GAIL | C83: 105.15 | D83: 104.47 | E83: 103.43 | F83: 101.72 | G83: 100.68 | H83: 106.18 | I83: 107.22 | J83: 108.93 | K83: 105.5 | L83: 102.75 | M83: 206.91407
A84: 75 | B84: GMRINFRA | C84: 20.4 | D84: 20.52 | E84: 20.23 | F84: 20.07 | G84: 19.78 | H84: 20.68 | I84: 20.97 | J84: 21.13 | K84: 20.8 | L84: 20.35 | M84: 81.38699
A85: 76 | B85: GICRE | C85: 154.9 | D85: 156.93 | E85: 151.97 | F85: 149.03 | G85: 144.07 | H85: 159.87 | I85: 164.83 | J85: 167.77 | K85: 161.9 | L85: 154 | M85: 5.81363
A86: 77 | B86: GLENMARK | C86: 466.7 | D86: 468.67 | E86: 459.58 | F86: 452.47 | G86: 443.38 | H86: 475.78 | I86: 484.87 | J86: 491.98 | K86: 477.75 | L86: 461.55 | M86: 111.05234
A87: 78 | B87: GODREJAGRO | C87: 457.2 | D87: 457.77 | E87: 451.73 | F87: 446.27 | G87: 440.23 | H87: 463.23 | I87: 469.27 | J87: 474.73 | K87: 463.8 | L87: 452.3 | M87: 2.06858
A88: 79 | B88: GODREJCP | C88: 685.45 | D88: 687.08 | E88: 677.37 | F88: 669.28 | G88: 659.57 | H88: 695.17 | I88: 704.88 | J88: 712.97 | K88: 696.8 | L88: 679 | M88: 15.15673
A89: 80 | B89: GODREJIND | C89: 421.45 | D89: 422.82 | E89: 418.63 | F89: 415.82 | G89: 411.63 | H89: 425.63 | I89: 429.82 | J89: 432.63 | K89: 427 | L89: 420 | M89: 1.41352
A90: 81 | B90: GODREJPROP | C90: 868.25 | D90: 872.08 | E90: 853.17 | F90: 838.08 | G90: 819.17 | H90: 887.17 | I90: 906.08 | J90: 921.17 | K90: 891 | L90: 857 | M90: 2.34046
A91: 82 | B91: GRAPHITE | C91: 188.1 | D91: 189.17 | E91: 186.53 | F91: 184.97 | G91: 182.33 | H91: 190.73 | I91: 193.37 | J91: 194.93 | K91: 191.8 | L91: 187.6 | M91: 2.40197
A92: 83 | B92: GRASIM | C92: 616.15 | D92: 617.50 | E92: 608.65 | F92: 601.15 | G92: 592.30 | H92: 625.00 | I92: 633.85 | J92: 641.35 | K92: 626.35 | L92: 610 | M92: 17.60688
A93: 84 | B93: GSPL | C93: 215.55 | D93: 215.48 | E93: 213.12 | F93: 210.68 | G93: 208.32 | H93: 217.92 | I93: 220.28 | J93: 222.72 | K93: 217.85 | L93: 213.05 | M93: 5.49246
A94: 85 | B94: HEG | C94: 875.55 | D94: 881.55 | E94: 866.00 | F94: 856.45 | G94: 840.90 | H94: 891.10 | I94: 906.65 | J94: 916.20 | K94: 897.1 | L94: 872 | M94: 1.39107
A95: 86 | B95: HCLTECH | C95: 562.4 | D95: 560.43 | E95: 546.97 | F95: 531.53 | G95: 518.07 | H95: 575.87 | I95: 589.33 | J95: 604.77 | K95: 573.9 | L95: 545 | M95: 70.34881
A96: 87 | B96: HDFCAMC | C96: 2488.1 | D96: 2480.47 | E96: 2457.63 | F96: 2427.17 | G96: 2404.33 | H96: 2510.93 | I96: 2533.77 | J96: 2564.23 | K96: 2503.3 | L96: 2450 | M96: 4.61927
A97: 88 | B97: HDFCBANK | C97: 1056.45 | D97: 1049.15 | E97: 1035.30 | F97: 1014.15 | G97: 1000.30 | H97: 1070.30 | I97: 1084.15 | J97: 1105.30 | K97: 1063 | L97: 1028 | M97: 199.86677
A98: 89 | B98: HDFCLIFE | C98: 541.9 | D98: 541.45 | E98: 535.45 | F98: 529.00 | G98: 523.00 | H98: 547.90 | I98: 553.90 | J98: 560.35 | K98: 547.45 | L98: 535 | M98: 25.86687
A99: 90 | B99: HAVELLS | C99: 585.45 | D99: 586.30 | E99: 579.20 | F99: 572.95 | G99: 565.85 | H99: 592.55 | I99: 599.65 | J99: 605.90 | K99: 593.4 | L99: 580.05 | M99: 22.62112
A100: 91 | B100: HEROMOTOCO | C100: 2540.45 | D100: 2553.97 | E100: 2517.28 | F100: 2494.12 | G100: 2457.43 | H100: 2577.13 | I100: 2613.82 | J100: 2636.98 | K100: 2590.65 | L100: 2530.8 | M100: 13.51765
A101: 92 | B101: HEXAWARE | C101: 326.95 | D101: 326.37 | E101: 322.93 | F101: 318.92 | G101: 315.48 | H101: 330.38 | I101: 333.82 | J101: 337.83 | K101: 329.8 | L101: 322.35 | M101: 21.80175
A102: 93 | B102: HINDALCO | C102: 151.05 | D102: 150.42 | E102: 148.83 | F102: 146.62 | G102: 145.03 | H102: 152.63 | I102: 154.22 | J102: 156.43 | K102: 152 | L102: 148.2 | M102: 121.07609
A103: 94 | B103: HINDPETRO | C103: 231.25 | D103: 230.55 | E103: 225.25 | F103: 219.25 | G103: 213.95 | H103: 236.55 | I103: 241.85 | J103: 247.85 | K103: 235.85 | L103: 224.55 | M103: 74.41061
A104: 95 | B104: HINDUNILVR | C104: 2154.2 | D104: 2157.42 | E104: 2134.88 | F104: 2115.57 | G104: 2093.03 | H104: 2176.73 | I104: 2199.27 | J104: 2218.58 | K104: 2179.95 | L104: 2138.1 | M104: 31.76495
A105: 96 | B105: HINDZINC | C105: 198.95 | D105: 198.23 | E105: 191.72 | F105: 184.48 | G105: 177.97 | H105: 205.47 | I105: 211.98 | J105: 219.22 | K105: 204.75 | L105: 191 | M105: 42.42947
A106: 97 | B106: HUDCO | C106: 27.9 | D106: 27.95 | E106: 27.55 | F106: 27.20 | G106: 26.80 | H106: 28.30 | I106: 28.70 | J106: 29.05 | K106: 28.35 | L106: 27.6 | M106: 21.72808
A107: 98 | B107: HDFC | C107: 1769.35 | D107: 1773.88 | E107: 1747.87 | F107: 1726.38 | G107: 1700.37 | H107: 1795.37 | I107: 1821.38 | J107: 1842.87 | K107: 1799.9 | L107: 1752.4 | M107: 57.31517
A108: 99 | B108: ICICIBANK | C108: 349.1 | D108: 351.23 | E108: 343.97 | F108: 338.83 | G108: 331.57 | H108: 356.37 | I108: 363.63 | J108: 368.77 | K108: 358.5 | L108: 346.1 | M108: 345.96718
A109: 100 | B109: ICICIGI | C109: 1262.55 | D109: 1268.60 | E109: 1247.20 | F109: 1231.85 | G109: 1210.45 | H109: 1283.95 | I109: 1305.35 | J109: 1320.70 | K109: 1290 | L109: 1253.25 | M109: 2.35947
A110: 101 | B110: ICICIPRULI | C110: 423.35 | D110: 426.08 | E110: 417.42 | F110: 411.48 | G110: 402.82 | H110: 432.02 | I110: 440.68 | J110: 446.62 | K110: 434.75 | L110: 420.15 | M110: 13.81754
A111: 102 | B111: IDBI | C111: 40 | D111: 39.72 | E111: 39.43 | F111: 38.87 | G111: 38.58 | H111: 40.28 | I111: 40.57 | J111: 41.13 | K111: 40 | L111: 39.15 | M111: 35.76423
A112: 103 | B112: IDFCFIRSTB | C112: 26.8 | D112: 27.05 | E112: 26.40 | F112: 26.00 | G112: 25.35 | H112: 27.45 | I112: 28.10 | J112: 28.50 | K112: 27.7 | L112: 26.65 | M112: 376.80982
A113: 104 | B113: ITC | C113: 195.2 | D113: 199.30 | E113: 189.20 | F113: 183.20 | G113: 173.10 | H113: 205.30 | I113: 215.40 | J113: 221.40 | K113: 209.4 | L113: 193.3 | M113: 719.5746
A114: 105 | B114: IBULHSGFIN | C114: 227.65 | D114: 228.23 | E114: 217.07 | F114: 206.48 | G114: 195.32 | H114: 238.82 | I114: 249.98 | J114: 260.57 | K114: 239.4 | L114: 217.65 | M114: 460.62583
A115: 106 | B115: IBVENTURES | C115: 110.8 | D115: 110.80 | E115: 110.80 | F115: 110.80 | G115: 110.80 | H115: 110.80 | I115: 110.80 | J115: 110.80 | K115: 110.8 | L115: 110.8 | M115: 6.71449
A116: 107 | B116: INDIANB | C116: 66.45 | D116: 66.65 | E116: 64.30 | F116: 62.15 | G116: 59.80 | H116: 68.80 | I116: 71.15 | J116: 73.30 | K116: 69 | L116: 64.5 | M116: 55.90622
A117: 108 | B117: INDHOTEL | C117: 81.5 | D117: 82.07 | E117: 80.53 | F117: 79.57 | G117: 78.03 | H117: 83.03 | I117: 84.57 | J117: 85.53 | K117: 83.6 | L117: 81.1 | M117: 8.79902
A118: 109 | B118: IOC | C118: 89.15 | D118: 88.28 | E118: 86.62 | F118: 84.08 | G118: 82.42 | H118: 90.82 | I118: 92.48 | J118: 95.02 | K118: 89.95 | L118: 85.75 | M118: 464.96322
A119: 110 | B119: IGL | C119: 442.1 | D119: 444.03 | E119: 437.27 | F119: 432.43 | G119: 425.67 | H119: 448.87 | I119: 455.63 | J119: 460.47 | K119: 450.8 | L119: 439.2 | M119: 32.4597
A120: 111 | B120: INDUSINDBK | C120: 492.55 | D120: 491.53 | E120: 482.07 | F120: 471.58 | G120: 462.12 | H120: 502.02 | I120: 511.48 | J120: 521.97 | K120: 501 | L120: 481.05 | M120: 339.00526
A121: 112 | B121: NAUKRI | C121: 2756.3 | D121: 2768.03 | E121: 2724.07 | F121: 2691.83 | G121: 2647.87 | H121: 2800.27 | I121: 2844.23 | J121: 2876.47 | K121: 2812 | L121: 2735.8 | M121: 4.42421
A122: 113 | B122: INFY | C122: 748.2 | D122: 736.60 | E122: 721.60 | F122: 695.00 | G122: 680.00 | H122: 763.20 | I122: 778.20 | J122: 804.80 | K122: 751.6 | L122: 710 | M122: 260.30535
A123: 114 | B123: INDIGO | C123: 1028.55 | D123: 1037.75 | E123: 1013.50 | F123: 998.45 | G123: 974.20 | H123: 1052.80 | I123: 1077.05 | J123: 1092.10 | K123: 1062 | L123: 1022.7 | M123: 18.50072
A124: 115 | B124: IPCALAB | C124: 1700.35 | D124: 1693.00 | E124: 1677.55 | F124: 1654.75 | G124: 1639.30 | H124: 1715.80 | I124: 1731.25 | J124: 1754.05 | K124: 1708.45 | L124: 1670.2 | M124: 2.81347
A125: 116 | B125: JSWENERGY | C125: 48.75 | D125: 49.18 | E125: 48.07 | F125: 47.38 | G125: 46.27 | H125: 49.87 | I125: 50.98 | J125: 51.67 | K125: 50.3 | L125: 48.5 | M125: 13.38916
A126: 117 | B126: JSWSTEEL | C126: 192.65 | D126: 193.90 | E126: 190.30 | F126: 187.95 | G126: 184.35 | H126: 196.25 | I126: 199.85 | J126: 202.20 | K126: 197.5 | L126: 191.55 | M126: 69.60491
A127: 118 | B127: JINDALSTEL | C127: 153.2 | D127: 153.90 | E127: 150.30 | F127: 147.40 | G127: 143.80 | H127: 156.80 | I127: 160.40 | J127: 163.30 | K127: 157.5 | L127: 151 | M127: 160.35209
A128: 119 | B128: JUBLFOOD | C128: 1769.85 | D128: 1774.15 | E128: 1746.75 | F128: 1723.65 | G128: 1696.25 | H128: 1797.25 | I128: 1824.65 | J128: 1847.75 | K128: 1801.55 | L128: 1751.05 | M128: 4.96377
A129: 120 | B129: JUBILANT | C129: 654.7 | D129: 660.40 | E129: 643.80 | F129: 632.90 | G129: 616.30 | H129: 671.30 | I129: 687.90 | J129: 698.80 | K129: 677 | L129: 649.5 | M129: 3.20307
A130: 121 | B130: KOTAKBANK | C130: 1340.1 | D130: 1350.00 | E130: 1317.05 | F130: 1294.00 | G130: 1261.05 | H130: 1373.05 | I130: 1406.00 | J130: 1429.05 | K130: 1382.95 | L130: 1326.95 | M130: 66.94715
A131: 122 | B131: L&TFH | C131: 68.8 | D131: 69.77 | E131: 67.33 | F131: 65.87 | G131: 63.43 | H131: 71.23 | I131: 73.67 | J131: 75.13 | K131: 72.2 | L131: 68.3 | M131: 152.8971
A132: 123 | B132: LTTS | C132: 1296.5 | D132: 1297.00 | E132: 1265.05 | F132: 1233.60 | G132: 1201.65 | H132: 1328.45 | I132: 1360.40 | J132: 1391.85 | K132: 1328.95 | L132: 1265.55 | M132: 2.63469
A133: 124 | B133: LICHSGFIN | C133: 270.9 | D133: 273.08 | E133: 267.97 | F133: 265.03 | G133: 259.92 | H133: 276.02 | I133: 281.13 | J133: 284.07 | K133: 278.2 | L133: 270.15 | M133: 74.95809
A134: 125 | B134: LTI | C134: 1928.7 | D134: 1924.85 | E134: 1896.70 | F134: 1864.70 | G134: 1836.55 | H134: 1956.85 | I134: 1985.00 | J134: 2017.00 | K134: 1953 | L134: 1892.85 | M134: 1.71354
A135: 126 | B135: LT | C135: 962.2 | D135: 959.60 | E135: 943.10 | F135: 924.00 | G135: 907.50 | H135: 978.70 | I135: 995.20 | J135: 1014.30 | K135: 976.1 | L135: 940.5 | M135: 65.54208
A136: 127 | B136: LUPIN | C136: 926.75 | D136: 930.82 | E136: 917.93 | F136: 909.12 | G136: 896.23 | H136: 939.63 | I136: 952.52 | J136: 961.33 | K136: 943.7 | L136: 922 | M136: 12.2609
A137: 128 | B137: MRF | C137: 66457.7 | D137: 66155.78 | E137: 65311.57 | F137: 64165.43 | G137: 63321.22 | H137: 67301.92 | I137: 68146.13 | J137: 69292.27 | K137: 67000 | L137: 65009.65 | M137: 0.15913
A138: 129 | B138: MGL | C138: 1077.15 | D138: 1080.12 | E138: 1068.03 | F138: 1058.92 | G138: 1046.83 | H138: 1089.23 | I138: 1101.32 | J138: 1110.43 | K138: 1092.2 | L138: 1071 | M138: 4.105
A139: 130 | B139: M&MFIN | C139: 176.9 | D139: 179.15 | E139: 172.80 | F139: 168.70 | G139: 162.35 | H139: 183.25 | I139: 189.60 | J139: 193.70 | K139: 185.5 | L139: 175.05 | M139: 114.91578
A140: 131 | B140: M&M | C140: 501.4 | D140: 505.12 | E140: 494.98 | F140: 488.57 | G140: 478.43 | H140: 511.53 | I140: 521.67 | J140: 528.08 | K140: 515.25 | L140: 498.7 | M140: 40.79405
A141: 132 | B141: MANAPPURAM | C141: 156.45 | D141: 157.60 | E141: 154.00 | F141: 151.55 | G141: 147.95 | H141: 160.05 | I141: 163.65 | J141: 166.10 | K141: 161.2 | L141: 155.15 | M141: 79.78631
A142: 133 | B142: MRPL | C142: 39.2 | D142: 39.73 | E142: 38.47 | F142: 37.73 | G142: 36.47 | H142: 40.47 | I142: 41.73 | J142: 42.47 | K142: 41 | L142: 39 | M142: 28.48899
A143: 134 | B143: MARICO | C143: 344.4 | D143: 344.23 | E143: 342.17 | F143: 339.93 | G143: 337.87 | H143: 346.47 | I143: 348.53 | J143: 350.77 | K143: 346.3 | L143: 342 | M143: 22.63468
A144: 135 | B144: MARUTI | C144: 5754.9 | D144: 5753.30 | E144: 5696.60 | F144: 5638.30 | G144: 5581.60 | H144: 5811.60 | I144: 5868.30 | J144: 5926.60 | K144: 5810 | L144: 5695 | M144: 10.63059
A145: 136 | B145: MFSL | C145: 515.55 | D145: 519.90 | E145: 506.80 | F145: 498.05 | G145: 484.95 | H145: 528.65 | I145: 541.75 | J145: 550.50 | K145: 533 | L145: 511.15 | M145: 14.17517
A146: 137 | B146: MINDTREE | C146: 949.1 | D146: 949.77 | E146: 916.58 | F146: 884.07 | G146: 850.88 | H146: 982.28 | I146: 1015.47 | J146: 1047.98 | K146: 982.95 | L146: 917.25 | M146: 34.77871
A147: 138 | B147: MOTHERSUMI | C147: 96 | D147: 96.68 | E147: 95.12 | F147: 94.23 | G147: 92.67 | H147: 97.57 | I147: 99.13 | J147: 100.02 | K147: 98.25 | L147: 95.8 | M147: 73.97393
A148: 139 | B148: MPHASIS | C148: 892.95 | D148: 896.02 | E148: 872.03 | F148: 851.12 | G148: 827.13 | H148: 916.93 | I148: 940.92 | J148: 961.83 | K148: 920 | L148: 875.1 | M148: 5.20323
A149: 140 | B149: MUTHOOTFIN | C149: 1090 | D149: 1103.47 | E149: 1067.08 | F149: 1044.17 | G149: 1007.78 | H149: 1126.38 | I149: 1162.77 | J149: 1185.68 | K149: 1139.85 | L149: 1080.55 | M149: 34.67591
A150: 141 | B150: NATCOPHARM | C150: 634.1 | D150: 634.17 | E150: 625.93 | F150: 617.77 | G150: 609.53 | H150: 642.33 | I150: 650.57 | J150: 658.73 | K150: 642.4 | L150: 626 | M150: 1.74929
A151: 142 | B151: NBCC | C151: 23.8 | D151: 23.90 | E151: 23.55 | F151: 23.30 | G151: 22.95 | H151: 24.15 | I151: 24.50 | J151: 24.75 | K151: 24.25 | L151: 23.65 | M151: 77.77486
A152: 143 | B152: NHPC | C152: 20.85 | D152: 20.73 | E152: 20.57 | F152: 20.28 | G152: 20.12 | H152: 21.02 | I152: 21.18 | J152: 21.47 | K152: 20.9 | L152: 20.45 | M152: 56.34228
A153: 144 | B153: NMDC | C153: 84.15 | D153: 84.68 | E153: 82.97 | F153: 81.78 | G153: 80.07 | H153: 85.87 | I153: 87.58 | J153: 88.77 | K153: 86.4 | L153: 83.5 | M153: 58.80981
A154: 145 | B154: NTPC | C154: 97 | D154: 96.65 | E154: 95.90 | F154: 94.80 | G154: 94.05 | H154: 97.75 | I154: 98.50 | J154: 99.60 | K154: 97.4 | L154: 95.55 | M154: 155.72502
A155: 146 | B155: NATIONALUM | C155: 33.5 | D155: 33.83 | E155: 32.77 | F155: 32.03 | G155: 30.97 | H155: 34.57 | I155: 35.63 | J155: 36.37 | K155: 34.9 | L155: 33.1 | M155: 171.35552
A156: 147 | B156: NESTLEIND | C156: 16677.5 | D156: 16745.83 | E156: 16561.67 | F156: 16445.83 | G156: 16261.67 | H156: 16861.67 | I156: 17045.83 | J156: 17161.67 | K156: 16930 | L156: 16630 | M156: 1.10342
A157: 148 | B157: NAM-INDIA | C157: 312.8 | D157: 314.80 | E157: 308.20 | F157: 303.60 | G157: 297.00 | H157: 319.40 | I157: 326.00 | J157: 330.60 | K157: 321.4 | L157: 310.2 | M157: 14.55985
A158: 149 | B158: OBEROIRLTY | C158: 375.35 | D158: 379.70 | E158: 369.00 | F158: 362.65 | G158: 351.95 | H158: 386.05 | I158: 396.75 | J158: 403.10 | K158: 390.4 | L158: 373.35 | M158: 1.1182
A159: 150 | B159: ONGC | C159: 84.15 | D159: 83.82 | E159: 82.83 | F159: 81.52 | G159: 80.53 | H159: 85.13 | I159: 86.12 | J159: 87.43 | K159: 84.8 | L159: 82.5 | M159: 236.84918
A160: 151 | B160: OIL | C160: 94.45 | D160: 94.53 | E160: 93.12 | F160: 91.78 | G160: 90.37 | H160: 95.87 | I160: 97.28 | J160: 98.62 | K160: 95.95 | L160: 93.2 | M160: 30.68785
A161: 152 | B161: OFSS | C161: 2737.25 | D161: 2742.52 | E161: 2694.73 | F161: 2652.22 | G161: 2604.43 | H161: 2785.03 | I161: 2832.82 | J161: 2875.33 | K161: 2790.3 | L161: 2700 | M161: 0.58726
A162: 153 | B162: PIIND | C162: 1550.85 | D162: 1554.78 | E162: 1536.57 | F162: 1522.28 | G162: 1504.07 | H162: 1569.07 | I162: 1587.28 | J162: 1601.57 | K162: 1573 | L162: 1540.5 | M162: 1.85532
A163: 154 | B163: PNBHOUSING | C163: 222.8 | D163: 225.03 | E163: 218.02 | F163: 213.23 | G163: 206.22 | H163: 229.82 | I163: 236.83 | J163: 241.62 | K163: 232.05 | L163: 220.25 | M163: 5.56283
A164: 155 | B164: PAGEIND | C164: 20129.05 | D164: 20254.68 | E164: 19824.37 | F164: 19519.68 | G164: 19089.37 | H164: 20559.37 | I164: 20989.68 | J164: 21294.37 | K164: 20685 | L164: 19950 | M164: 0.49801
A165: 156 | B165: PETRONET | C165: 265.15 | D165: 265.03 | E165: 262.37 | F165: 259.58 | G165: 256.92 | H165: 267.82 | I165: 270.48 | J165: 273.27 | K165: 267.7 | L165: 262.25 | M165: 19.90472
A166: 157 | B166: PFIZER | C166: 4101.7 | D166: 4116.23 | E166: 4065.47 | F166: 4029.23 | G166: 3978.47 | H166: 4152.47 | I166: 4203.23 | J166: 4239.47 | K166: 4167 | L166: 4080 | M166: 1.12276
A167: 158 | B167: PIDILITIND | C167: 1387.8 | D167: 1390.33 | E167: 1371.07 | F167: 1354.33 | G167: 1335.07 | H167: 1407.07 | I167: 1426.33 | J167: 1443.07 | K167: 1409.6 | L167: 1373.6 | M167: 9.06145
A168: 159 | B168: PEL | C168: 1343.1 | D168: 1343.32 | E168: 1316.63 | F168: 1290.17 | G168: 1263.48 | H168: 1369.78 | I168: 1396.47 | J168: 1422.93 | K168: 1370 | L168: 1316.85 | M168: 31.01553
A169: 160 | B169: PFC | C169: 90.1 | D169: 90.28 | E169: 88.97 | F169: 87.83 | G169: 86.52 | H169: 91.42 | I169: 92.73 | J169: 93.87 | K169: 91.6 | L169: 89.15 | M169: 55.61175
A170: 161 | B170: POWERGRID | C170: 179.2 | D170: 179.82 | E170: 177.53 | F170: 175.87 | G170: 173.58 | H170: 181.48 | I170: 183.77 | J170: 185.43 | K170: 182.1 | L170: 178.15 | M170: 67.24171
A171: 162 | B171: PRESTIGE | C171: 223.95 | D171: 224.98 | E171: 219.97 | F171: 215.98 | G171: 210.97 | H171: 228.97 | I171: 233.98 | J171: 237.97 | K171: 230 | L171: 221 | M171: 5.25171
A172: 163 | B172: PGHH | C172: 10168 | D172: 10089.13 | E172: 9938.37 | F172: 9708.73 | G172: 9557.97 | H172: 10318.77 | I172: 10469.53 | J172: 10699.17 | K172: 10239.9 | L172: 9859.5 | M172: 0.05503
A173: 164 | B173: PNB | C173: 36.6 | D173: 36.98 | E173: 36.02 | F173: 35.43 | G173: 34.47 | H173: 37.57 | I173: 38.53 | J173: 39.12 | K173: 37.95 | L173: 36.4 | M173: 376.46225
A174: 165 | B174: QUESS | C174: 377.4 | D174: 371.60 | E174: 365.80 | F174: 354.20 | G174: 348.40 | H174: 383.20 | I174: 389.00 | J174: 400.60 | K174: 377.4 | L174: 360 | M174: 6.21395
A175: 166 | B175: RBLBANK | C175: 190.65 | D175: 192.65 | E175: 187.00 | F175: 183.35 | G175: 177.70 | H175: 196.30 | I175: 201.95 | J175: 205.60 | K175: 198.3 | L175: 189 | M175: 345.16986
A176: 167 | B176: RECLTD | C176: 112.65 | D176: 113.58 | E176: 111.17 | F176: 109.68 | G176: 107.27 | H176: 115.07 | I176: 117.48 | J176: 118.97 | K176: 116 | L176: 112.1 | M176: 52.13901
A177: 168 | B177: RAJESHEXPO | C177: 476.7 | D177: 479.47 | E177: 472.73 | F177: 468.77 | G177: 462.03 | H177: 483.43 | I177: 490.17 | J177: 494.13 | K177: 486.2 | L177: 475.5 | M177: 0.81946
A178: 169 | B178: RELIANCE | C178: 1741.65 | D178: 1736.88 | E178: 1721.77 | F178: 1701.88 | G178: 1686.77 | H178: 1756.77 | I178: 1771.88 | J178: 1791.77 | K178: 1752 | L178: 1717 | M178: 142.70695
A179: 170 | B179: SBILIFE | C179: 784.35 | D179: 789.45 | E179: 776.90 | F179: 769.45 | G179: 756.90 | H179: 796.90 | I179: 809.45 | J179: 816.90 | K179: 802 | L179: 782 | M179: 9.86163
A180: 171 | B180: SRF | C180: 3602 | D180: 3617.83 | E180: 3570.72 | F180: 3539.43 | G180: 3492.32 | H180: 3649.12 | I180: 3696.23 | J180: 3727.52 | K180: 3664.95 | L180: 3586.55 | M180: 1.75971
A181: 172 | B181: SHREECEM | C181: 22523.85 | D181: 22362.42 | E181: 22024.83 | F181: 21525.82 | G181: 21188.23 | H181: 22861.43 | I181: 23199.02 | J181: 23698.03 | K181: 22700 | L181: 21863.4 | M181: 0.56262
A182: 173 | B182: SRTRANSFIN | C182: 704.9 | D182: 712.33 | E182: 690.67 | F182: 676.43 | G182: 654.77 | H182: 726.57 | I182: 748.23 | J182: 762.47 | K182: 734 | L182: 698.1 | M182: 89.76114
A183: 174 | B183: SIEMENS | C183: 1116.4 | D183: 1117.82 | E183: 1106.63 | F183: 1096.87 | G183: 1085.68 | H183: 1127.58 | I183: 1138.77 | J183: 1148.53 | K183: 1129 | L183: 1108.05 | M183: 5.77951
A184: 175 | B184: SBIN | C184: 184.6 | D184: 185.67 | E184: 182.73 | F184: 180.87 | G184: 177.93 | H184: 187.53 | I184: 190.47 | J184: 192.33 | K184: 188.6 | L184: 183.8 | M184: 491.78705
A185: 176 | B185: SAIL | C185: 30.5 | D185: 30.80 | E185: 30.00 | F185: 29.50 | G185: 28.70 | H185: 31.30 | I185: 32.10 | J185: 32.60 | K185: 31.6 | L185: 30.3 | M185: 247.35595
A186: 177 | B186: STRTECH | C186: 116.6 | D186: 117.25 | E186: 114.65 | F186: 112.70 | G186: 110.10 | H186: 119.20 | I186: 121.80 | J186: 123.75 | K186: 119.85 | L186: 115.3 | M186: 12.43851
A187: 178 | B187: SUNPHARMA | C187: 479.95 | D187: 481.05 | E187: 471.10 | F187: 462.25 | G187: 452.30 | H187: 489.90 | I187: 499.85 | J187: 508.70 | K187: 491 | L187: 472.2 | M187: 74.92508
A188: 179 | B188: SUNTV | C188: 421.2 | D188: 419.17 | E188: 411.33 | F188: 401.47 | G188: 393.63 | H188: 429.03 | I188: 436.87 | J188: 446.73 | K188: 427 | L188: 409.3 | M188: 46.73394
A189: 180 | B189: SYNGENE | C189: 406.95 | D189: 407.37 | E189: 402.68 | F189: 398.42 | G189: 393.73 | H189: 411.63 | I189: 416.32 | J189: 420.58 | K189: 412.05 | L189: 403.1 | M189: 2.11805
A190: 181 | B190: TVSMOTOR | C190: 381.65 | D190: 382.87 | E190: 377.83 | F190: 374.02 | G190: 368.98 | H190: 386.68 | I190: 391.72 | J190: 395.53 | K190: 387.9 | L190: 379.05 | M190: 15.93654
A191: 182 | B191: TCS | C191: 2118.85 | D191: 2090.27 | E191: 2048.53 | F191: 1978.22 | G191: 1936.48 | H191: 2160.58 | I191: 2202.32 | J191: 2272.63 | K191: 2132 | L191: 2019.95 | M191: 63.00912
A192: 183 | B192: TATACONSUM | C192: 385.65 | D192: 385.70 | E192: 382.45 | F192: 379.25 | G192: 376.00 | H192: 388.90 | I192: 392.15 | J192: 395.35 | K192: 388.95 | L192: 382.5 | M192: 17.59164
A193: 184 | B193: TATAMTRDVR | C193: 41.45 | D193: 41.83 | E193: 40.67 | F193: 39.88 | G193: 38.72 | H193: 42.62 | I193: 43.78 | J193: 44.57 | K193: 43 | L193: 41.05 | M193: 34.09805
A194: 185 | B194: TATAMOTORS | C194: 101.4 | D194: 102.60 | E194: 99.15 | F194: 96.90 | G194: 93.45 | H194: 104.85 | I194: 108.30 | J194: 110.55 | K194: 106.05 | L194: 100.35 | M194: 563.28105
A195: 186 | B195: TATAPOWER | C195: 46.35 | D195: 46.02 | E195: 44.63 | F195: 42.92 | G195: 41.53 | H195: 47.73 | I195: 49.12 | J195: 50.83 | K195: 47.4 | L195: 44.3 | M195: 460.5629
A196: 187 | B196: TATASTEEL | C196: 323.85 | D196: 325.45 | E196: 320.95 | F196: 318.05 | G196: 313.55 | H196: 328.35 | I196: 332.85 | J196: 335.75 | K196: 329.95 | L196: 322.55 | M196: 97.06335
A197: 188 | B197: TECHM | C197: 560.85 | D197: 562.80 | E197: 550.65 | F197: 540.45 | G197: 528.30 | H197: 573.00 | I197: 585.15 | J197: 595.35 | K197: 574.95 | L197: 552.6 | M197: 52.89122
A198: 189 | B198: NIACL | C198: 114.05 | D198: 113.65 | E198: 112.40 | F198: 110.75 | G198: 109.50 | H198: 115.30 | I198: 116.55 | J198: 118.20 | K198: 114.9 | L198: 112 | M198: 6.87717
A199: 190 | B199: RAMCOCEM | C199: 643.2 | D199: 641.90 | E199: 634.30 | F199: 625.40 | G199: 617.80 | H199: 650.80 | I199: 658.40 | J199: 667.30 | K199: 649.5 | L199: 633 | M199: 8.17472
A200: 191 | B200: TITAN | C200: 966.2 | D200: 972.67 | E200: 955.43 | F200: 944.67 | G200: 927.43 | H200: 983.43 | I200: 1000.67 | J200: 1011.43 | K200: 989.9 | L200: 961.9 | M200: 25.14115
A201: 192 | B201: TORNTPHARM | C201: 2471.15 | D201: 2480.77 | E201: 2440.38 | F201: 2409.62 | G201: 2369.23 | H201: 2511.53 | I201: 2551.92 | J201: 2582.68 | K201: 2521.15 | L201: 2450 | M201: 2.64943
A202: 193 | B202: TORNTPOWER | C202: 325.4 | D202: 326.13 | E202: 322.27 | F202: 319.13 | G202: 315.27 | H202: 329.27 | I202: 333.13 | J202: 336.27 | K202: 330 | L202: 323 | M202: 8.05928
A203: 194 | B203: UPL | C203: 440.25 | D203: 443.25 | E203: 435.65 | F203: 431.05 | G203: 423.45 | H203: 447.85 | I203: 455.45 | J203: 460.05 | K203: 450.85 | L203: 438.65 | M203: 21.28151
A204: 195 | B204: ULTRACEMCO | C204: 3860.6 | D204: 3838.20 | E204: 3802.40 | F204: 3744.20 | G204: 3708.40 | H204: 3896.40 | I204: 3932.20 | J204: 3990.40 | K204: 3874 | L204: 3780 | M204: 3.73568
A205: 196 | B205: UNIONBANK | C205: 33.85 | D205: 34.17 | E205: 32.93 | F205: 32.02 | G205: 30.78 | H205: 35.08 | I205: 36.32 | J205: 37.23 | K205: 35.4 | L205: 33.25 | M205: 68.42752
... 30 more rows

Sheet MidCap Intra
L5: Back To Main Page
A6: FOR INTRA DAY TRADING | K6: =Main!B10 -> 2020-06-29
A9: Sr.no | B9: Scrip | C9: CLOSE RATE | D9: Pivot Point | E9: Supports | H9: Resistances
C10: Point | E10: S1 | F10: S2 | G10: S3 | H10: R1 | I10: R2 | J10: R3 | K10: HIGH | L10: LOW | M10: Total Trade Quanity in Lakhs
A11: 1 | B11: 3MINDIA | C11: 19103 | D11: 18896.98 | E11: 18556.02 | F11: 18009.03 | G11: 17668.07 | H11: 19443.97 | I11: 19784.93 | J11: 20331.92 | K11: 19237.95 | L11: 18350 | M11: 0.08269
A12: 2 | B12: AARTIIND | C12: 953.7 | D12: 956.22 | E12: 942.48 | F12: 931.27 | G12: 917.53 | H12: 967.43 | I12: 981.17 | J12: 992.38 | K12: 969.95 | L12: 945 | M12: 2.22118
A13: 3 | B13: AAVAS | C13: 1343 | D13: 1365.33 | E13: 1297.67 | F13: 1252.33 | G13: 1184.67 | H13: 1410.67 | I13: 1478.33 | J13: 1523.67 | K13: 1433 | L13: 1320 | M13: 0.78364
A14: 4 | B14: ABBOTINDIA | C14: 15956.35 | D14: 16083.75 | E14: 15772.60 | F14: 15588.85 | G14: 15277.70 | H14: 16267.50 | I14: 16578.65 | J14: 16762.40 | K14: 16394.9 | L14: 15900 | M14: 0.23131
A15: 5 | B15: ABCAPITAL | C15: 64.25 | D15: 64.65 | E15: 63.40 | F15: 62.55 | G15: 61.30 | H15: 65.50 | I15: 66.75 | J15: 67.60 | K15: 65.9 | L15: 63.8 | M15: 44.88609
A16: 6 | B16: ABFRL | C16: 129.3 | D16: 130.27 | E16: 127.63 | F16: 125.97 | G16: 123.33 | H16: 131.93 | I16: 134.57 | J16: 136.23 | K16: 132.9 | L16: 128.6 | M16: 18.54568
A17: 7 | B17: ACC | C17: 1288.6 | D17: 1278.68 | E17: 1262.37 | F17: 1236.13 | G17: 1219.82 | H17: 1304.92 | I17: 1321.23 | J17: 1347.47 | K17: 1295 | L17: 1252.45 | M17: 9.99776
A18: 8 | B18: ADANIGAS | C18: 165.85 | D18: 168.50 | E18: 160.35 | F18: 154.85 | G18: 146.70 | H18: 174.00 | I18: 182.15 | J18: 187.65 | K18: 176.65 | L18: 163 | M18: 48.82823
A19: 9 | B19: ADANIGREEN | C19: 397.55 | D19: 397.55 | E19: 397.55 | F19: 397.55 | G19: 397.55 | H19: 397.55 | I19: 397.55 | J19: 397.55 | K19: 397.55 | L19: 397.55 | M19: 1.47247
A20: 10 | B20: ADANIPORTS | C20: 343.2 | D20: 343.93 | E20: 338.87 | F20: 334.53 | G20: 329.47 | H20: 348.27 | I20: 353.33 | J20: 357.67 | K20: 349 | L20: 339.6 | M20: 39.79519
A21: 11 | B21: ADANIPOWER | C21: 36.75 | D21: 37.02 | E21: 36.13 | F21: 35.52 | G21: 34.63 | H21: 37.63 | I21: 38.52 | J21: 39.13 | K21: 37.9 | L21: 36.4 | M21: 55.33269
A22: 12 | B22: ADANITRANS | C22: 276.85 | D22: 271.38 | E22: 262.07 | F22: 247.28 | G22: 237.97 | H22: 286.17 | I22: 295.48 | J22: 310.27 | K22: 280.7 | L22: 256.6 | M22: 41.13416
A23: 13 | B23: ADVENZYMES | C23: 172.3 | D23: 174.93 | E23: 168.92 | F23: 165.53 | G23: 159.52 | H23: 178.32 | I23: 184.33 | J23: 187.72 | K23: 180.95 | L23: 171.55 | M23: 1.55852
A24: 14 | B24: AEGISCHEM | C24: 184.95 | D24: 186.27 | E24: 181.73 | F24: 178.52 | G24: 173.98 | H24: 189.48 | I24: 194.02 | J24: 197.23 | K24: 190.8 | L24: 183.05 | M24: 2.79425
A25: 15 | B25: AFFLE | C25: 1512.3 | D25: 1518.17 | E25: 1499.33 | F25: 1486.37 | G25: 1467.53 | H25: 1531.13 | I25: 1549.97 | J25: 1562.93 | K25: 1537 | L25: 1505.2 | M25: 0.27138
A26: 16 | B26: AIAENG | C26: 1625.2 | D26: 1627.88 | E26: 1607.77 | F26: 1590.33 | G26: 1570.22 | H26: 1645.32 | I26: 1665.43 | J26: 1682.87 | K26: 1648 | L26: 1610.45 | M26: 0.38107
A27: 17 | B27: AJANTPHARM | C27: 1446.75 | D27: 1454.53 | E27: 1434.07 | F27: 1421.38 | G27: 1400.92 | H27: 1467.22 | I27: 1487.68 | J27: 1500.37 | K27: 1475 | L27: 1441.85 | M27: 0.71087
A28: 18 | B28: AKZOINDIA | C28: 1859.6 | D28: 1867.83 | E28: 1837.77 | F28: 1815.93 | G28: 1785.87 | H28: 1889.67 | I28: 1919.73 | J28: 1941.57 | K28: 1897.9 | L28: 1846 | M28: 0.11563
A29: 19 | B29: ALKEM | C29: 2349.35 | D29: 2349.82 | E29: 2319.63 | F29: 2289.92 | G29: 2259.73 | H29: 2379.53 | I29: 2409.72 | J29: 2439.43 | K29: 2380 | L29: 2320.1 | M29: 1.41519
A30: 20 | B30: ALLCARGO | C30: 79.65 | D30: 80.20 | E30: 78.55 | F30: 77.45 | G30: 75.80 | H30: 81.30 | I30: 82.95 | J30: 84.05 | K30: 81.85 | L30: 79.1 | M30: 1.65774
A31: 21 | B31: AMARAJABAT | C31: 647.85 | D31: 646.75 | E31: 641.95 | F31: 636.05 | G31: 631.25 | H31: 652.65 | I31: 657.45 | J31: 663.35 | K31: 651.55 | L31: 640.85 | M31: 8.38124
A32: 22 | B32: AMBER | C32: 1547.7 | D32: 1566.50 | E32: 1523.20 | F32: 1498.70 | G32: 1455.40 | H32: 1591.00 | I32: 1634.30 | J32: 1658.80 | K32: 1609.8 | L32: 1542 | M32: 0.38577
A33: 23 | B33: AMBUJACEM | C33: 188 | D33: 187.62 | E33: 186.53 | F33: 185.07 | G33: 183.98 | H33: 189.08 | I33: 190.17 | J33: 191.63 | K33: 188.7 | L33: 186.15 | M33: 33.04712
A34: 24 | B34: APLAPOLLO | C34: 1563.7 | D34: 1604.57 | E34: 1514.13 | F34: 1464.57 | G34: 1374.13 | H34: 1654.13 | I34: 1744.57 | J34: 1794.13 | K34: 1695 | L34: 1555 | M34: 0.44678
A35: 25 | B35: APLLTD | C35: 902.1 | D35: 906.45 | E35: 892.90 | F35: 883.70 | G35: 870.15 | H35: 915.65 | I35: 929.20 | J35: 938.40 | K35: 920 | L35: 897.25 | M35: 1.12792
A36: 26 | B36: APOLLOHOSP | C36: 1388.15 | D36: 1414.82 | E36: 1349.63 | F36: 1311.12 | G36: 1245.93 | H36: 1453.33 | I36: 1518.52 | J36: 1557.03 | K36: 1480 | L36: 1376.3 | M36: 38.62488
A37: 27 | B37: APOLLOTYRE | C37: 111 | D37: 112.22 | E37: 109.48 | F37: 107.97 | G37: 105.23 | H37: 113.73 | I37: 116.47 | J37: 117.98 | K37: 114.95 | L37: 110.7 | M37: 91.37531
A38: 28 | B38: ARVINDFASN | C38: 177.9 | D38: 177.97 | E38: 174.93 | F38: 171.97 | G38: 168.93 | H38: 180.93 | I38: 183.97 | J38: 186.93 | K38: 181 | L38: 175 | M38: 0.4875
A39: 29 | B39: ASAHIINDIA | C39: 183.4 | D39: 185.42 | E39: 178.93 | F39: 174.47 | G39: 167.98 | H39: 189.88 | I39: 196.37 | J39: 200.83 | K39: 191.9 | L39: 180.95 | M39: 0.62299
A40: 30 | B40: ASHOKA | C40: 63 | D40: 63.45 | E40: 62.10 | F40: 61.20 | G40: 59.85 | H40: 64.35 | I40: 65.70 | J40: 66.60 | K40: 64.8 | L40: 62.55 | M40: 11.07206
A41: 31 | B41: ASHOKLEY | C41: 52.45 | D41: 53.25 | E41: 51.00 | F41: 49.55 | G41: 47.30 | H41: 54.70 | I41: 56.95 | J41: 58.40 | K41: 55.5 | L41: 51.8 | M41: 757.75657
A42: 32 | B42: ASIANPAINT | C42: 1686.75 | D42: 1689.27 | E42: 1668.18 | F42: 1649.62 | G42: 1628.53 | H42: 1707.83 | I42: 1728.92 | J42: 1747.48 | K42: 1710.35 | L42: 1670.7 | M42: 21.30096
A43: 33 | B43: ASTERDM | C43: 125.6 | D43: 126.53 | E43: 124.37 | F43: 123.13 | G43: 120.97 | H43: 127.77 | I43: 129.93 | J43: 131.17 | K43: 128.7 | L43: 125.3 | M43: 2.37351
A44: 34 | B44: ASTRAL | C44: 963.25 | D44: 964.42 | E44: 943.83 | F44: 924.42 | G44: 903.83 | H44: 983.83 | I44: 1004.42 | J44: 1023.83 | K44: 985 | L44: 945 | M44: 1.78146
A45: 35 | B45: ASTRAZEN | C45: 3347.5 | D45: 3363.42 | E45: 3316.83 | F45: 3286.17 | G45: 3239.58 | H45: 3394.08 | I45: 3440.67 | J45: 3471.33 | K45: 3410 | L45: 3332.75 | M45: 0.34885
A46: 36 | B46: ATUL | C46: 4486 | D46: 4502.00 | E46: 4454.00 | F46: 4422.00 | G46: 4374.00 | H46: 4534.00 | I46: 4582.00 | J46: 4614.00 | K46: 4550 | L46: 4470 | M46: 0.10524
A47: 37 | B47: AUBANK | C47: 572.25 | D47: 585.43 | E47: 552.42 | F47: 532.58 | G47: 499.57 | H47: 605.27 | I47: 638.28 | J47: 658.12 | K47: 618.45 | L47: 565.6 | M47: 7.15128
A48: 38 | B48: AUROPHARMA | C48: 780.1 | D48: 784.07 | E48: 771.13 | F48: 762.17 | G48: 749.23 | H48: 793.03 | I48: 805.97 | J48: 814.93 | K48: 797 | L48: 775.1 | M48: 27.20261
A49: 39 | B49: AVANTIFEED | C49: 471.55 | D49: 476.13 | E49: 465.42 | F49: 459.28 | G49: 448.57 | H49: 482.27 | I49: 492.98 | J49: 499.12 | K49: 486.85 | L49: 470 | M49: 4.5397
A50: 40 | B50: AXISBANK | C50: 424.85 | D50: 423.87 | E50: 418.98 | F50: 413.12 | G50: 408.23 | H50: 429.73 | I50: 434.62 | J50: 440.48 | K50: 428.75 | L50: 418 | M50: 326.11425
A51: 41 | B51: BAJAJ-AUTO | C51: 2867.6 | D51: 2864.20 | E51: 2828.40 | F51: 2789.20 | G51: 2753.40 | H51: 2903.40 | I51: 2939.20 | J51: 2978.40 | K51: 2900 | L51: 2825 | M51: 12.27666
A52: 42 | B52: BAJAJCON | C52: 150.25 | D52: 151.15 | E52: 149.10 | F52: 147.95 | G52: 145.90 | H52: 152.30 | I52: 154.35 | J52: 155.50 | K52: 153.2 | L52: 150 | M52: 4.12777
A53: 43 | B53: BAJAJELEC | C53: 402.9 | D53: 405.25 | E53: 399.65 | F53: 396.40 | G53: 390.80 | H53: 408.50 | I53: 414.10 | J53: 417.35 | K53: 410.85 | L53: 402 | M53: 1.06076
A54: 44 | B54: BAJAJFINSV | C54: 5946.3 | D54: 5983.28 | E54: 5833.02 | F54: 5719.73 | G54: 5569.47 | H54: 6096.57 | I54: 6246.83 | J54: 6360.12 | K54: 6133.55 | L54: 5870 | M54: 10.67247
A55: 45 | B55: BAJAJHLDNG | C55: 2705.05 | D55: 2737.85 | E55: 2650.70 | F55: 2596.35 | G55: 2509.20 | H55: 2792.20 | I55: 2879.35 | J55: 2933.70 | K55: 2825 | L55: 2683.5 | M55: 0.69325
A56: 46 | B56: BAJFINANCE | C56: 2903.5 | D56: 2944.78 | E56: 2830.77 | F56: 2758.03 | G56: 2644.02 | H56: 3017.52 | I56: 3131.53 | J56: 3204.27 | K56: 3058.8 | L56: 2872.05 | M56: 125.73521
A57: 47 | B57: BALKRISIND | C57: 1242.6 | D57: 1248.27 | E57: 1228.38 | F57: 1214.17 | G57: 1194.28 | H57: 1262.48 | I57: 1282.37 | J57: 1296.58 | K57: 1268.15 | L57: 1234.05 | M57: 4.43829
A58: 48 | B58: BALMLAWRIE | C58: 113.3 | D58: 113.68 | E58: 111.72 | F58: 110.13 | G58: 108.17 | H58: 115.27 | I58: 117.23 | J58: 118.82 | K58: 115.65 | L58: 112.1 | M58: 1.45768
A59: 49 | B59: BALRAMCHIN | C59: 131.3 | D59: 131.52 | E59: 129.58 | F59: 127.87 | G59: 125.93 | H59: 133.23 | I59: 135.17 | J59: 136.88 | K59: 133.45 | L59: 129.8 | M59: 16.95367
A60: 50 | B60: BANDHANBNK | C60: 337.95 | D60: 338.53 | E60: 331.77 | F60: 325.58 | G60: 318.82 | H60: 344.72 | I60: 351.48 | J60: 357.67 | K60: 345.3 | L60: 332.35 | M60: 129.52924
A61: 51 | B61: BANKBARODA | C61: 51.85 | D61: 52.15 | E61: 51.20 | F61: 50.55 | G61: 49.60 | H61: 52.80 | I61: 53.75 | J61: 54.40 | K61: 53.1 | L61: 51.5 | M61: 366.51763
A62: 52 | B62: BANKINDIA | C62: 51.35 | D62: 51.28 | E62: 50.27 | F62: 49.18 | G62: 48.17 | H62: 52.37 | I62: 53.38 | J62: 54.47 | K62: 52.3 | L62: 50.2 | M62: 83.4633
A63: 53 | B63: BASF | C63: 1172.95 | D63: 1177.78 | E63: 1158.17 | F63: 1143.38 | G63: 1123.77 | H63: 1192.57 | I63: 1212.18 | J63: 1226.97 | K63: 1197.4 | L63: 1163 | M63: 0.48359
A64: 54 | B64: BATAINDIA | C64: 1325.6 | D64: 1328.42 | E64: 1314.83 | F64: 1304.07 | G64: 1290.48 | H64: 1339.18 | I64: 1352.77 | J64: 1363.53 | K64: 1342 | L64: 1317.65 | M64: 4.64571
A65: 55 | B65: BAYERCROP | C65: 5960.7 | D65: 5959.90 | E65: 5920.80 | F65: 5880.90 | G65: 5841.80 | H65: 5999.80 | I65: 6038.90 | J65: 6078.80 | K65: 5999 | L65: 5920 | M65: 0.11573
A66: 56 | B66: BBTC | C66: 1045.35 | D66: 1051.75 | E66: 1028.80 | F66: 1012.25 | G66: 989.30 | H66: 1068.30 | I66: 1091.25 | J66: 1107.80 | K66: 1074.7 | L66: 1035.2 | M66: 0.75691
A67: 57 | B67: BDL | C67: 290.85 | D67: 291.05 | E67: 280.30 | F67: 269.75 | G67: 259.00 | H67: 301.60 | I67: 312.35 | J67: 322.90 | K67: 301.8 | L67: 280.5 | M67: 4.16098
A68: 58 | B68: BEL | C68: 85.3 | D68: 85.18 | E68: 83.92 | F68: 82.53 | G68: 81.27 | H68: 86.57 | I68: 87.83 | J68: 89.22 | K68: 86.45 | L68: 83.8 | M68: 153.75634
A69: 59 | B69: BEML | C69: 646.3 | D69: 646.67 | E69: 635.33 | F69: 624.37 | G69: 613.03 | H69: 657.63 | I69: 668.97 | J69: 679.93 | K69: 658 | L69: 635.7 | M69: 5.46262
A70: 60 | B70: BERGEPAINT | C70: 510.8 | D70: 515.73 | E70: 503.07 | F70: 495.33 | G70: 482.67 | H70: 523.47 | I70: 536.13 | J70: 543.87 | K70: 528.4 | L70: 508 | M70: 13.80256
A71: 61 | B71: BHARATFORG | C71: 352.5 | D71: 355.38 | E71: 347.57 | F71: 342.63 | G71: 334.82 | H71: 360.32 | I71: 368.13 | J71: 373.07 | K71: 363.2 | L71: 350.45 | M71: 12.46484
A72: 62 | B72: BHARTIARTL | C72: 560.4 | D72: 561.32 | E72: 556.23 | F72: 552.07 | G72: 546.98 | H72: 565.48 | I72: 570.57 | J72: 574.73 | K72: 566.4 | L72: 557.15 | M72: 111.09042
A73: 63 | B73: BHEL | C73: 36.9 | D73: 37.37 | E73: 36.03 | F73: 35.17 | G73: 33.83 | H73: 38.23 | I73: 39.57 | J73: 40.43 | K73: 38.7 | L73: 36.5 | M73: 904.85855
A74: 64 | B74: BIOCON | C74: 401.8 | D74: 403.85 | E74: 397.25 | F74: 392.70 | G74: 386.10 | H74: 408.40 | I74: 415.00 | J74: 419.55 | K74: 410.45 | L74: 399.3 | M74: 68.2506
A75: 65 | B75: BIRLACORPN | C75: 595.3 | D75: 598.92 | E75: 587.88 | F75: 580.47 | G75: 569.43 | H75: 606.33 | I75: 617.37 | J75: 624.78 | K75: 609.95 | L75: 591.5 | M75: 1.29563
A76: 66 | B76: BLISSGVS | C76: 97.4 | D76: 98.05 | E76: 95.95 | F76: 94.50 | G76: 92.40 | H76: 99.50 | I76: 101.60 | J76: 103.05 | K76: 100.15 | L76: 96.6 | M76: 2.36479
A77: 67 | B77: BLUEDART | C77: 2008.15 | D77: 2008.72 | E77: 1989.43 | F77: 1970.72 | G77: 1951.43 | H77: 2027.43 | I77: 2046.72 | J77: 2065.43 | K77: 2028 | L77: 1990 | M77: 0.13057
A78: 68 | B78: BLUESTARCO | C78: 505.8 | D78: 508.03 | E78: 501.07 | F78: 496.33 | G78: 489.37 | H78: 512.77 | I78: 519.73 | J78: 524.47 | K78: 515 | L78: 503.3 | M78: 0.69312
A79: 69 | B79: BOMDYEING | C79: 76.5 | D79: 77.03 | E79: 75.67 | F79: 74.83 | G79: 73.47 | H79: 77.87 | I79: 79.23 | J79: 80.07 | K79: 78.4 | L79: 76.2 | M79: 13.13339
A80: 70 | B80: BOSCHLTD | C80: 11213.5 | D80: 11302.02 | E80: 11029.48 | F80: 10845.47 | G80: 10572.93 | H80: 11486.03 | I80: 11758.57 | J80: 11942.58 | K80: 11574.55 | L80: 11118 | M80: 0.39854
A81: 71 | B81: BPCL | C81: 393.65 | D81: 387.87 | E81: 378.78 | F81: 363.92 | G81: 354.83 | H81: 402.73 | I81: 411.82 | J81: 426.68 | K81: 396.95 | L81: 373 | M81: 121.88087
A82: 72 | B82: BRIGADE | C82: 144.05 | D82: 144.25 | E82: 142.80 | F82: 141.55 | G82: 140.10 | H82: 145.50 | I82: 146.95 | J82: 148.20 | K82: 145.7 | L82: 143 | M82: 0.93274
A83: 73 | B83: BRITANNIA | C83: 3456.4 | D83: 3466.87 | E83: 3433.83 | F83: 3411.27 | G83: 3378.23 | H83: 3489.43 | I83: 3522.47 | J83: 3545.03 | K83: 3499.9 | L83: 3444.3 | M83: 4.48352
A84: 74 | B84: BSE | C84: 453.2 | D84: 455.92 | E84: 447.78 | F84: 442.37 | G84: 434.23 | H84: 461.33 | I84: 469.47 | J84: 474.88 | K84: 464.05 | L84: 450.5 | M84: 1.57817
A85: 75 | B85: BSOFT | C85: 92.1 | D85: 92.50 | E85: 88.30 | F85: 84.50 | G85: 80.30 | H85: 96.30 | I85: 100.50 | J85: 104.30 | K85: 96.7 | L85: 88.7 | M85: 26.9953
A86: 76 | B86: CADILAHC | C86: 363.85 | D86: 366.53 | E86: 360.37 | F86: 356.88 | G86: 350.72 | H86: 370.02 | I86: 376.18 | J86: 379.67 | K86: 372.7 | L86: 363.05 | M86: 43.12446
A87: 77 | B87: CANBK | C87: 104.5 | D87: 105.02 | E87: 102.58 | F87: 100.67 | G87: 98.23 | H87: 106.93 | I87: 109.37 | J87: 111.28 | K87: 107.45 | L87: 103.1 | M87: 183.83138
A88: 78 | B88: CANFINHOME | C88: 354.4 | D88: 356.93 | E88: 348.87 | F88: 343.33 | G88: 335.27 | H88: 362.47 | I88: 370.53 | J88: 376.07 | K88: 365 | L88: 351.4 | M88: 3.21865
A89: 79 | B89: CAPLIPOINT | C89: 314.2 | D89: 320.10 | E89: 306.00 | F89: 297.80 | G89: 283.70 | H89: 328.30 | I89: 342.40 | J89: 350.60 | K89: 334.2 | L89: 311.9 | M89: 5.77786
A90: 80 | B90: CARBORUNIV | C90: 273.25 | D90: 271.10 | E90: 267.20 | F90: 261.15 | G90: 257.25 | H90: 277.15 | I90: 281.05 | J90: 287.10 | K90: 275 | L90: 265.05 | M90: 1.93682
A91: 81 | B91: CARERATING | C91: 420.15 | D91: 423.02 | E91: 416.03 | F91: 411.92 | G91: 404.93 | H91: 427.13 | I91: 434.12 | J91: 438.23 | K91: 430 | L91: 418.9 | M91: 0.34075
A92: 82 | B92: CASTROLIND | C92: 128.3 | D92: 129.03 | E92: 126.67 | F92: 125.03 | G92: 122.67 | H92: 130.67 | I92: 133.03 | J92: 134.67 | K92: 131.4 | L92: 127.4 | M92: 23.81617
A93: 83 | B93: CCL | C93: 241.9 | D93: 242.82 | E93: 238.28 | F93: 234.67 | G93: 230.13 | H93: 246.43 | I93: 250.97 | J93: 254.58 | K93: 247.35 | L93: 239.2 | M93: 1.02379
A94: 84 | B94: CDSL | C94: 274.65 | D94: 277.72 | E94: 270.93 | F94: 267.22 | G94: 260.43 | H94: 281.43 | I94: 288.22 | J94: 291.93 | K94: 284.5 | L94: 274 | M94: 3.17901
A95: 85 | B95: CEATLTD | C95: 926.35 | D95: 923.78 | E95: 912.57 | F95: 898.78 | G95: 887.57 | H95: 937.57 | I95: 948.78 | J95: 962.57 | K95: 935 | L95: 910 | M95: 1.26597
A96: 86 | B96: CENTRALBK | C96: 19.8 | D96: 19.20 | E96: 17.95 | F96: 16.10 | G96: 14.85 | H96: 21.05 | I96: 22.30 | J96: 24.15 | K96: 20.45 | L96: 17.35 | M96: 163.17976
A97: 87 | B97: CENTURYPLY | C97: 120.55 | D97: 120.68 | E97: 117.37 | F97: 114.18 | G97: 110.87 | H97: 123.87 | I97: 127.18 | J97: 130.37 | K97: 124 | L97: 117.5 | M97: 11.45621
A98: 88 | B98: CERA | C98: 2216.55 | D98: 2216.85 | E98: 2201.75 | F98: 2186.95 | G98: 2171.85 | H98: 2231.65 | I98: 2246.75 | J98: 2261.55 | K98: 2231.95 | L98: 2202.05 | M98: 0.02456
A99: 89 | B99: CESC | C99: 607.1 | D99: 611.42 | E99: 600.83 | F99: 594.57 | G99: 583.98 | H99: 617.68 | I99: 628.27 | J99: 634.53 | K99: 622 | L99: 605.15 | M99: 1.17861
A100: 90 | B100: CGCL | C100: 160.95 | D100: 160.80 | E100: 156.15 | F100: 151.35 | G100: 146.70 | H100: 165.60 | I100: 170.25 | J100: 175.05 | K100: 165.45 | L100: 156 | M100: 1.37046
A101: 91 | B101: CHALET | C101: 136.75 | D101: 137.12 | E101: 134.73 | F101: 132.72 | G101: 130.33 | H101: 139.13 | I101: 141.52 | J101: 143.53 | K101: 139.5 | L101: 135.1 | M101: 0.74621
A102: 92 | B102: CHAMBLFERT | C102: 144.35 | D102: 145.50 | E102: 142.55 | F102: 140.75 | G102: 137.80 | H102: 147.30 | I102: 150.25 | J102: 152.05 | K102: 148.45 | L102: 143.7 | M102: 5.9062
A103: 93 | B103: CHENNPETRO | C103: 83.7 | D103: 84.33 | E103: 82.67 | F103: 81.63 | G103: 79.97 | H103: 85.37 | I103: 87.03 | J103: 88.07 | K103: 86 | L103: 83.3 | M103: 10.69832
A104: 94 | B104: CHOLAFIN | C104: 201.8 | D104: 204.52 | E104: 197.28 | F104: 192.77 | G104: 185.53 | H104: 209.03 | I104: 216.27 | J104: 220.78 | K104: 211.75 | L104: 200 | M104: 169.97483
A105: 95 | B105: CHOLAHLDNG | C105: 308 | D105: 311.88 | E105: 301.22 | F105: 294.43 | G105: 283.77 | H105: 318.67 | I105: 329.33 | J105: 336.12 | K105: 322.55 | L105: 305.1 | M105: 0.32624
A106: 96 | B106: CIPLA | C106: 634.9 | D106: 636.72 | E106: 629.78 | F106: 624.67 | G106: 617.73 | H106: 641.83 | I106: 648.77 | J106: 653.88 | K106: 643.65 | L106: 631.6 | M106: 38.47867
A107: 97 | B107: COALINDIA | C107: 142.1 | D107: 141.57 | E107: 140.13 | F107: 138.17 | G107: 136.73 | H107: 143.53 | I107: 144.97 | J107: 146.93 | K107: 143 | L107: 139.6 | M107: 80.96021
A108: 98 | B108: COCHINSHIP | C108: 319.6 | D108: 317.45 | E108: 310.40 | F108: 301.20 | G108: 294.15 | H108: 326.65 | I108: 333.70 | J108: 342.90 | K108: 324.5 | L108: 308.25 | M108: 15.88548
A109: 99 | B109: COLPAL | C109: 1391.25 | D109: 1398.52 | E109: 1376.03 | F109: 1360.82 | G109: 1338.33 | H109: 1413.73 | I109: 1436.22 | J109: 1451.43 | K109: 1421 | L109: 1383.3 | M109: 5.04571
A110: 100 | B110: CONCOR | C110: 433.8 | D110: 431.93 | E110: 424.87 | F110: 415.93 | G110: 408.87 | H110: 440.87 | I110: 447.93 | J110: 456.87 | K110: 439 | L110: 423 | M110: 22.28682
A111: 101 | B111: COROMANDEL | C111: 757.35 | D111: 756.80 | E111: 744.80 | F111: 732.25 | G111: 720.25 | H111: 769.35 | I111: 781.35 | J111: 793.90 | K111: 768.8 | L111: 744.25 | M111: 5.0801
A112: 102 | B112: CREDITACC | C112: 517.7 | D112: 525.90 | E112: 505.00 | F112: 492.30 | G112: 471.40 | H112: 538.60 | I112: 559.50 | J112: 572.20 | K112: 546.8 | L112: 513.2 | M112: 2.68705
A113: 103 | B113: CRISIL | C113: 1605.9 | D113: 1603.82 | E113: 1577.63 | F113: 1549.37 | G113: 1523.18 | H113: 1632.08 | I113: 1658.27 | J113: 1686.53 | K113: 1630 | L113: 1575.55 | M113: 0.86879
A114: 104 | B114: CROMPTON | C114: 236.25 | D114: 234.85 | E114: 230.80 | F114: 225.35 | G114: 221.30 | H114: 240.30 | I114: 244.35 | J114: 249.80 | K114: 238.9 | L114: 229.4 | M114: 5.9998
A115: 105 | B115: CUB | C115: 124.4 | D115: 123.97 | E115: 122.93 | F115: 121.47 | G115: 120.43 | H115: 125.43 | I115: 126.47 | J115: 127.93 | K115: 125 | L115: 122.5 | M115: 15.07584
A116: 106 | B116: CUMMINSIND | C116: 410.6 | D116: 411.17 | E116: 404.93 | F116: 399.27 | G116: 393.03 | H116: 416.83 | I116: 423.07 | J116: 428.73 | K116: 417.4 | L116: 405.5 | M116: 15.74985
A117: 107 | B117: CYIENT | C117: 275.5 | D117: 278.02 | E117: 269.68 | F117: 263.87 | G117: 255.53 | H117: 283.83 | I117: 292.17 | J117: 297.98 | K117: 286.35 | L117: 272.2 | M117: 18.55928
A118: 108 | B118: DABUR | C118: 460.35 | D118: 460.12 | E118: 455.28 | F118: 450.22 | G118: 445.38 | H118: 465.18 | I118: 470.02 | J118: 475.08 | K118: 464.95 | L118: 455.05 | M118: 31.02744
A119: 109 | B119: DALBHARAT | C119: 700 | D119: 702.28 | E119: 688.77 | F119: 677.53 | G119: 664.02 | H119: 713.52 | I119: 727.03 | J119: 738.27 | K119: 715.8 | L119: 691.05 | M119: 1.62064
A120: 110 | B120: DBCORP | C120: 77.75 | D120: 77.97 | E120: 76.83 | F120: 75.92 | G120: 74.78 | H120: 78.88 | I120: 80.02 | J120: 80.93 | K120: 79.1 | L120: 77.05 | M120: 3.60125
A121: 111 | B121: DBL | C121: 283.15 | D121: 285.05 | E121: 279.10 | F121: 275.05 | G121: 269.10 | H121: 289.10 | I121: 295.05 | J121: 299.10 | K121: 291 | L121: 281 | M121: 2.25057
A122: 112 | B122: DCAL | C122: 129.55 | D122: 131.97 | E122: 125.93 | F122: 122.32 | G122: 116.28 | H122: 135.58 | I122: 141.62 | J122: 145.23 | K122: 138 | L122: 128.35 | M122: 11.0687
A123: 113 | B123: DCBBANK | C123: 81.75 | D123: 82.25 | E123: 80.70 | F123: 79.65 | G123: 78.10 | H123: 83.30 | I123: 84.85 | J123: 85.90 | K123: 83.8 | L123: 81.2 | M123: 20.7569
A124: 114 | B124: DCMSHRIRAM | C124: 337.8 | D124: 337.63 | E124: 330.27 | F124: 322.73 | G124: 315.37 | H124: 345.17 | I124: 352.53 | J124: 360.07 | K124: 345 | L124: 330.1 | M124: 1.99409
A125: 115 | B125: DEEPAKNTR | C125: 504.1 | D125: 504.85 | E125: 500.45 | F125: 496.80 | G125: 492.40 | H125: 508.50 | I125: 512.90 | J125: 516.55 | K125: 509.25 | L125: 501.2 | M125: 5.29839
A126: 116 | B126: DELTACORP | C126: 92.15 | D126: 92.90 | E126: 90.80 | F126: 89.45 | G126: 87.35 | H126: 94.25 | I126: 96.35 | J126: 97.70 | K126: 95 | L126: 91.55 | M126: 11.25393
A127: 117 | B127: DHFL | C127: 16.05 | D127: 16.15 | E127: 15.85 | F127: 15.65 | G127: 15.35 | H127: 16.35 | I127: 16.65 | J127: 16.85 | K127: 16.45 | L127: 15.95 | M127: 11.44465
A128: 118 | B128: DISHTV | C128: 8.55 | D128: 8.57 | E128: 8.53 | F128: 8.52 | G128: 8.48 | H128: 8.58 | I128: 8.62 | J128: 8.63 | K128: 8.6 | L128: 8.55 | M128: 62.49261
A129: 119 | B129: DIVISLAB | C129: 2350.75 | D129: 2355.07 | E129: 2328.23 | F129: 2305.72 | G129: 2278.88 | H129: 2377.58 | I129: 2404.42 | J129: 2426.93 | K129: 2381.9 | L129: 2332.55 | M129: 4.9712
A130: 120 | B130: DIXON | C130: 5578.6 | D130: 5633.42 | E130: 5491.88 | F130: 5405.17 | G130: 5263.63 | H130: 5720.13 | I130: 5861.67 | J130: 5948.38 | K130: 5774.95 | L130: 5546.7 | M130: 0.35068
A131: 121 | B131: DLF | C131: 154.4 | D131: 155.30 | E131: 151.45 | F131: 148.50 | G131: 144.65 | H131: 158.25 | I131: 162.10 | J131: 165.05 | K131: 159.15 | L131: 152.35 | M131: 105.24946
A132: 122 | B132: DMART | C132: 2294.4 | D132: 2307.42 | E132: 2276.98 | F132: 2259.57 | G132: 2229.13 | H132: 2324.83 | I132: 2355.27 | J132: 2372.68 | K132: 2337.85 | L132: 2290 | M132: 2.03494
A133: 123 | B133: DRREDDY | C133: 3998.6 | D133: 4009.53 | E133: 3954.07 | F133: 3909.53 | G133: 3854.07 | H133: 4054.07 | I133: 4109.53 | J133: 4154.07 | K133: 4065 | L133: 3965 | M133: 7.43912
A134: 124 | B134: ECLERX | C134: 445.05 | D134: 447.50 | E134: 439.05 | F134: 433.05 | G134: 424.60 | H134: 453.50 | I134: 461.95 | J134: 467.95 | K134: 455.95 | L134: 441.5 | M134: 0.79209
A135: 125 | B135: EDELWEISS | C135: 57 | D135: 56.92 | E135: 56.83 | F135: 56.67 | G135: 56.58 | H135: 57.08 | I135: 57.17 | J135: 57.33 | K135: 57 | L135: 56.75 | M135: 7.04665
A136: 126 | B136: EICHERMOT | C136: 18473.4 | D136: 18373.83 | E136: 18196.57 | F136: 17919.73 | G136: 17742.47 | H136: 18650.67 | I136: 18827.93 | J136: 19104.77 | K136: 18551.1 | L136: 18097 | M136: 2.24886
A137: 127 | B137: EIDPARRY | C137: 272.4 | D137: 273.38 | E137: 268.07 | F137: 263.73 | G137: 258.42 | H137: 277.72 | I137: 283.03 | J137: 287.37 | K137: 278.7 | L137: 269.05 | M137: 4.09151
A138: 128 | B138: EIHOTEL | C138: 65.9 | D138: 66.53 | E138: 64.82 | F138: 63.73 | G138: 62.02 | H138: 67.62 | I138: 69.33 | J138: 70.42 | K138: 68.25 | L138: 65.45 | M138: 6.56735
A139: 129 | B139: ELGIEQUIP | C139: 154.1 | D139: 154.87 | E139: 152.83 | F139: 151.57 | G139: 149.53 | H139: 156.13 | I139: 158.17 | J139: 159.43 | K139: 156.9 | L139: 153.6 | M139: 0.98678
A140: 130 | B140: EMAMILTD | C140: 220.95 | D140: 222.87 | E140: 212.28 | F140: 203.62 | G140: 193.03 | H140: 231.53 | I140: 242.12 | J140: 250.78 | K140: 233.45 | L140: 214.2 | M140: 27.40475
A141: 131 | B141: ENDURANCE | C141: 895.9 | D141: 903.50 | E141: 882.40 | F141: 868.90 | G141: 847.80 | H141: 917.00 | I141: 938.10 | J141: 951.60 | K141: 924.6 | L141: 890 | M141: 2.4285
A142: 132 | B142: ENGINERSIN | C142: 79.9 | D142: 79.02 | E142: 77.28 | F142: 74.67 | G142: 72.93 | H142: 81.63 | I142: 83.37 | J142: 85.98 | K142: 80.75 | L142: 76.4 | M142: 114.09751
A143: 133 | B143: EQUITAS | C143: 55.35 | D143: 55.33 | E143: 54.07 | F143: 52.78 | G143: 51.52 | H143: 56.62 | I143: 57.88 | J143: 59.17 | K143: 56.6 | L143: 54.05 | M143: 203.4612
A144: 134 | B144: ERIS | C144: 467.65 | D144: 469.95 | E144: 463.90 | F144: 460.15 | G144: 454.10 | H144: 473.70 | I144: 479.75 | J144: 483.50 | K144: 476 | L144: 466.2 | M144: 0.32159
A145: 135 | B145: ESCORTS | C145: 1017.35 | D145: 1022.62 | E145: 1000.13 | F145: 982.92 | G145: 960.43 | H145: 1039.83 | I145: 1062.32 | J145: 1079.53 | K145: 1045.1 | L145: 1005.4 | M145: 21.40776
A146: 136 | B146: ESSELPACK | C146: 185.35 | D146: 184.45 | E146: 181.90 | F146: 178.45 | G146: 175.90 | H146: 187.90 | I146: 190.45 | J146: 193.90 | K146: 187 | L146: 181 | M146: 0.80026
A147: 137 | B147: EXIDEIND | C147: 148.9 | D147: 149.85 | E147: 147.55 | F147: 146.20 | G147: 143.90 | H147: 151.20 | I147: 153.50 | J147: 154.85 | K147: 152.15 | L147: 148.5 | M147: 50.30192
A148: 138 | B148: FCONSUMER | C148: 18.35 | D148: 18.35 | E148: 18.35 | F148: 18.35 | G148: 18.35 | H148: 18.35 | I148: 18.35 | J148: 18.35 | K148: 18.35 | L148: 18.35 | M148: 3.11217
A149: 139 | B149: FDC | C149: 273.15 | D149: 275.20 | E149: 268.90 | F149: 264.65 | G149: 258.35 | H149: 279.45 | I149: 285.75 | J149: 290.00 | K149: 281.5 | L149: 270.95 | M149: 2.8915
A150: 140 | B150: FEDERALBNK | C150: 53.45 | D150: 53.73 | E150: 52.52 | F150: 51.58 | G150: 50.37 | H150: 54.67 | I150: 55.88 | J150: 56.82 | K150: 54.95 | L150: 52.8 | M150: 391.74675
A151: 141 | B151: FINCABLES | C151: 298.35 | D151: 300.43 | E151: 293.37 | F151: 288.38 | G151: 281.32 | H151: 305.42 | I151: 312.48 | J151: 317.47 | K151: 307.5 | L151: 295.45 | M151: 0.84369
A152: 142 | B152: FINEORG | C152: 1894.7 | D152: 1902.85 | E152: 1881.85 | F152: 1869.00 | G152: 1848.00 | H152: 1915.70 | I152: 1936.70 | J152: 1949.55 | K152: 1923.85 | L152: 1890 | M152: 0.06246
A153: 143 | B153: FINPIPE | C153: 520.4 | D153: 512.87 | E153: 495.23 | F153: 470.07 | G153: 452.43 | H153: 538.03 | I153: 555.67 | J153: 580.83 | K153: 530.5 | L153: 487.7 | M153: 2.1971
A154: 144 | B154: FLFL | C154: 149.8 | D154: 146.07 | E154: 142.33 | F154: 134.87 | G154: 131.13 | H154: 153.53 | I154: 157.27 | J154: 164.73 | K154: 149.8 | L154: 138.6 | M154: 2.96696
A155: 145 | B155: FMGOETZE | C155: 404.25 | D155: 407.12 | E155: 397.33 | F155: 390.42 | G155: 380.63 | H155: 414.03 | I155: 423.82 | J155: 430.73 | K155: 416.9 | L155: 400.2 | M155: 0.03316
A156: 146 | B156: FORTIS | C156: 123.35 | D156: 124.08 | E156: 122.27 | F156: 121.18 | G156: 119.37 | H156: 125.17 | I156: 126.98 | J156: 128.07 | K156: 125.9 | L156: 123 | M156: 15.79278
A157: 147 | B157: FRETAIL | C157: 142.4 | D157: 141.27 | E157: 140.13 | F157: 137.87 | G157: 136.73 | H157: 143.53 | I157: 144.67 | J157: 146.93 | K157: 142.4 | L157: 139 | M157: 50.5848
A158: 148 | B158: FSL | C158: 38.3 | D158: 38.70 | E158: 37.60 | F158: 36.90 | G158: 35.80 | H158: 39.40 | I158: 40.50 | J158: 41.20 | K158: 39.8 | L158: 38 | M158: 18.30038
A159: 149 | B159: GAIL | C159: 105.15 | D159: 104.47 | E159: 103.43 | F159: 101.72 | G159: 100.68 | H159: 106.18 | I159: 107.22 | J159: 108.93 | K159: 105.5 | L159: 102.75 | M159: 206.91407
A160: 150 | B160: GALAXYSURF | C160: 1432.3 | D160: 1443.77 | E160: 1408.53 | F160: 1384.77 | G160: 1349.53 | H160: 1467.53 | I160: 1502.77 | J160: 1526.53 | K160: 1479 | L160: 1420 | M160: 0.32752
A161: 151 | B161: GARFIBRES | C161: 1400.75 | D161: 1402.85 | E161: 1381.80 | F161: 1362.85 | G161: 1341.80 | H161: 1421.80 | I161: 1442.85 | J161: 1461.80 | K161: 1423.9 | L161: 1383.9 | M161: 0.08931
A162: 152 | B162: GAYAPROJ | C162: 16.85 | D162: 16.92 | E162: 16.38 | F162: 15.92 | G162: 15.38 | H162: 17.38 | I162: 17.92 | J162: 18.38 | K162: 17.45 | L162: 16.45 | M162: 6.51778
A163: 153 | B163: GEPIL | C163: 475.7 | D163: 475.42 | E163: 470.28 | F163: 464.87 | G163: 459.73 | H163: 480.83 | I163: 485.97 | J163: 491.38 | K163: 480.55 | L163: 470 | M163: 0.27255
A164: 154 | B164: GESHIP | C164: 219.2 | D164: 219.18 | E164: 215.52 | F164: 211.83 | G164: 208.17 | H164: 222.87 | I164: 226.53 | J164: 230.22 | K164: 222.85 | L164: 215.5 | M164: 7.54551
A165: 155 | B165: GET&D | C165: 80.35 | D165: 80.65 | E165: 77.50 | F165: 74.65 | G165: 71.50 | H165: 83.50 | I165: 86.65 | J165: 89.50 | K165: 83.8 | L165: 77.8 | M165: 1.13901
A166: 156 | B166: GHCL | C166: 138.65 | D166: 140.62 | E166: 136.23 | F166: 133.82 | G166: 129.43 | H166: 143.03 | I166: 147.42 | J166: 149.83 | K166: 145 | L166: 138.2 | M166: 1.39649
A167: 157 | B167: GICRE | C167: 154.9 | D167: 156.93 | E167: 151.97 | F167: 149.03 | G167: 144.07 | H167: 159.87 | I167: 164.83 | J167: 167.77 | K167: 161.9 | L167: 154 | M167: 5.81363
A168: 158 | B168: GILLETTE | C168: 4985.35 | D168: 4965.65 | E168: 4920.30 | F168: 4855.25 | G168: 4809.90 | H168: 5030.70 | I168: 5076.05 | J168: 5141.10 | K168: 5011 | L168: 4900.6 | M168: 0.13694
A169: 159 | B169: GLAXO | C169: 1481.1 | D169: 1493.70 | E169: 1466.40 | F169: 1451.70 | G169: 1424.40 | H169: 1508.40 | I169: 1535.70 | J169: 1550.40 | K169: 1521 | L169: 1479 | M169: 0.28565
A170: 160 | B170: GLENMARK | C170: 466.7 | D170: 468.67 | E170: 459.58 | F170: 452.47 | G170: 443.38 | H170: 475.78 | I170: 484.87 | J170: 491.98 | K170: 477.75 | L170: 461.55 | M170: 111.05234
A171: 161 | B171: GMDCLTD | C171: 41.8 | D171: 42.20 | E171: 41.20 | F171: 40.60 | G171: 39.60 | H171: 42.80 | I171: 43.80 | J171: 44.40 | K171: 43.2 | L171: 41.6 | M171: 7.1875
A172: 162 | B172: GMRINFRA | C172: 20.4 | D172: 20.52 | E172: 20.23 | F172: 20.07 | G172: 19.78 | H172: 20.68 | I172: 20.97 | J172: 21.13 | K172: 20.8 | L172: 20.35 | M172: 81.38699
A173: 163 | B173: GNFC | C173: 161.1 | D173: 162.17 | E173: 159.03 | F173: 156.97 | G173: 153.83 | H173: 164.23 | I173: 167.37 | J173: 169.43 | K173: 165.3 | L173: 160.1 | M173: 14.34353
A174: 164 | B174: GODFRYPHLP | C174: 996.55 | D174: 1001.17 | E174: 988.38 | F174: 980.22 | G174: 967.43 | H174: 1009.33 | I174: 1022.12 | J174: 1030.28 | K174: 1013.95 | L174: 993 | M174: 0.3994
A175: 165 | B175: GODREJAGRO | C175: 457.2 | D175: 457.77 | E175: 451.73 | F175: 446.27 | G175: 440.23 | H175: 463.23 | I175: 469.27 | J175: 474.73 | K175: 463.8 | L175: 452.3 | M175: 2.06858
A176: 166 | B176: GODREJCP | C176: 685.45 | D176: 687.08 | E176: 677.37 | F176: 669.28 | G176: 659.57 | H176: 695.17 | I176: 704.88 | J176: 712.97 | K176: 696.8 | L176: 679 | M176: 15.15673
A177: 167 | B177: GODREJIND | C177: 421.45 | D177: 422.82 | E177: 418.63 | F177: 415.82 | G177: 411.63 | H177: 425.63 | I177: 429.82 | J177: 432.63 | K177: 427 | L177: 420 | M177: 1.41352
A178: 168 | B178: GODREJPROP | C178: 868.25 | D178: 872.08 | E178: 853.17 | F178: 838.08 | G178: 819.17 | H178: 887.17 | I178: 906.08 | J178: 921.17 | K178: 891 | L178: 857 | M178: 2.34046
A179: 169 | B179: GPPL | C179: 78.55 | D179: 79.52 | E179: 76.63 | F179: 74.72 | G179: 71.83 | H179: 81.43 | I179: 84.32 | J179: 86.23 | K179: 82.4 | L179: 77.6 | M179: 4.77415
A180: 170 | B180: GRANULES | C180: 205.4 | D180: 206.32 | E180: 203.63 | F180: 201.87 | G180: 199.18 | H180: 208.08 | I180: 210.77 | J180: 212.53 | K180: 209 | L180: 204.55 | M180: 9.24511
A181: 171 | B181: GRAPHITE | C181: 188.1 | D181: 189.17 | E181: 186.53 | F181: 184.97 | G181: 182.33 | H181: 190.73 | I181: 193.37 | J181: 194.93 | K181: 191.8 | L181: 187.6 | M181: 2.40197
A182: 172 | B182: GRASIM | C182: 616.15 | D182: 617.50 | E182: 608.65 | F182: 601.15 | G182: 592.30 | H182: 625.00 | I182: 633.85 | J182: 641.35 | K182: 626.35 | L182: 610 | M182: 17.60688
A183: 173 | B183: GREAVESCOT | C183: 87.05 | D183: 87.50 | E183: 86.30 | F183: 85.55 | G183: 84.35 | H183: 88.25 | I183: 89.45 | J183: 90.20 | K183: 88.7 | L183: 86.75 | M183: 3.36802
A184: 174 | B184: GRINDWELL | C184: 498.2 | D184: 494.98 | E184: 488.07 | F184: 477.93 | G184: 471.02 | H184: 505.12 | I184: 512.03 | J184: 522.17 | K184: 501.9 | L184: 484.85 | M184: 0.16781
A185: 175 | B185: GSFC | C185: 55.25 | D185: 55.52 | E185: 54.03 | F185: 52.82 | G185: 51.33 | H185: 56.73 | I185: 58.22 | J185: 59.43 | K185: 57 | L185: 54.3 | M185: 31.07826
A186: 176 | B186: GSPL | C186: 215.55 | D186: 215.48 | E186: 213.12 | F186: 210.68 | G186: 208.32 | H186: 217.92 | I186: 220.28 | J186: 222.72 | K186: 217.85 | L186: 213.05 | M186: 5.49246
A187: 177 | B187: GUJALKALI | C187: 328.9 | D187: 330.10 | E187: 325.80 | F187: 322.70 | G187: 318.40 | H187: 333.20 | I187: 337.50 | J187: 340.60 | K187: 334.4 | L187: 327 | M187: 0.51703
A188: 178 | B188: GUJGASLTD | C188: 306.9 | D188: 309.95 | E188: 300.40 | F188: 293.90 | G188: 284.35 | H188: 316.45 | I188: 326.00 | J188: 332.50 | K188: 319.5 | L188: 303.45 | M188: 24.47867
A189: 179 | B189: GULFOILLUB | C189: 614.2 | D189: 617.45 | E189: 607.90 | F189: 601.60 | G189: 592.05 | H189: 623.75 | I189: 633.30 | J189: 639.60 | K189: 627 | L189: 611.15 | M189: 0.64165
A190: 180 | B190: HAL | C190: 761.75 | D190: 770.57 | E190: 745.18 | F190: 728.62 | G190: 703.23 | H190: 787.13 | I190: 812.52 | J190: 829.08 | K190: 795.95 | L190: 754 | M190: 3.09514
A191: 181 | B191: HATSUN | C191: 670.25 | D191: 670.68 | E191: 664.57 | F191: 658.88 | G191: 652.77 | H191: 676.37 | I191: 682.48 | J191: 688.17 | K191: 676.8 | L191: 665 | M191: 0.30226
A192: 182 | B192: HAVELLS | C192: 585.45 | D192: 586.30 | E192: 579.20 | F192: 572.95 | G192: 565.85 | H192: 592.55 | I192: 599.65 | J192: 605.90 | K192: 593.4 | L192: 580.05 | M192: 22.62112
A193: 183 | B193: HCLTECH | C193: 562.4 | D193: 560.43 | E193: 546.97 | F193: 531.53 | G193: 518.07 | H193: 575.87 | I193: 589.33 | J193: 604.77 | K193: 573.9 | L193: 545 | M193: 70.34881
A194: 184 | B194: HDFC | C194: 1769.35 | D194: 1773.88 | E194: 1747.87 | F194: 1726.38 | G194: 1700.37 | H194: 1795.37 | I194: 1821.38 | J194: 1842.87 | K194: 1799.9 | L194: 1752.4 | M194: 57.31517
A195: 185 | B195: HDFCAMC | C195: 2488.1 | D195: 2480.47 | E195: 2457.63 | F195: 2427.17 | G195: 2404.33 | H195: 2510.93 | I195: 2533.77 | J195: 2564.23 | K195: 2503.3 | L195: 2450 | M195: 4.61927
A196: 186 | B196: HDFCBANK | C196: 1056.45 | D196: 1049.15 | E196: 1035.30 | F196: 1014.15 | G196: 1000.30 | H196: 1070.30 | I196: 1084.15 | J196: 1105.30 | K196: 1063 | L196: 1028 | M196: 199.86677
A197: 187 | B197: HDFCLIFE | C197: 541.9 | D197: 541.45 | E197: 535.45 | F197: 529.00 | G197: 523.00 | H197: 547.90 | I197: 553.90 | J197: 560.35 | K197: 547.45 | L197: 535 | M197: 25.86687
A198: 188 | B198: HEG | C198: 875.55 | D198: 881.55 | E198: 866.00 | F198: 856.45 | G198: 840.90 | H198: 891.10 | I198: 906.65 | J198: 916.20 | K198: 897.1 | L198: 872 | M198: 1.39107
A199: 189 | B199: HEIDELBERG | C199: 181.65 | D199: 182.22 | E199: 179.78 | F199: 177.92 | G199: 175.48 | H199: 184.08 | I199: 186.52 | J199: 188.38 | K199: 184.65 | L199: 180.35 | M199: 3.40681
A200: 190 | B200: HERITGFOOD | C200: 269.85 | D200: 271.63 | E200: 265.27 | F200: 260.68 | G200: 254.32 | H200: 276.22 | I200: 282.58 | J200: 287.17 | K200: 278 | L200: 267.05 | M200: 0.4231
A201: 191 | B201: HEROMOTOCO | C201: 2540.45 | D201: 2553.97 | E201: 2517.28 | F201: 2494.12 | G201: 2457.43 | H201: 2577.13 | I201: 2613.82 | J201: 2636.98 | K201: 2590.65 | L201: 2530.8 | M201: 13.51765
A202: 192 | B202: HEXAWARE | C202: 326.95 | D202: 326.37 | E202: 322.93 | F202: 318.92 | G202: 315.48 | H202: 330.38 | I202: 333.82 | J202: 337.83 | K202: 329.8 | L202: 322.35 | M202: 21.80175
A203: 193 | B203: HFCL | C203: 15.25 | D203: 15.07 | E203: 14.88 | F203: 14.52 | G203: 14.33 | H203: 15.43 | I203: 15.62 | J203: 15.98 | K203: 15.25 | L203: 14.7 | M203: 122.83886
A204: 194 | B204: HIMATSEIDE | C204: 67.45 | D204: 67.77 | E204: 65.58 | F204: 63.72 | G204: 61.53 | H204: 69.63 | I204: 71.82 | J204: 73.68 | K204: 69.95 | L204: 65.9 | M204: 11.6354
A205: 195 | B205: HINDALCO | C205: 151.05 | D205: 150.42 | E205: 148.83 | F205: 146.62 | G205: 145.03 | H205: 152.63 | I205: 154.22 | J205: 156.43 | K205: 152 | L205: 148.2 | M205: 121.07609
A206: 196 | B206: HINDCOPPER | C206: 33.15 | D206: 33.30 | E206: 32.65 | F206: 32.15 | G206: 31.50 | H206: 33.80 | I206: 34.45 | J206: 34.95 | K206: 33.95 | L206: 32.8 | M206: 9.99629
... 321 more rows

Sheet Bulk Deals
E6: Back To Main Page
A7: Subject : | B7: BULK DEAL | D7: =Main!B10 -> 2020-06-29
A9: Date | B9: Scrip code | C9: Scrip Name | D9: Client Name | E9: Buy / Sell | F9: Quantity Traded | G9: Trade Price / Wt.Avg.trade price | H9: Exchange
A10: 2020-06-26 | B10: 540697 | C10: AMFL | D10: NAVEEN GUPTA | E10: BUY | F10: 82,625 | G10: 6.63 | H10: BSE
A11: 2020-06-26 | B11: 540697 | C11: AMFL | D11: NAVEEN GUPTA | E11: SELL | F11: 82,625 | G11: 6.62 | H11: BSE
A12: 2020-06-26 | B12: 540697 | C12: AMFL | D12: ANAL PRATISH SHAH | E12: BUY | F12: 90,959 | G12: 6.59 | H12: BSE
A13: 2020-06-26 | B13: 540697 | C13: AMFL | D13: ANAL PRATISH SHAH | E13: SELL | F13: 385,166 | G13: 6.65 | H13: BSE
A14: 2020-06-26 | B14: 540697 | C14: AMFL | D14: DEVABHAI NAGJIBHAI DESAI | E14: BUY | F14: 93,080 | G14: 6.6 | H14: BSE
A15: 2020-06-26 | B15: 540697 | C15: AMFL | D15: DEVABHAI NAGJIBHAI DESAI | E15: SELL | F15: 136,730 | G15: 6.62 | H15: BSE
A16: 2020-06-26 | B16: 540697 | C16: AMFL | D16: HETAL ARUNKUMAR PRAJAPATI | E16: BUY | F16: 75,202 | G16: 6.65 | H16: BSE
A17: 2020-06-26 | B17: 542865 | C17: ANUROOP | D17: SHERWOOD SECURITIES PVT LTD | E17: BUY | F17: 40,000 | G17: 10.28 | H17: BSE
A18: 2020-06-26 | B18: 542865 | C18: ANUROOP | D18: SHERWOOD SECURITIES PVT LTD | E18: SELL | F18: 40,000 | G18: 10.39 | H18: BSE
A19: 2020-06-26 | B19: 542934 | C19: CBPL | D19: BEELINE BROKING LIMITED | E19: SELL | F19: 38,000 | G19: 45.5 | H19: BSE
A20: 2020-06-26 | B20: 539800 | C20: CHDCHEM | D20: REENA SHARMA | E20: SELL | F20: 52,000 | G20: 49.65 | H20: BSE
A21: 2020-06-26 | B21: 539770 | C21: DARJEELING | D21: ARCADIA SHARE & STOCK BROKERS PVT. LTD | E21: BUY | F21: 26,401 | G21: 5.41 | H21: BSE
A22: 2020-06-26 | B22: 540268 | C22: DHANVARSHA | D22: KLEIO TRADECON LLP . | E22: SELL | F22: 134,873 | G22: 106 | H22: BSE
A23: 2020-06-26 | B23: 540268 | C23: DHANVARSHA | D23: ASHWIN KAMDAR (HUF) | E23: BUY | F23: 134,864 | G23: 106 | H23: BSE
A24: 2020-06-26 | B24: 504697 | C24: GALADA | D24: SONA BISCUITS LIMITED | E24: BUY | F24: 50,660 | G24: 0.66 | H24: BSE
A25: 2020-06-26 | B25: 504697 | C25: GALADA | D25: IDBI BANK LIMITED | E25: SELL | F25: 50,000 | G25: 0.66 | H25: BSE
A26: 2020-06-26 | B26: 533248 | C26: GPPL | D26: APM TERMINALS MAURITIUS LIMITED | E26: BUY | F26: 4,835,000 | G26: 89.99 | H26: BSE
A27: 2020-06-26 | B27: 541627 | C27: HITECHWIND | D27: KRUTI KEVIN KAPADIA | E27: BUY | F27: 38,000 | G27: 18.15 | H27: BSE
A28: 2020-06-26 | B28: 542935 | C28: ICLORGANIC | D28: GIRIRAJ FINANCIAL SERVICES PVT LTD | E28: BUY | F28: 48,000 | G28: 21.36 | H28: BSE
A29: 2020-06-26 | B29: 542935 | C29: ICLORGANIC | D29: GIRIRAJ FINANCIAL SERVICES PVT LTD | E29: SELL | F29: 6,000 | G29: 21.9 | H29: BSE
A30: 2020-06-26 | B30: 542935 | C30: ICLORGANIC | D30: WEALTH CAPITAL ADVISORS | E30: SELL | F30: 36,000 | G30: 21.24 | H30: BSE
A31: 2020-06-26 | B31: 538765 | C31: JSHL | D31: NITIN JAISWAL | E31: SELL | F31: 35,000 | G31: 28.11 | H31: BSE
A32: 2020-06-26 | B32: 538765 | C32: JSHL | D32: BISWANATHMUKHERJEE | E32: BUY | F32: 45,000 | G32: 27.89 | H32: BSE
A33: 2020-06-26 | B33: 542323 | C33: KPIGLOBAL | D33: KAMAL KUMAR KABRA | E33: BUY | F33: 123,200 | G33: 25.99 | H33: BSE
A34: 2020-06-26 | B34: 542323 | C34: KPIGLOBAL | D34: PARISHI KABRA | E34: SELL | F34: 123,200 | G34: 25.99 | H34: BSE
A35: 2020-06-26 | B35: 531952 | C35: RIBATEX | D35: KABIR SHRAN DAGAR | E35: BUY | F35: 79,726 | G35: 58.46 | H35: BSE
A36: 2020-06-26 | B36: 531952 | C36: RIBATEX | D36: KABIR SHRAN DAGAR | E36: SELL | F36: 17,093 | G36: 59.22 | H36: BSE
A37: 2020-06-26 | B37: 526650 | C37: TFCILTD | D37: BEACON TRUSTEESHIP LIMITED | E37: SELL | F37: 418,197 | G37: 35.5 | H37: BSE
A38: 2020-06-26 | B38: ANDHRAPAP | C38: ANDHRA PAPER LIMITED | D38: LIMITED BRIGHT STAR INVESTMENTS PRIVATE | E38: BUY | F38: 500,000 | G38: 206.23 | H38: NSE
A39: 2020-06-26 | B39: ANDHRAPAP | C39: ANDHRA PAPER LIMITED | D39: NIMI ENTERPRISES | E39: BUY | F39: 2,331 | G39: 212.2 | H39: NSE
A40: 2020-06-26 | B40: BALAMINES | C40: Balaji Amines Limited | D40: N.K.SECURITIES | E40: BUY | F40: 211,348 | G40: 515.26 | H40: NSE
A41: 2020-06-26 | B41: BHEL | C41: Bharat Heavy Elect Ltd. | D41: HRTI PRIVATE LIMITED | E41: BUY | F41: 17,577,990 | G41: 37.37 | H41: NSE
A42: 2020-06-26 | B42: EQUITAS | C42: Equitas Holdings Limited | D42: TOWER RESEARCH CAPITAL MARKETS INDIA PRIVATE LIMITED | E42: BUY | F42: 1,856,598 | G42: 55.46 | H42: NSE
A43: 2020-06-26 | B43: EVEREADY | C43: Eveready Industries India | D43: DOVETAIL INDIA FUND CLASS 6 SHARES | E43: BUY | F43: 480,000 | G43: 79.05 | H43: NSE
A44: 2020-06-26 | B44: GLOBE | C44: Globe Textiles (I) Ltd. | D44: VORA PRANAV PRAFULCHANDRA | E44: BUY | F44: 54,000 | G44: 30.75 | H44: NSE
A45: 2020-06-26 | B45: IBULHSGFIN | C45: Indiabulls Hsg Fin Ltd | D45: TOWER RESEARCH CAPITAL MARKETS INDIA PRIVATE LIMITED | E45: BUY | F45: 3,497,258 | G45: 228.84 | H45: NSE
A46: 2020-06-26 | B46: IBULHSGFIN | C46: Indiabulls Hsg Fin Ltd | D46: SURJECTIVE RESEARCH CAPITAL LLP | E46: BUY | F46: 2,248,113 | G46: 227.83 | H46: NSE
A47: 2020-06-26 | B47: IDEA | C47: Vodafone Idea Limited | D47: TOTAL COMMODITIES (I) PVT. LTD | E47: BUY | F47: 160,995,554 | G47: 10.32 | H47: NSE
A48: 2020-06-26 | B48: NCC | C48: NCC Limited | D48: HRTI PRIVATE LIMITED | E48: BUY | F48: 4,135,116 | G48: 31.58 | H48: NSE
A49: 2020-06-26 | B49: NCC | C49: NCC Limited | D49: TOWER RESEARCH CAPITAL MARKETS INDIA PRIVATE LIMITED | E49: BUY | F49: 3,473,327 | G49: 31.7 | H49: NSE
A50: 2020-06-26 | B50: RMDRIP | C50: R M Drip & Sprink Sys Ltd | D50: PUSHKAR VINAY DATE | E50: BUY | F50: 34,000 | G50: 49.75 | H50: NSE
A51: 2020-06-26 | B51: SYNCOM | C51: Syncom Healthcare Ltd | D51: VISHWAMURTE TRAD INVEST PE LTD | E51: BUY | F51: 250,000 | G51: 2.8 | H51: NSE
A52: 2020-06-26 | B52: SYNCOM | C52: Syncom Healthcare Ltd | D52: NUPUR ANIL SHAH | E52: BUY | F52: 1,370,000 | G52: 2.8 | H52: NSE
A53: 2020-06-26 | B53: SYNCOM | C53: Syncom Healthcare Ltd | D53: ARCADIA SHARE & STOCK BROKERS PVT. LTD. | E53: BUY | F53: 1,100,000 | G53: 2.8 | H53: NSE
A54: 2020-06-26 | B54: SYNCOM | C54: Syncom Healthcare Ltd | D54: NARAYANASAMY AYYASAMY | E54: BUY | F54: 250,000 | G54: 2.8 | H54: NSE
A55: 2020-06-26 | B55: SYNCOM | C55: Syncom Healthcare Ltd | D55: ALPHA LEON ENTERPRISES LLP | E55: BUY | F55: 500,000 | G55: 2.8 | H55: NSE
A56: 2020-06-26 | B56: TFCILTD | C56: Tourism Finance Corp | D56: RAJASTHAN GLOBAL SECURITIES PVT LTD | E56: BUY | F56: 688,081 | G56: 35.47 | H56: NSE
A57: 2020-06-26 | B57: TI | C57: Tilaknagar Industries Ltd | D57: KISHORKUMAR SOBHAGCHAND MORBIA | E57: BUY | F57: 94 | G57: 20.4 | H57: NSE
A58: 2020-06-26 | B58: UJJIVAN | C58: Ujjivan Fin. Servc. Ltd. | D58: SURJECTIVE RESEARCH CAPITAL LLP | E58: BUY | F58: 730,197 | G58: 232.32 | H58: NSE
A59: 2020-06-26 | B59: ALCHEM | C59: Alchemist Ltd | D59: HANSABEN HASMUKHBHAI AMIN | E59: SELL | F59: 77,065 | G59: 5.45 | H59: NSE
A60: 2020-06-26 | B60: ANDHRAPAP | C60: ANDHRA PAPER LIMITED | D60: NIMI ENTERPRISES | E60: SELL | F60: 244,203 | G60: 209.18 | H60: NSE
A61: 2020-06-26 | B61: BALAMINES | C61: Balaji Amines Limited | D61: N.K.SECURITIES | E61: SELL | F61: 211,348 | G61: 515.79 | H61: NSE
A62: 2020-06-26 | B62: BHEL | C62: Bharat Heavy Elect Ltd. | D62: HRTI PRIVATE LIMITED | E62: SELL | F62: 17,577,990 | G62: 37.42 | H62: NSE
A63: 2020-06-26 | B63: EQUITAS | C63: Equitas Holdings Limited | D63: TOWER RESEARCH CAPITAL MARKETS INDIA PRIVATE LIMITED | E63: SELL | F63: 1,856,598 | G63: 55.36 | H63: NSE
A64: 2020-06-26 | B64: EVEREADY | C64: Eveready Industries India | D64: SANTOSH INDUSTRIES LTD | E64: SELL | F64: 415,156 | G64: 79.05 | H64: NSE
A65: 2020-06-26 | B65: IBULHSGFIN | C65: Indiabulls Hsg Fin Ltd | D65: TOWER RESEARCH CAPITAL MARKETS INDIA PRIVATE LIMITED | E65: SELL | F65: 3,519,005 | G65: 229.05 | H65: NSE
A66: 2020-06-26 | B66: IBULHSGFIN | C66: Indiabulls Hsg Fin Ltd | D66: SURJECTIVE RESEARCH CAPITAL LLP | E66: SELL | F66: 2,254,152 | G66: 227.99 | H66: NSE
A67: 2020-06-26 | B67: IDEA | C67: Vodafone Idea Limited | D67: TOTAL COMMODITIES (I) PVT. LTD | E67: SELL | F67: 155,535,663 | G67: 10.31 | H67: NSE
A68: 2020-06-26 | B68: MANGCHEFER | C68: Mangalore Chemicals & Fer | D68: RECOVERY OFFICER I DRT II | E68: SELL | F68: 595,174 | G68: 40.92 | H68: NSE
A69: 2020-06-26 | B69: MERCATOR | C69: Mercator Limited | D69: ARCADIA SHARE & STOCK BROKERS PVT. LTD. | E69: SELL | F69: 5,000,000 | G69: 1.4 | H69: NSE
A70: 2020-06-26 | B70: NCC | C70: NCC Limited | D70: TOWER RESEARCH CAPITAL MARKETS INDIA PRIVATE LIMITED | E70: SELL | F70: 3,351,909 | G70: 31.81 | H70: NSE
A71: 2020-06-26 | B71: NCC | C71: NCC Limited | D71: HRTI PRIVATE LIMITED | E71: SELL | F71: 4,135,116 | G71: 31.7 | H71: NSE
A72: 2020-06-26 | B72: ORIENTALTL | C72: Oriental Trimex Limited | D72: CAPSTON CAPITAL PARTNERS | E72: SELL | F72: 196,308 | G72: 14.9 | H72: NSE
A73: 2020-06-26 | B73: SYNCOM | C73: Syncom Healthcare Ltd | D73: PRATIK BANKDA | E73: SELL | F73: 5,011,647 | G73: 2.8 | H73: NSE
A74: 2020-06-26 | B74: TFCILTD | C74: Tourism Finance Corp | D74: RAJASTHAN GLOBAL SECURITIES PVT LTD | E74: SELL | F74: 61,316 | G74: 35.08 | H74: NSE
A75: 2020-06-26 | B75: TFCILTD | C75: Tourism Finance Corp | D75: BEACON TRUSTEESHIP LIMITED | E75: SELL | F75: 1,483,305 | G75: 35.49 | H75: NSE
A76: 2020-06-26 | B76: TI | C76: Tilaknagar Industries Ltd | D76: KISHORKUMAR SOBHAGCHAND MORBIA | E76: SELL | F76: 875,388 | G76: 20.4 | H76: NSE
A77: 2020-06-26 | B77: UJJIVAN | C77: Ujjivan Fin. Servc. Ltd. | D77: SURJECTIVE RESEARCH CAPITAL LLP | E77: SELL | F77: 724,162 | G77: 232.33 | H77: NSE
A78: 2020-06-26 | B78: VBL | C78: Varun Beverages Limited | D78: RAVI KANT JAIPURIA AND SONS (HUF) | E78: SELL | F78: 1,500,000 | G78: 685.01 | H78: NSE
A79: 2020-06-26 | B79: WHEELS | C79: Wheels India Ltd | D79: TITAN EUROPE LIMITED | E79: SELL | F79: 176,253 | G79: 431.2 | H79: NSE

Sheet Call Tracker (Equity & F&O)
M5: Back To Main Page
A6: Retail Research Technical Calls & Fundamental Performance Report for the month of June-2020
M7: =Main!B10 -> 2020-06-29
B8: Positional Call
A9: Sr.no | B9: Date | D9: Company | E9: Rec | F9: Rec Price | G9: Stop Loss*** | H9: Call Closed At | I9: Target | J9: Remark | K9: Profit / Loss per Share | L9: Gain / Loss % | M9: Status | N9: Closed Date | O9: NSE Closed Price
A10: 1 | B10: 2020-05-27 | D10: RITES | E10: Buy | F10: 227 | G10: 214.00 | H10: 240.00 | I10: 250-255 | J10: Profit of Rs.13/- | K10: =H10-F10 -> 13 | L10: =K10/F10 -> 5.73% | M10: Successful | N10: 2020-06-02 | R10: N
A11: 2 | B11: 2020-05-29 | D11: AARTIIND | E11: Buy | F11: 980 | G11: 897 | H11: 920.00 | I11: 1100-1120 | J11: Loss of Rs.60/- | K11: =H11-F11 -> -60 | L11: -6.12% | M11: Unsuccessful | N11: 2020-06-12 | R11: H
A12: 3 | B12: 2020-05-29 | D12: TATACHEM | E12: Buy | F12: 303 | G12: 282.00 | H12: 317.00 | I12: 340 | J12: Profit of Rs.14/- | K12: =H12-F12 -> 14 | L12: =K12/F12 -> 4.62% | M12: Successful | N12: 2020-06-02 | R12: N
A13: 4 | B13: 2020-05-29 | D13: PGHH | E13: Buy | F13: 9870-9930 | G13: 9400 | I13: 10700-10800 | J13: Open | R13: H
A14: 5 | B14: 2020-06-01 | D14: SUPREMEIND | E14: Buy | F14: 1025 | G14: 950.00 | H14: 1,077.50 | I14: 1100-1150 | J14: Profit of Rs.52.5/- | K14: =H14-F14 -> 52.5 | L14: =K14/F14 -> 5.12% | M14: Successful | N14: 2020-06-03 | R14: H
A15: 6 | B15: 2020-06-01 | D15: SONATSOFTW | E15: Buy | F15: 204 | G15: 190.00 | H15: 214.50 | I15: 220-225 | J15: Profit of Rs.10.5/- | K15: =H15-F15 -> 10.5 | L15: =K15/F15 -> 5.15% | M15: Successful | N15: 2020-06-03 | R15: N
A16: 7 | B16: 2020-06-05 | D16: TATACHEM | E16: Sell | F16: 320 | G16: 342.00 | H16: 305.00 | I16: 290-280 | J16: Profit of Rs.15- | K16: =F16-H16 -> 15 | L16: 4.69% | M16: Successful | N16: 2020-06-11 | R16: N
A17: 8 | B17: 2020-06-08 | D17: GULFOILLUB | E17: Buy | F17: 674 | G17: 634 | H17: 631.50 | I17: 730-760 | J17: Loss of Rs.42.5/- | K17: =H17-F17 -> -42.5 | L17: -6.31% | M17: Unsuccessful | N17: 2020-06-11 | R17: H
A18: 9 | B18: 2020-06-08 | D18: CROMPTON | E18: Buy | F18: 229 | G18: 217.00 | H18: 239.00 | I18: 250-255 | J18: Part Profit of Rs.10/- | K18: 10 | L18: =K18/F18 -> 4.37% | M18: Successful | N18: 2020-06-10 | R18: N
A19: 10 | B19: 2020-06-09 | D19: RITES | E19: Buy | F19: 249 | G19: 235 | H19: 236.00 | I19: 270-280 | J19: Loss of Rs.13/- | K19: -13 | L19: -5.22% | M19: Unsuccessful | N19: 2020-06-12 | R19: N
A20: 11 | B20: 2020-06-09 | D20: DEEPAKNTR | E20: Buy | F20: 488 | G20: 448 | H20: 461.00 | I20: 550-570 | J20: Loss of Rs.27/- | K20: -27 | L20: =K20/F20 -> -5.53% | M20: Unsuccessful | N20: 2020-06-18 | R20: H
A21: 12 | B21: 2020-06-12 | D21: HDFCLIFE | E21: Buy | F21: 492.5 | G21: 460.00 | H21: 519.00 | I21: 540-550 | J21: Profit of Rs.26.50/- | K21: 26.5 | L21: =K21/F21 -> 5.38% | M21: Successful | N21: 2020-06-19 | R21: N
A22: 13 | B22: 2020-06-15 | D22: HINDPETRO | E22: Buy | F22: 208.5 | G22: 197 | H22: 209.50 | I22: 228 | J22: Profit of Rs.1/- | K22: 1 | L22: 0.48% | M22: Neutral | N22: 2020-06-16 | R22: N
A23: 14 | B23: 2020-06-16 | D23: M&M | E23: Sell | F23: 517 | G23: 551.00 | H23: 498.50 | I23: 470-450 | J23: Part Profit of Rs.18.50/- | K23: =F23-H23 -> 18.5 | L23: 3.58% | M23: Successful | N23: 2020-06-17 | R23: H
A24: 15 | B24: 2020-06-16 | D24: GNFC | E24: Buy | F24: 151 | G24: 141.00 | H24: 159.50 | I24: 168-172 | J24: Profit of Rs.8.5/- | K24: =H24-F24 -> 8.5 | L24: =K24/F24 -> 5.63% | M24: Successful | N24: 2020-06-18 | R24: N
A25: 16 | B25: 2020-06-18 | D25: BATAINDIA | E25: Buy | F25: 1310 | G25: 1,218.00 | H25: 1,376.00 | I25: 1450-1500 | J25: Profit of Rs.66/- | K25: =H25-F25 -> 66 | L25: 5.04% | M25: Successful | N25: 2020-06-24 | R25: H
A26: 17 | B26: 2020-06-19 | D26: EXIDEIND | E26: Buy | F26: 150 | G26: 140.00 | H26: 156.00 | I26: 165-170 | J26: Part Profit of Rs.6/- | K26: =H26-F26 -> 6 | L26: =K26/F26 -> 4.00% | M26: Successful | N26: 2020-06-23 | R26: N
A27: 18 | B27: 2020-06-22 | D27: CADILAHC | E27: Buy | F27: 358.5 | G27: 335.00 | H27: 373.00 | I27: 400-410 | J27: Part Profit of Rs.14.5/- | K27: =H27-F27 -> 14.5 | L27: =K27/F27 -> 4.04% | M27: Successful | N27: 2020-06-24 | R27: N
A28: 19 | B28: 2020-06-24 | D28: BDL | E28: Buy | F28: 263 | G28: 244.00 | H28: 300.00 | I28: 290-300 | J28: Profit of Rs.37/- | K28: 37 | L28: 14.07% | M28: Successful | N28: 2020-06-25 | R28: H
A29: 20 | B29: 2020-06-24 | D29: RITES | E29: Buy | F29: 235-237 | G29: 221 | I29: 260-265 | J29: Open | R29: N
A30: 21 | B30: 2020-06-25 | D30: DIVISLAB | E30: Buy | F30: 2335-2345 | G30: 2200 | I30: 2500-2550 | J30: Open | R30: N
A31: 22 | B31: 2020-06-25 | D31: ADANIPORTS | E31: Buy | F31: 341-344 | G31: 322 | I31: 380 | J31: Open | R31: N
A32: 23 | B32: 2020-06-26 | D32: BALKRISIND | E32: Sell | F32: 1240-1250 | G32: 1310 | I32: 1160-1140 | J32: Open | R32: H
A33: 24 | B33: 2020-06-26 | D33: CDSL | E33: Buy | F33: 276-278 | G33: 261 | I33: 310-315 | J33: Open | R33: N
A34: 25 | B34: 2020-06-26 | D34: GODREJPROP | E34: Buy | F34: 858-868 | G34: 815 | I34: 930-950 | J34: Open | R34: H
A38: CLBS = Closing Basis ***
A39: Dividend adjusted <> | F39: Reinitiated $
A40: Part book {} | F40: Revised stoploss #
B42: Momentum Call
A43: Sr.no | B43: Date | D43: Company | E43: Rec | F43: Rec Price | G43: Stop Loss | H43: Call Closed At | I43: Target | J43: Remark | K43: Profit / Loss per Share/Lot | L43: Gain / Loss % | M43: Gain / Loss per Lot | N43: Lot | O43: Status | P43: Closed Date
A44: 1 | B44: 2020-05-26 | D44: HINDUNILVR | E44: Buy* | F44: 2015 | G44: 1945 | H44: 2110 | I44: 2120-2150 | J44: Profit of Rs.95/- | K44: =H44-F44 -> 95 | L44: =K44/F44 -> 4.71% | O44: Successful | P44: 2020-06-01 | R44: H
A45: 2 | B45: 2020-05-29 | D45: TCS | E45: Buy | F45: 1975 | G45: 1910 | H45: 2017.5 | I45: 2050-2080 | J45: Profit of Rs.42.5/- | K45: =H45-F45 -> 42.5 | L45: =K45/F45 -> 2.15% | O45: Successful | P45: 2020-06-01 | R45: N
A46: 3 | B46: 2020-05-29 | D46: MINDTREE | E46: Buy | F46: 908 | G46: 878 | H46: 927.5 | I46: 940-960 | J46: Profit of Rs.19.5/- | K46: =H46-F46 -> 19.5 | L46: =K46/F46 -> 2.15% | O46: Successful | P46: 2020-06-02 | R46: N
A47: 4 | B47: 2020-06-01 | D47: SUNPHARMA | E47: Buy | F47: 472 | G47: 455 | H47: 482 | I47: 500-510 | J47: Profit of Rs.10/- | K47: =H47-F47 -> 10 | L47: =K47/F47 -> 2.12% | O47: Successful | P47: 2020-06-01 | R47: H
A48: 5 | B48: 2020-06-01 | D48: DIVISLAB | E48: Buy | F48: 2372.5 | G48: 2285 | H48: 2422.5 | I48: 2500-2550 | J48: Profit of Rs.50/- | K48: 50 | L48: 2.11% | O48: Successful | P48: 2020-06-01 | R48: H
A49: 6 | B49: 2020-06-01 | D49: ACC | E49: Sell | F49: 1304 | G49: 1345 | H49: 1284 | I49: 1240-1220 | J49: Profit of Rs.20/- | K49: =F49-H49 -> 20 | L49: =K49/F49 -> 1.53% | O49: Successful | P49: 2020-06-01 | R49: H
A50: 7 | B50: 2020-06-01 | D50: DRREDDY | E50: Buy | F50: 3997.5 | G50: 3890 | H50: 4082.5 | I50: 4150-4200 | J50: Profit of Rs.85/- | K50: =H50-F50 -> 85 | L50: 2.13% | O50: Successful | P50: 2020-06-02 | R50: H
A51: 8 | B51: 2020-06-01 | D51: MARUTI | E51: Sell | F51: 5815 | G51: 6000 | H51: 5690 | I51: 5400 | J51: Profit of Rs.125/- | K51: =F51-H51 -> 125 | L51: =K51/F51 -> 2.15% | O51: Successful | P51: 2020-06-02 | R51: N
A52: 9 | B52: 2020-06-01 | D52: SUNPHARMA | E52: Buy | F52: 462 | G52: 442 | H52: 473 | I52: 500 | J52: Profit of Rs.11/- | K52: =H52-F52 -> 11 | L52: =K52/F52 -> 2.38% | O52: Successful | P52: 2020-06-02 | R52: N
A53: 10 | B53: 2020-06-02 | D53: AXISBANK | E53: Sell | F53: 400.5 | G53: 412 | H53: 422.5 | I53: 380-375 | J53: Loss of Rs.22/- | K53: =F53-H53 -> -22 | L53: -5.49% | O53: Unsuccessful | P53: 2020-06-03 | R53: H
A54: 11 | B54: 2020-06-02 | D54: HDFCLIFE | E54: Buy | F54: 500 | G54: 480 | H54: 512 | I54: 540 | J54: Profit of Rs.12/- | K54: =H54-F54 -> 12 | L54: 2.40% | O54: Successful | P54: 2020-06-03 | R54: N
A55: 12 | B55: 2020-06-02 | D55: AMBUJACEM | E55: Sell | F55: 192 | G55: 198 | H55: 187 | I55: 180-178 | J55: Profit of Rs.5/- | K55: =F55-H55 -> 5 | L55: 2.60% | O55: Successful | P55: 2020-06-03 | R55: N
A56: 13 | B56: 2020-06-03 | D56: DIVISLAB | E56: Buy | F56: 2385 | G56: 2285 | H56: 2422.5 | I56: 2500-2550 | J56: Profit of Rs.37.5/- | K56: =H56-F56 -> 37.5 | L56: =K56/F56 -> 1.57% | O56: Successful | P56: 2020-06-03 | R56: N
A57: 14 | B57: 2020-06-03 | D57: ACC | E57: Sell | F57: 1304 | G57: 1345 | H57: 1282.5 | I57: 1240-1220 | J57: Porfit of Rs.21.50/- | K57: =F57-H57 -> 21.5 | L57: 1.65% | O57: Successful | P57: 2020-06-03 | R57: H
A58: 15 | B58: 2020-06-03 | D58: ADANIPORTS | E58: Sell | F58: 340 | G58: 352 | H58: 339 | I58: 320 | J58: Profit of Rs.1/- | K58: =F58-H58 -> 1 | L58: 0.29% | O58: Neutral | P58: 2020-06-05 | R58: H
A59: 16 | B59: 2020-06-03 | D59: MINDAIND | E59: Buy | F59: 297 | G59: 288 | H59: 288 | I59: 310-315 | J59: Loss of Rs.9/- | K59: =H59-F59 -> -9 | L59: =K59/F59 -> -3.03% | O59: Unsuccessful | P59: 2020-06-03 | R59: N
A60: 17 | B60: 2020-06-03 | D60: HINDALCO | E60: Sell | F60: 144.5 | G60: 150.5 | H60: 141 | I60: 138-135 | J60: Profit of Rs.3.5/- | K60: =F60-H60 -> 3.5 | L60: 2.42% | O60: Successful | P60: 2020-06-04 | R60: H
A61: 18 | B61: 2020-06-04 | D61: TATASTEEL | E61: Sell | F61: 321 | G61: 332 | H61: 315.5 | I61: 302 | J61: Profit of Rs.5.5/- | K61: =F61-H61 -> 5.5 | L61: =K61/F61 -> 1.71% | O61: Successful | P61: 2020-06-04 | R61: N
A62: 19 | B62: 2020-06-05 | D62: HINDALCO | E62: Sell | F62: 147.5 | G62: 152 | H62: 153 | I62: 139-137 | J62: Loss of Rs.5.50/- | K62: =F62-H62 -> -5.5 | L62: -3.73% | O62: Unsuccessful | P62: 2020-06-08 | R62: H
A63: 20 | B63: 2020-06-05 | D63: AMBUJACEM | E63: Sell | F63: 192 | G63: 198 | H63: 188 | I63: 180 | J63: Profit of Rs.4/- | K63: =F63-H63 -> 4 | L63: 2.08% | O63: Successful | P63: 2020-06-09 | R63: N
A64: 21 | B64: 2020-06-08 | D64: MINDTREE | E64: Buy | F64: 920 | G64: 880 | H64: 887.5 | I64: 980-990 | J64: Loss of Rs.32.5/- | K64: =H64-F64 -> -32.5 | L64: -3.53% | O64: Unsuccessful | P64: 2020-06-10 | R64: N
A65: 22 | B65: 2020-06-08 | D65: ACC | E65: Sell | F65: 1306 | G65: 1345 | H65: 1282.5 | I65: 1240-1220 | J65: Porfit of Rs.23.50/- | K65: =F65-H65 -> 23.5 | L65: =K65/F65 -> 1.80% | O65: Successful | P65: 2020-06-08 | R65: H
A66: 23 | B66: 2020-06-08 | D66: MARUTI | E66: Sell | F66: 5820 | G66: 6030 | H66: 5720 | I66: 5500-5400 | J66: Porfit of Rs.100/- | K66: =F66-H66 -> 100 | L66: =K66/F66 -> 1.72% | O66: Successful | P66: 2020-06-08 | R66: N
A67: 24 | B67: 2020-06-08 | D67: SUDARSCHEM | E67: Buy | F67: 404.5 | G67: 389 | H67: 388 | I67: 425-430 | J67: Loss of Rs.16.5/- | K67: =H67-F67 -> -16.5 | L67: -4.08% | O67: Unsuccessful | P67: 2020-06-12 | R67: H
A68: 25 | B68: 2020-06-08 | D68: HDFCBANK | E68: Buy | F68: 1017.5 | G68: 988 | H68: 985 | I68: 1060-1080 | J68: Loss of Rs.32.5/- | K68: =H68-F68 -> -32.5 | L68: =K68/F68 -> -3.19% | O68: Unsuccessful | P68: 2020-06-09 | R68: H
A69: 26 | B69: 2020-06-08 | D69: SBILIFE | E69: Buy | F69: 785 | G69: 755 | H69: 752.5 | I69: 820-840 | J69: Loss of Rs.32.5/- | K69: =H69-F69 -> -32.5 | L69: =K69/F69 -> -4.14% | O69: Unsuccessful | P69: 2020-06-10 | R69: N
A70: 27 | B70: 2020-06-09 | D70: RELIANCE | E70: Sell | F70: 1578 | G70: 1615 | H70: 1556.5 | I70: 1500 | J70: Porfit of Rs.21.50/- | K70: =F70-H70 -> 21.5 | L70: =K70/F70 -> 1.36% | O70: Successful | P70: 2020-06-09 | R70: H
A71: 28 | B71: 2020-06-09 | D71: TITAN | E71: Sell | F71: 1019 | G71: 1055 | H71: 997.5 | I71: 960-950 | J71: Porfit of Rs.21.50/- | K71: =F71-H71 -> 21.5 | L71: =K71/F71 -> 2.11% | O71: Successful | P71: 2020-06-09 | R71: H
A72: 29 | B72: 2020-06-09 | D72: BHARATFORG | E72: Sell | F72: 363 | G72: 377 | H72: 354.5 | I72: 340-335 | J72: Profit of Rs.8.5/- | K72: =F72-H72 -> 8.5 | L72: 2.34% | O72: Successful | P72: 2020-06-10 | R72: H
A73: 30 | B73: 2020-06-10 | D73: TITAN | E73: Sell | F73: 1006 | G73: 1045 | H73: 985 | I73: 960-950 | J73: Profit of Rs.21/- | K73: =F73-H73 -> 21 | L73: =K73/F73 -> 2.09% | O73: Successful | P73: 2020-06-10 | R73: H
A74: 31 | B74: 2020-06-10 | D74: AMBUJACEM | E74: Sell | F74: 192.75 | G74: 198 | H74: 184.5 | I74: 185-180 | J74: Profit of Rs.8.25/- | K74: =F74-H74 -> 8.25 | L74: 4.28% | O74: Successful | P74: 2020-06-12 | R74: N
A75: 32 | B75: 2020-06-10 | D75: ADANIPORTS | E75: Sell | F75: 342.5 | G75: 353 | H75: 332 | I75: 325-320 | J75: Profit of Rs.10.5/- | K75: 10.5 | L75: 3.07% | O75: Successful | P75: 2020-06-12 | R75: H
A76: 33 | B76: 2020-06-10 | D76: TATAELXSI | E76: Buy | F76: 857.5 | G76: 835 | H76: 875.5 | I76: 900 | J76: Profit of Rs.18/- | K76: =H76-F76 -> 18 | L76: =K76/F76 -> 2.10% | O76: Successful | P76: 2020-06-10 | R76: H
A77: 34 | B77: 2020-06-10 | D77: DIVISLAB | E77: Buy | F77: 2390 | G77: 2320 | H77: 2350 | I77: 2480-2500 | J77: Loss of Rs.40/- | K77: =H77-F77 -> -40 | L77: -1.67% | O77: Unsuccessful | P77: 2020-06-12 | R77: N
A78: 35 | B78: 2020-06-11 | D78: CYIENT | E78: Buy | F78: 225 | G78: 219 | H78: 219 | I78: 235-240 | J78: Loss of Rs.6/- | K78: =H78-F78 -> -6 | L78: =K78/F78 -> -2.67% | O78: Unsuccessful | P78: 2020-06-11 | R78: N
A79: 36 | B79: 2020-06-11 | D79: AEGISCHEM | E79: Buy | F79: 186.5 | G79: 180 | H79: 183 | I79: 195-200 | J79: Loss of Rs.3.5/- | K79: =H79-F79 -> -3.5 | L79: -1.88% | O79: Unsuccessful | P79: 2020-06-12 | R79: H
A80: 37 | B80: 2020-06-12 | D80: AMBUJACEM | E80: Sell | F80: 190.5 | G80: 197 | H80: 197 | I80: 180-178 | J80: Loss of Rs.6.50/- | K80: =F80-H80 -> -6.5 | L80: -3.41% | O80: Unsuccessful | P80: 2020-06-16 | R80: N
A81: 38 | B81: 2020-06-12 | D81: ADANIPORTS | E81: Sell | F81: 343 | G81: 354 | H81: 336 | I81: 325-330 | J81: Profit of Rs.7/- | K81: =F81-H81 -> 7 | L81: 2.04% | O81: Successful | P81: 2020-06-18 | R81: N
A82: 39 | B82: 2020-06-15 | D82: CONCOR | E82: Buy | F82: 389 | G82: 375 | H82: 375 | I82: 410-415 | J82: Loss of Rs.14/- | K82: =H82-F82 -> -14 | L82: =K82/F82 -> -3.60% | O82: Unsuccessful | P82: 2020-06-16 | R82: H
A83: 40 | B83: 2020-06-15 | D83: INFY | E83: Buy | F83: 696 | G83: 675 | H83: 710.5 | I83: 730-740 | J83: Profit of Rs.14.5/- | K83: 14.5 | L83: =K83/F83 -> 2.08% | O83: Successful | P83: 2020-06-16 | R83: H
A84: 41 | B84: 2020-06-15 | D84: GLENMARK | E84: Buy | F84: 400.5 | G84: 388 | H84: 409.5 | I84: 425-430 | J84: Profit of Rs.9/- | K84: 9 | L84: =K84/F84 -> 2.25% | O84: Successful | P84: 2020-06-18 | R84: N
A85: 42 | B85: 2020-06-15 | D85: UBL | E85: Buy | F85: 1003.5 | G85: 975 | H85: 1024.5 | I85: 1040-1060 | J85: Profit of Rs.21/- | K85: 21 | L85: =K85/F85 -> 2.09% | O85: Successful | P85: 2020-06-16 | R85: H
A86: 43 | B86: 2020-06-16 | D86: APOLLOHOSP | E86: Buy | F86: 1387.5 | G86: 1345 | H86: 1341.5 | I86: 1450-1470 | J86: Loss of Rs.46/- | K86: -46 | L86: -3.32% | O86: Unsuccessful | P86: 2020-06-18 | R86: H
A87: 44 | B87: 2020-06-16 | D87: DIVISLAB | E87: Buy | F87: 2307.5 | G87: 2240 | H87: 2355 | I87: 2400-2450 | J87: Profit of Rs.47.5/- | K87: 47.5 | L87: =K87/F87 -> 2.06% | O87: Successful | P87: 2020-06-22 | R87: H
A88: 45 | B88: 2020-06-17 | D88: UBL | E88: Buy | F88: 1000.5 | G88: 970 | H88: 1020 | I88: 1040-1060 | J88: Profit of Rs.19.5/- | K88: 19.5 | L88: =K88/F88 -> 1.95% | O88: Successful | P88: 2020-06-18 | R88: H
A89: 46 | B89: 2020-06-17 | D89: MARUTI | E89: Sell | F89: 5600 | G89: 5800 | H89: 5760 | I89: 5200 | J89: Loss of Rs.160/- | K89: =F89-H89 -> -160 | L89: =K89/F89 -> -2.86% | O89: Unsuccessful | P89: 2020-06-17 | R89: N
A90: 47 | B90: 2020-06-17 | D90: BHARATFORG | E90: Sell | F90: 350 | G90: 362 | H90: 359 | I90: 335-330 | J90: Loss of Rs.9/- | K90: =F90-H90 -> -9 | L90: -2.57% | O90: Unsuccessful | P90: 2020-06-17 | R90: H
A91: 48 | B91: 2020-06-17 | D91: TATAELXSI | E91: Buy | F91: 874 | G91: 845 | H91: 896 | I91: 920-930 | J91: Profit of Rs.22/- | K91: =H91-F91 -> 22 | L91: 2.52% | O91: Successful | P91: 2020-06-23 | R91: H
A92: 49 | B92: 2020-06-17 | D92: CONCOR | E92: Buy | F92: 379 | G92: 367 | H92: 386.5 | I92: 400 | J92: Profit of Rs7.5/- | K92: =H92-F92 -> 7.5 | L92: =K92/F92 -> 1.98% | O92: Successful | P92: 2020-06-17 | R92: N
A93: 50 | B93: 2020-06-17 | D93: RITES | E93: Buy | F93: 231 | G93: 224 | H93: 236 | I93: 245 | J93: Profit of Rs.5/- | K93: =H93-F93 -> 5 | L93: 2.16% | O93: Successful | P93: 2020-06-18 | R93: N
A94: 51 | B94: 2020-06-18 | D94: ADANIPORTS | E94: Sell | F94: 343.5 | G94: 355 | H94: 354.5 | I94: 325-330 | J94: Loss of Rs.11/- | K94: =F94-H94 -> -11 | L94: -3.20% | O94: Unsuccessful | P94: 2020-06-19 | R94: N
A95: 52 | B95: 2020-06-19 | D95: LT JUN FUT | E95: Buy | F95: 897.5 | G95: 869 | H95: 914 | I95: 925-935 | J95: Profit of Rs.16.5/- | K95: =M95*N95 -> 6187.5 | M95: =H95-F95 -> 16.5 | N95: 375 | O95: Successful | P95: 2020-06-22 | R95: H
A96: 53 | B96: 2020-06-22 | D96: NIFTY JUN FUT | E96: Sell | F96: 10325 | G96: 10410 | H96: 10282.5 | I96: 10200 | J96: Profit of Rs.42.5/- | K96: =M96*N96 -> 3187.5 | M96: =F96-H96 -> 42.5 | N96: 75 | O96: Successful | P96: 2020-06-22 | R96: N
A97: 54 | B97: 2020-06-23 | D97: MARUTI | E97: Sell | F97: 5960 | G97: 6130 | H97: 5870 | I97: 5600 | J97: Profit of Rs.90/- | K97: =F97-H97 -> 90 | L97: =K97/F97 -> 1.51% | O97: Successful | P97: 2020-06-23 | R97: H
A98: 55 | B98: 2020-06-23 | D98: AMBUJACEM | E98: Sell | F98: 194.25 | G98: 201 | H98: 189.25 | I98: 185-183 | J98: Profit of Rs.5/- | K98: =F98-H98 -> 5 | L98: =K98/F98 -> 2.57% | O98: Successful | P98: 2020-06-24 | R98: H
A99: 56 | B99: 2020-06-23 | D99: NIFTY JUN FUT | E99: Sell | F99: 10362.5 | G99: 10455 | H99: 10442.5 | I99: 10200 | J99: Loss of Rs.80/- | K99: =M99*N99 -> -6000 | M99: =F99-H99 -> -80 | N99: 75 | O99: Unsuccessful | P99: 2020-06-23 | R99: N
A100: 57 | B100: 2020-06-24 | D100: NIFTY JUN FUT | E100: Sell | F100: 10515 | G100: 10620 | H100: 10447.5 | I100: 10300 | J100: Profit of Rs 67.5/- | K100: =M100*N100 -> 5062.5 | M100: =F100-H100 -> 67.5 | N100: 75 | O100: Successful | P100: 2020-06-24 | R100: H
A101: 58 | B101: 2020-06-24 | D101: ACC | E101: Sell | F101: 1307 | G101: 1355 | H101: 1282.5 | I101: 1260-1240 | J101: Profit of Rs.24.5/- | K101: =F101-H101 -> 24.5 | L101: =K101/F101 -> 1.87% | O101: Successful | P101: 2020-06-24 | R101: H
A102: 59 | B102: 2020-06-24 | D102: CIPLA | E102: Buy | F102: 645-647 | G102: 629 | I102: 680-690 | J102: Open | R102: H
A103: 60 | B103: 2020-06-24 | D103: LT | E103: Buy | F103: 955-959 | G103: 925 | I103: 1025 | J103: Open | R103: N
A104: 61 | B104: 2020-06-24 | D104: TATAELXSI | E104: Buy | F104: 870 | G104: 840 | H104: 891 | I104: 920-930 | J104: Profit of Rs.21/- | K104: =H104-F104 -> 21 | L104: =K104/F104 -> 2.41% | O104: Successful | P104: 2020-06-26 | R104: H
A105: 62 | B105: 2020-06-25 | D105: EXIDEIND | E105: Buy | F105: 147.5 | G105: 143 | H105: 152 | I105: 158-160 | J105: Profit of Rs.4.5/- | K105: 4.5 | L105: 3.05% | O105: Successful | P105: 2020-06-26 | R105: H
A106: 63 | B106: 2020-06-26 | D106: HINDUNILVR | E106: Buy | F106: 2145-2150 | G106: 2090 | I106: 2220-2250 | J106: Open | R106: H
A107: 64 | B107: 2020-06-26 | D107: AUROPHARMA | E107: Buy | F107: 780-784 | G107: 758 | I107: 825 | J107: Open | R107: N
A113: CLBS = Closing Basis ***
A114: Dividend adjusted <> | F114: Reinitiated $
F115: Revised stoploss #
A117: Master Trade High Risk
A118: Sr.no | B118: Date | D118: Company | E118: Rec | F118: Rec Price | G118: Stop Loss | H118: Call Closed At | I118: Target | J118: Remark | K118: Profit / Loss per share | L118: Gain / Loss per Lot | M118: Lot | N118: Status | O118: Closed Date
A119: 1 | B119: 2020-06-04 | D119: NIFTY JUN FUT | E119: Sell | F119: 10070 | G119: 10230 | H119: 9980 | I119: 9800-9700 | J119: Profit of Rs.90/- | K119: =L119*M119 -> 6750 | L119: =F119-H119 -> 90 | M119: 75 | N119: Successful | O119: 2020-06-04 | R119: H
A120: 2 | B120: 2020-06-05 | D120: NIFTY JUN FUT | E120: Sell | F120: 10130 | G120: 10270 | H120: 10045 | I120: 9900-9800 | J120: Profit of Rs.85/- | K120: =L120*M120 -> 6375 | L120: =F120-H120 -> 85 | M120: 75 | N120: Successful | O120: 2020-06-05 | R120: H
A121: 3 | B121: 2020-06-24 | D121: NIFTY July FUT | E121: sell | F121: 10495 | G121: 10655 | H121: 10400 | I121: 10250 | J121: Profit of Rs.67.5/- | K121: 95 | L121: 5062.5 | M121: 75 | N121: Successful | O121: 2020-06-24 | R121: H
D122: Nifty 2-Jul 10300 PE | E122: Sell | F122: 97.5 | H122: 125 | K122: -27.5
A128: Master Trade Medium Risk
A129: Sr.no | B129: Date | D129: Company | E129: Rec | F129: Rec Price | G129: Stop Loss | H129: Call Closed At | I129: Target | J129: Remark | K129: Profit/ Loss per lot | L129: Gain / Loss per Lot | M129: Lot | N129: Status | O129: Closed Date
A130: 1 | B130: 2020-06-01 | D130: NIFTY 9500 PE 11 JUN | E130: Buy | F130: 80.5 | G130: 40 | H130: 93.5 | I130: 140-150 | J130: Profit of Rs.13/- | K130: =L130*M130 -> 975 | L130: =H130-F130 -> 13 | M130: 75 | N130: Successful | O130: 2020-06-01 | R130: H
A131: 2 | B131: 2020-06-01 | D131: NIFTY 9400 PE 11 JUN | E131: Buy | F131: 67 | G131: 40 | H131: 40 | I131: 120-125 | J131: Loss of Rs.27/- | K131: =L131*M131 -> -2025 | L131: =H131-F131 -> -27 | M131: 75 | N131: Unsuccessful | O131: 2020-06-02 | R131: H
A132: 3 | B132: 2020-06-02 | D132: NIFTY 9500 PE 11 JUN | E132: Buy | F132: 52 | G132: 15 | H132: 15 | I132: 100-110 | J132: Loss of Rs.37/- | K132: =L132*M132 -> -2775 | L132: =H132-F132 -> -37 | M132: 75 | N132: Unsuccessful | O132: 2020-06-07 | R132: H
A133: 4 | B133: 2020-06-03 | D133: AMBUJACEM 180 PE JUN | E133: Buy | F133: 3.2 | G133: 1.4 | H133: 4.1 | I133: 5-5.5 | J133: Profit of Rs.0.9/- | K133: =L133*M133 -> 2250 | L133: =H133-F133 -> 0.9 | M133: 2500 | N133: Successful | O133: 2020-06-03 | R133: H
A134: 5 | B134: 2020-06-04 | D134: BANKNIFTY 20000 PE 11 JUN | E134: Buy | F134: 280 | G134: 90 | H134: 325 | I134: 550-600 | J134: Profit of Rs.45/- | K134: =L134*M134 -> 900 | L134: =H134-F134 -> 45 | M134: 20 | N134: Successful | O134: 2020-06-04 | R134: H
A135: 6 | B135: 2020-06-05 | D135: AMBUJACEM 180 PE JUN | E135: Buy | F135: 3 | G135: 1.4 | H135: 3.65 | I135: 5-5.5 | J135: Profit of Rs.0.65/- | K135: 1625 | L135: 0.65 | M135: 2500 | N135: Successful | O135: 2020-06-03 | R135: H
A136: 7 | B136: 2020-06-05 | D136: BANKNIFTY 20000 PE 11 JUN | E136: Buy | F136: 265 | G136: 90 | H136: 72.5 | I136: 500-550 | J136: Loss of Rs.192.5/- | K136: =L136*M136 -> -3850 | L136: =H136-F136 -> -192.5 | M136: 20 | N136: Unsuccessful | O136: 2020-06-07 | R136: H
A137: 8 | B137: 2020-06-09 | D137: BANKNIFTY 21000 PE 11 JUN | E137: Buy | F137: 225 | H137: 295 | I137: 500-550 | J137: Profit of Rs.70/- | K137: 1400 | L137: 70 | M137: 20 | N137: Successful | O137: 2020-06-09 | R137: H
A138: 9 | B138: 2020-06-10 | D138: NIFTY 10100 PE 11 JUN | E138: Buy | F138: 63 | G138: 18 | H138: 77 | I138: 120-140 | J138: Profit of Rs.14/- | K138: =L138*M138 -> 1050 | L138: =H138-F138 -> 14 | M138: 75 | N138: Successful | O138: 2020-06-10 | R138: H
A139: 10 | B139: 2020-06-10 | D139: NIFTY 10000 PE 11 JUN | E139: Buy | F139: 39.5 | H139: 52.5 | J139: Profit of Rs.13/- | K139: =L139*M139 -> 975 | L139: =H139-F139 -> 13 | M139: 75 | N139: Successful | O139: 2020-06-10 | R139: H
A140: 11 | B140: 2020-06-10 | D140: NIFTY 10000 PE 11 JUN | E140: Buy | F140: 31 | H140: 41 | J140: Profit of Rs.10/- | K140: =L140*M140 -> 750 | L140: =H140-F140 -> 10 | M140: 75 | N140: Successful | O140: 2020-06-10 | R140: H
A141: 12 | B141: 2020-06-10 | D141: NIFTY 10000 PE 11 JUN | E141: Buy | F141: 31 | H141: 41 | J141: Profit of Rs.10/- | K141: =L141*M141 -> 750 | L141: =H141-F141 -> 10 | M141: 75 | N141: Successful | O141: 2020-06-10 | R141: H
A142: 13 | B142: 2020-06-11 | D142: BANKNIFTY 21000 PE 11 JUN | E142: Buy | F142: 120 | H142: 175 | I142: 250-300 | J142: Profit of Rs.55/- | K142: 1100 | L142: 55 | M142: 20 | N142: Successful | O142: 2020-06-11 | R142: H
A143: 14 | B143: 2020-06-11 | D143: AMBUJACEM 185 PE JUNE | E143: Buy | F143: 3.5 | G143: 1.4 | H143: 4.4 | I143: 7.0-8.0 | J143: Profit of Rs.0.90/- | K143: 2250 | L143: 0.9 | M143: 2500 | N143: Successful | O143: 2020-06-11 | R143: H
A144: 15 | B144: 2020-06-11 | D144: RELIANCE 1500 PE JUNE | E144: Buy | F144: 27 | G144: 19 | H144: 30.5 | I144: 40-45 | J144: Profit of Rs.3.50/- | K144: =L144*M144 -> 1767.5 | L144: =H144-F144 -> 3.5 | M144: 505 | N144: Successful | O144: 2020-06-11 | R144: H
A145: 16 | B145: 2020-06-12 | D145: NIFTY 9700 PE 18 JUN | E145: Buy | F145: 127.5 | G145: 60 | H145: 147.5 | I145: 230-250 | J145: Profit of Rs.20/- | K145: =L145*M145 -> 1500 | L145: =H145-F145 -> 20 | M145: 75 | N145: Successful | O145: 2020-06-12 | R145: H
A146: 17 | B146: 2020-06-12 | D146: BANKNIFTY 19500 PE 18 | E146: Buy | F146: 400 | G146: 250 | H146: 470 | I146: 600-650 | J146: Profit of Rs.70/- | K146: =L146*M146 -> 1400 | L146: =H146-F146 -> 70 | M146: 20 | N146: Successful | O146: 2020-06-12 | R146: H
A147: 18 | B147: 2020-06-12 | D147: AMBUJACEM 185 PE JUNE | E147: Buy | F147: 4.2 | G147: 2.4 | H147: 2.6 | I147: 8.0-9.0 | J147: Loss of Rs.1.6/- | K147: -4000 | L147: -1.6 | M147: 2500 | N147: Unsuccessful | O147: 2020-06-16 | R147: H
A148: 19 | B148: 2020-06-12 | D148: BANKNIFTY 19500 PE 18 JUN | E148: Buy | F148: 390 | G148: 250 | H148: 450 | I148: 600-650 | J148: Profit of Rs.60/- | K148: =L148*M148 -> 1200 | L148: =H148-F148 -> 60 | M148: 20 | N148: Successful | O148: 2020-06-12 | R148: H
A149: 20 | B149: 2020-06-12 | D149: NIFTY 9700 PE 18 JUN | E149: Buy | F149: 132.5 | G149: 60 | H149: 87.5 | I149: 230-240 | J149: Loss of Rs.45/- | K149: -3375 | L149: -45 | M149: 75 | N149: Unsuccessful | O149: 2020-06-12 | R149: H
A150: 21 | B150: 2020-06-12 | D150: BANKNIFTY 19500 PE 18 JUN | E150: Buy | F150: 390 | G150: 250 | H150: 250 | I150: 600-650 | J150: Loss of Rs.140/- | K150: -2800 | L150: -140 | M150: 20 | N150: Unsuccessful | O150: 2020-06-12 | R150: H
A151: 22 | B151: 2020-06-15 | D151: RELIANCE 1520 PE JUNE | E151: Buy | F151: 22.5 | G151: 14 | H151: 13.5 | I151: 35-40 | J151: Loss of Rs.9/- | K151: -4545 | L151: -9 | M151: 505 | N151: Unsuccessful | O151: 2020-06-16 | R151: H
A152: 23 | B152: 2020-06-16 | D152: BANKNIFTY 19000 PE 25 JUN | E152: Buy | F152: 285 | H152: 337.5 | I152: 500-600 | J152: Profit of Rs.52.5/- | K152: 1050 | L152: 52.5 | M152: 20 | N152: Successful | O152: 2020-06-17 | R152: H
A153: 24 | B153: 2020-06-17 | D153: BANKNIFTY 19500 PE 25 JUN | E153: Buy | F153: 320 | G153: 95 | H153: 365 | I153: 500-600 | J153: Profit of Rs.45/- | K153: =L153*M153 -> 900 | L153: =H153-F153 -> 45 | M153: 20 | N153: Successful | O153: 2020-06-17 | R153: H
A154: 25 | B154: 2020-06-18 | D154: BANKNIFTY 19500 PE 25 JUN | E154: Buy | F154: 300 | G154: 95 | H154: 175 | I154: 500-600 | J154: Loss of Rs.125/- | K154: -2500 | L154: -125 | M154: 20 | N154: Unsuccessful | O154: 2020-06-18 | R154: H
A155: 26 | B155: 2020-06-22 | D155: NIFTY 10100 PE 02-JUL | E155: Buy | F155: 132.5 | G155: 85 | H155: 85 | I155: 200-220 | J155: Loss of Rs.47.5/- | K155: =L155*M155 -> -3562.5 | L155: =H155-F155 -> -47.5 | M155: 75 | N155: Unsuccessful | O155: 2020-06-23 | R155: H
A156: 27 | B156: 2020-06-22 | D156: BANKNIFTY 21600 PE 25-JUN | E156: Buy | F156: 385 | G156: 195 | H156: 195 | I156: 600-700 | J156: Loss of Rs.190/- | K156: =L156*M156 -> -3800 | L156: =H156-F156 -> -190 | M156: 20 | N156: Unsuccessful | O156: 2020-06-23 | R156: H
A157: 28 | B157: 2020-06-25 | D157: NIFTY 9900 PE 02-JUL | E157: Buy | F157: 47.5 | H157: 61 | I157: 90-100 | J157: Profit of Rs.13.5/- | K157: 1012.5 | L157: 13.5 | M157: 75 | N157: Successful | O157: 2020-06-25 | R157: H
A158: 29 | B158: 2020-06-25 | D158: NIFTY 9900 PE 02-JUL | E158: Buy | F158: 42.5 | H158: 49.5 | I158: 90-100 | J158: Profit of Rs.7/- | K158: 525 | L158: 7 | M158: 75 | N158: Successful | O158: 2020-06-25 | R158: H
A159: 30 | B159: 2020-06-26 | D159: NIFTY 10000 PE 02-JUL | E159: Buy | F159: 45 | H159: 55 | I159: 100-120 | J159: Profit of Rs.7/- | K159: =L159*M159 -> 750 | L159: =H159-F159 -> 10 | M159: 75 | N159: Successful | O159: 2020-06-26 | R159: H
A163: Techno -Funda (positional)
A164: Sr.no | B164: Date | D164: Company | E164: Rec | F164: Rec Price | G164: Stop Loss*** | H164: Call Closed At | I164: Target | J164: Remark | K164: Profit / Loss per Share | L164: Gain / Loss % | M164: Status | N164: Closed Date | O164: NSE Closed Price
A166: CLBS = Closing Basis *** | F166: Reinitiated $
A167: Dividend adjusted <> | F167: Revised stoploss #
B172: Investment Idea
A173: Sr.no | B173: Date | D173: Company | E173: Rec | F173: Rec Price | G173: Point of Review | H173: Close Rate | I173: Target | J173: Remark | K173: Profit / Loss per Share | L173: Gain / Loss % | M173: Status | N173: Closed Date
A174: 1 | B174: 2013-11-01 | D174: L&T Finance Holding | E174: Accu | F174: 82.00 | G174: - | H174: 100 | I174: 100.00 | J174: Target Achieved | K174: =H174-F174 -> 18.00 | L174: =K174/F174 -> 21.95% | M174: Successful | N174: 2016-10-14
A175: 2 | B175: 2014-06-04 | D175: Finolex Inds | E175: Buy | F175: 257.00 | G175: - | H175: 300 | I175: 300.00 | J175: Target Achieved | K175: 43.00 | L175: 16.73% | M175: Successful | N175: 2014-07-02
A176: 3 | B176: 2014-07-08 | D176: JK Cement | E176: Buy | F176: 393.00 | G176: - | H176: 468 | I176: 468.00 | J176: Target Achieved | K176: 75.00 | L176: 19.08% | M176: Successful | N176: 2014-08-12
A177: 4 | B177: 2014-08-06 | D177: Finolex Cables | E177: Buy | F177: 205.00 | G177: - | H177: 275 | I177: 250.00 | J177: Target Achieved | K177: 70.00 | L177: 34.15% | M177: Successful | N177: 2014-11-19
A178: 5 | B178: 2014-09-04 | D178: Exide Inds | E178: Buy | F178: 162.00 | G178: - | H178: 190 | I178: 190.00 | J178: Target Achieved | K178: 28.00 | L178: 17.28% | M178: Successful | N178: 2015-01-02
A179: 6 | B179: 2014-09-04 | D179: Deepak Nitrite | E179: Buy | F179: 75.00 | G179: - | H179: 91.5 | I179: 95-100 | J179: Profit of Rs.16.50/- | K179: 16.50 | L179: 22.00% | M179: Successful | N179: 2014-11-11
A180: 7 | B180: 2014-10-01 | D180: Mercks | E180: Buy | F180: 850.00 | G180: - | H180: 982.5 | I180: 1050.00 | J180: Profit of Rs.132.50/- | K180: 132.50 | L180: 15.59% | M180: Successful | N180: 2015-02-04
A181: 8 | B181: 2014-10-01 | D181: Grindwell Norton | E181: Buy | F181: 475.00 | G181: - | H181: 515 | I181: 600.00 | J181: Profit of Rs.40/- | K181: 40.00 | L181: 8.42% | M181: Successful | N181: 2014-10-27
A182: 9 | B182: 2014-10-01 | D182: Snowman Logistics | E182: Buy | F182: 86.00 | G182: - | H182: 99 | I182: 140.00 | J182: Profit of Rs.13.00/- | K182: 13.00 | L182: 15.12% | M182: Successful | N182: 2014-10-27
A183: 10 | B183: 2014-10-14 | D183: Birla Corp | E183: Buy | F183: 496.60 | G183: - | H183: 621 | I183: 580.00 | J183: Target Achieved | K183: 124.40 | L183: 25.05% | M183: Successful | N183: 2016-08-23
A184: 11 | B184: 2014-10-14 | D184: Ultratech Cem | E184: Buy | F184: 2481.90 | G184: - | H184: 2840 | I184: 2870.00 | J184: Profit of Rs.358.10/- | K184: 358.10 | L184: 14.43% | M184: Successful | N184: 2015-01-13
A185: 12 | B185: 2014-10-16 | D185: Sintex Inds | E185: Buy | F185: 84.50 | G185: - | H185: 93 | I185: 110.00 | J185: Profit of Rs.8.50/- | K185: 8.50 | L185: 10.06% | M185: Successful | N185: 2014-10-27
A186: 13 | B186: 2014-10-16 | D186: HSIL | E186: Buy | F186: 401.00 | G186: - | H186: 428 | I186: 450.00 | J186: Profit of Rs.27.00/- | K186: 27.00 | L186: 6.73% | M186: Successful | N186: 2015-01-16
A187: 14 | B187: 2014-10-16 | D187: Eveready Inds | E187: Buy | F187: 101.00 | G187: - | H187: 112 | I187: 120.00 | J187: Profit of Rs.11.00/- | K187: 11.00 | L187: 10.89% | M187: Successful | N187: 2014-10-27
A188: 15 | B188: 2014-11-11 | D188: Pennar Inds | E188: Buy | F188: 59.00 | G188: - | H188: 76 | I188: 76.00 | J188: Target Achieved | K188: 17.00 | L188: 28.81% | M188: Successful | N188: 2017-10-24
A189: 16 | B189: 2014-11-11 | D189: Snowman Logistics | E189: Buy | F189: 99.00 | G189: - | H189: 120 | I189: 120.00 | J189: Profit of Rs.21/- | K189: 21.00 | L189: 21.21% | M189: Successful | N189: 2014-11-17
A190: 17 | B190: 2014-11-13 | D190: Dharamsi Morarji Chem | E190: Buy | F190: 22.00 | G190: - | H190: 33.55 | I190: 32.00 | J190: Profit of Rs 11.55/- | K190: 11.55 | L190: 52.50% | M190: Successful | N190: 2015-07-03
A191: 18 | B191: 2014-12-03 | D191: Tatachem | E191: Buy | F191: 440.00 | G191: - | H191: 520 | I191: 520.00 | J191: Profit of Rs 80.00/- | K191: 80.00 | L191: 18.18% | M191: Successful | N191: 2015-07-23
A192: 19 | B192: 2014-12-03 | D192: Advanta | E192: Buy | F192: 360.00 | G192: - | H192: 427 | I192: 425.00 | J192: Profit of Rs.67.00/- | K192: 67.00 | L192: 18.61% | M192: Successful | N192: 2015-02-23
A193: 20 | B193: 2015-01-08 | D193: GDL | E193: Buy | F193: 360.00 | G193: - | H193: 455 | I193: 420.00 | J193: Profit of Rs.95.00/- | K193: 95.00 | L193: 26.39% | M193: Successful | N193: 2015-01-20
A194: 21 | B194: 2015-01-08 | D194: NRB Bearing | E194: Buy | F194: 130.00 | H194: 175.5 | I194: 165.00 | J194: Profit of Rs 45.50/- | K194: 45.50 | L194: 35.00% | M194: Successful | N194: 2017-12-19
A195: 22 | B195: 2015-02-05 | D195: GSFC | E195: Accu | F195: 98.00 | H195: 120 | I195: 120.00 | J195: Target Achieved | K195: 22.00 | L195: 22.45% | M195: Successful | N195: 2017-01-18
A196: 23 | B196: 2015-02-05 | D196: Sundrmfast | E196: Accu | F196: 196.00 | H196: 262 | I196: 255.00 | J196: Target Achieved | K196: 66.00 | L196: 33.67% | M196: Successful | N196: 2016-08-17
A197: 24 | B197: 2015-03-04 | D197: GPPL | E197: Accu | F197: 235 | H197: 77.00 | I197: 280-285 | J197: Loss of Rs.158/- | K197: -158.00 | L197: -67.23% | M197: Unsuccessful | N197: 2019-02-26
A198: 25 | B198: 2015-03-04 | D198: ORIENTCEM | E198: Accu | F198: 185.00 | H198: 224 | I198: 220-225 | J198: Target Achieved | K198: 39.00 | L198: 21.08% | M198: Successful | N198: 2016-10-04
A199: 26 | B199: 2015-03-27 | D199: PFS | E199: Accu | F199: 49.5 | H199: 15.85 | I199: 67.00 | J199: Loss of Rs.33.65/- | K199: -33.65 | L199: -68% | M199: Unsuccessful | N199: 2019-06-11
A200: 27 | B200: 2015-03-30 | D200: Walchandnagar Ind Ltd | E200: Accu | F200: 183.50 | H200: 219 | I200: 218.00 | J200: Profit of Rs.35.50/- | K200: 35.50 | L200: 19.35% | M200: Successful | N200: 2015-04-09
A201: 28 | B201: 2015-04-20 | D201: Kalpataru Power Transmission Ltd | E201: Accu | F201: =(227+237)/2 -> 232.00 | H201: 298 | I201: 298.00 | J201: Target Achieved | K201: 66.00 | L201: 28.45% | M201: Successful | N201: 2017-03-29
A202: 29 | B202: 2015-05-04 | D202: Mastek Ltd | E202: Buy | F202: 385.00 | H202: =212.5+331 -> 543.5 | I202: 510.00 | J202: Profit of Rs 158.50/- | K202: 158.50 | L202: 41.17% | M202: Successful | N202: 2015-08-19
A203: 30 | B203: 2015-05-04 | D203: Suprajit Eng | E203: Buy | F203: 115.50 | H203: 146 | I203: 142.00 | J203: Profit of Rs 30.50/- | K203: 30.50 | L203: 26.41% | M203: Successful | N203: 2015-07-17
A204: 31 | B204: 2015-05-27 | D204: TCI | E204: Buy | F204: 237.50 | H204: 279.5 | I204: 278.00 | J204: Target Achieved | K204: 42.00 | L204: 17.68% | M204: Successful | N204: 2015-08-06
A205: 32 | B205: 2015-06-19 | D205: HSIL | E205: Accu | F205: 340.00 | H205: 448 | I205: 448.00 | J205: Target Achieved | K205: 108.00 | L205: 31.76% | M205: Successful | N205: 2017-10-10
A206: 33 | B206: 2015-07-06 | D206: Capital First | E206: Accu | F206: 390.00 | H206: 460 | I206: 460.00 | J206: Target Achieved | K206: =H206-F206 -> 70.00 | L206: =K206/F206 -> 17.95% | M206: Successful | N206: 2016-04-18
A207: 34 | B207: 2015-07-10 | D207: Dolphin OffShore | E207: Accu | F207: 122.5 | H207: 61.00 | I207: 172.00 | J207: Loss of Rs.61.50/- | K207: -61.50 | L207: -50.20% | M207: Unsuccessful | N207: 2018-08-21
A208: 35 | B208: 2015-08-03 | D208: Allcargo logistics | E208: Accu | F208: 297.50 | H208: 350 | I208: 360.00 | J208: Profit of Rs 52.50/- | K208: 52.50 | L208: 17.65% | M208: Successful | N208: 2015-08-16
A209: 36 | B209: 2015-08-03 | D209: Camline Fine | E209: Accu | F209: 115.50 | H209: 149 | I209: 140.00 | J209: Profit of Rs 33.50/- | K209: 33.50 | L209: 29.00% | M209: Successful | N209: 2017-01-05
A210: 37 | B210: 2015-09-04 | D210: TCI | E210: Accu | F210: 226.00 | H210: 292 | I210: 292.00 | J210: Target Achieved | K210: 66.00 | L210: 29.20% | M210: Successful | N210: 2015-10-09
A211: 38 | B211: 2015-09-07 | D211: Kalpataru Power Transmission Ltd | E211: Accu | F211: 232.50 | H211: 312.5 | I211: 310.00 | J211: Target Achieved | K211: 80.00 | L211: 34.41% | M211: Successful | N211: 2017-03-29
A212: 39 | B212: 2015-09-21 | D212: LLOYD ELECTRIC & ENG LTD | E212: Accu | F212: 196.50 | H212: 238 | I212: 238.00 | J212: Target Achieved | K212: 41.50 | L212: 21.12% | M212: Successful | N212: 2015-10-14
A213: 40 | B213: 2015-09-24 | D213: L&T Finance Holding | E213: Accu | F213: 65.00 | H213: 82 | I213: 82.00 | J213: Target Achieved | K213: 17.00 | L213: 26.15% | M213: Successful | N213: 2016-07-27
A214: 41 | B214: 2015-10-14 | D214: KEC International ltd | E214: Accu | F214: 144.00 | H214: 182.5 | I214: 181.00 | J214: Target Achieved | K214: 38.50 | L214: 26.74% | M214: Successful | N214: 2017-03-23
A215: 42 | B215: 2015-10-14 | D215: Gruh Finance | E215: Accu | F215: 264.00 | H215: 311 | I215: 311.00 | J215: Target Achieved | K215: 47.00 | L215: 17.80% | M215: Successful | N215: 2016-08-22
A216: 43 | B216: 2015-11-10 | D216: Pidilitind | E216: Buy | F216: 549.50 | H216: 630 | I216: 630.00 | J216: Target Achieved | K216: 80.50 | L216: 14.65% | M216: Successful | N216: 2016-02-19
A217: 44 | B217: 2015-12-04 | D217: Zensar Technology | E217: Accu | F217: 1027.50 | H217: 1315 | I217: 1250.00 | J217: Target Achieved | K217: 287.50 | L217: 27.98% | M217: Successful | N217: 2018-05-24
A218: 45 | B218: 2015-12-29 | D218: Vinati Organics Ltd | E218: Accu | F218: 465.00 | H218: 540 | I218: 540.00 | J218: Target Achieved | K218: 75.00 | L218: 16.13% | M218: Successful | N218: 2016-06-09
A219: 46 | B219: 2016-01-11 | D219: GSFC | E219: Buy | F219: 81.00 | H219: 110 | I219: 110.00 | J219: Target Achieved | K219: 29.00 | L219: 35.80% | M219: Successful | N219: 2017-01-10
A220: 47 | B220: 2016-01-13 | D220: SSWL | E220: Buy | F220: 417.50 | H220: 547 | I220: 535.00 | J220: Target Achieved | K220: 129.50 | L220: 31.02% | M220: Successful | N220: 2016-07-27
A221: 48 | B221: 2016-02-08 | D221: Persistent System Ltd | E221: Accu | F221: 650.00 | H221: 800 | I221: 800.00 | J221: Target Achieved | K221: 150.00 | L221: 23.08% | M221: Successful | N221: 2018-02-23
A222: 49 | B222: 2016-03-04 | D222: UPL | E222: Accu | F222: 437.50 | H222: 504.5 | I222: 522.00 | J222: Profit of Rs.67/- | K222: 67.00 | L222: 15.31% | M222: Successful | N222: 2016-04-20
A223: 50 | B223: 2016-03-09 | D223: Ashoka Buildcon Ltd | E223: Accu | F223: 189.50 | H223: 218 | I223: 218.00 | J223: Target Achieved | K223: 28.50 | L223: 15.04% | M223: Successful | N223: 2017-10-26
A224: 51 | B224: 2016-04-11 | D224: PTC INDIA FIN SERV LTD | E224: Accu | F224: 36.5 | H224: 15.85 | I224: 60.00 | J224: Loss of Rs.20.65/- | K224: -20.65 | L224: -56.58% | M224: Unsuccessful | N224: 2019-06-11
A225: 52 | B225: 2016-04-12 | D225: CAMLINFINE $ | E225: Accu | F225: 93.00 | H225: 149 | I225: 140.00 | J225: Profit of Rs 56/- | K225: 56.00 | L225: 60.22% | M225: Successful | N225: 2017-01-05
A226: 53 | B226: 2016-04-12 | D226: Greaves Cotton Ltd. | E226: Accu | F226: 130.00 | H226: 150 | I226: 150-155 | J226: Target Achieved | K226: 20.00 | L226: 15.38% | M226: Successful | N226: 2016-07-13
A227: 54 | B227: 2016-04-13 | D227: DHFL | E227: Accu | F227: 196.00 | H227: 299 | I227: 299.00 | J227: Target Achieved | K227: 103.00 | L227: 52.55% | M227: Successful | N227: 2016-09-07
... 100 more rows

Sheet Sheet2 (hidden)
A1: SYMBOL | B1: SERIES | C1: OPEN | D1: HIGH | E1: LOW | F1: CLOSE | G1: LAST | H1: PREVCLOSE | I1: TOTTRDQTY | J1: TOTTRDVAL | K1: TIMESTAMP | L1: TOTALTRADES | M1: ISIN | N1: ISIN
A2: 20MICRONS | B2: EQ | C2: 27.9 | D2: 29 | E2: 25.9 | F2: 26.2 | G2: 25.9 | H2: 27.5 | I2: 80527 | J2: 2193820.55 | K2: 2020-04-08 | L2: 1099 | M2: INE144J01027
A3: 21STCENMGM | B3: EQ | C3: 10.15 | D3: 10.5 | E3: 10.1 | F3: 10.4 | G3: 10.5 | H3: 10.3 | I3: 3205 | J3: 32728.25 | K3: 2020-04-08 | L3: 28 | M3: INE253B01015
A4: 3IINFOTECH | B4: EQ | C4: 1.35 | D4: 1.35 | E4: 1.2 | F4: 1.25 | G4: 1.25 | H4: 1.35 | I4: 2793301 | J4: 3578364.95 | K4: 2020-04-08 | L4: 46535 | M4: INE748C01020
A5: 3MINDIA | B5: EQ | C5: 18950 | D5: 19170 | E5: 18155.05 | F5: 18318.2 | G5: 18270 | H5: 18755.7 | I5: 9926 | J5: 183605811.2 | K5: 2020-04-08 | L5: 4453 | M5: INE470A01017
A6: 3PLAND | B6: EQ | C6: 3.7 | D6: 3.85 | E6: 3.7 | F6: 3.85 | G6: 3.85 | H6: 3.7 | I6: 406 | J6: 1557.85 | K6: 2020-04-08 | L6: 9 | M6: INE105C01023
A7: 5PAISA | B7: EQ | C7: 119.95 | D7: 134 | E7: 115 | F7: 123.35 | G7: 120.5 | H7: 116.4 | I7: 6500 | J7: 793277.05 | K7: 2020-04-08 | L7: 265 | M7: INE618L01018
A8: 63MOONS | B8: EQ | C8: 50.7 | D8: 55.45 | E8: 50.7 | F8: 53.7 | G8: 53.55 | H8: 50.7 | I8: 72221 | J8: 3890984.7 | K8: 2020-04-08 | L8: 3078 | M8: INE111B01023
A9: A2ZINFRA | B9: EQ | C9: 3.15 | D9: 3.25 | E9: 3.1 | F9: 3.15 | G9: 3.15 | H9: 3.15 | I9: 116011 | J9: 367778.85 | K9: 2020-04-08 | L9: 227 | M9: INE619I01012
A10: AARTIDRUGS | B10: EQ | C10: 627 | D10: 669.3 | E10: 605 | F10: 631.6 | G10: 625 | H10: 607.85 | I10: 75970 | J10: 48223549.15 | K10: 2020-04-08 | L10: 5720 | M10: INE767A01016
A11: AARTIIND | B11: EQ | C11: 839.95 | D11: 909.8 | E11: 818 | F11: 854.9 | G11: 864 | H11: 830.7 | I11: 477805 | J11: 419092386.9 | K11: 2020-04-08 | L11: 50045 | M11: INE769A01020
A12: AARVEEDEN | B12: EQ | C12: 8.95 | D12: 9.25 | E12: 7.85 | F12: 8.35 | G12: 8.45 | H12: 8.1 | I12: 9251 | J12: 77100.1 | K12: 2020-04-08 | L12: 94 | M12: INE273D01019
A13: AAVAS | B13: EQ | C13: 1101 | D13: 1183 | E13: 1101 | F13: 1135.2 | G13: 1137 | H13: 1142.35 | I13: 24179 | J13: 28073100.85 | K13: 2020-04-08 | L13: 3631 | M13: INE216P01012
A14: ABAN | B14: EQ | C14: 15.7 | D14: 16.2 | E14: 15.7 | F14: 16.2 | G14: 16.2 | H14: 15.45 | I14: 37609 | J14: 608439.6 | K14: 2020-04-08 | L14: 288 | M14: INE421A01028
A15: ABB | B15: EQ | C15: 935 | D15: 965 | E15: 910 | F15: 930.7 | G15: 928 | H15: 931.35 | I15: 87757 | J15: 82358527.9 | K15: 2020-04-08 | L15: 4699 | M15: INE117A01022
A16: ABBOTINDIA | B16: EQ | C16: 16799.45 | D16: 18250 | E16: 16750 | F16: 17481.1 | G16: 17488 | H16: 16699.7 | I16: 57991 | J16: 1023745502 | K16: 2020-04-08 | L16: 21022 | M16: INE358A01014
A17: ABCAPITAL | B17: EQ | C17: 45 | D17: 47.9 | E17: 44.25 | F17: 45.6 | G17: 45.7 | H17: 45.1 | I17: 1253267 | J17: 57952493.6 | K17: 2020-04-08 | L17: 7317 | M17: INE674K01013
A18: ABFRL | B18: EQ | C18: 148 | D18: 152.8 | E18: 146.75 | F18: 149 | G18: 148 | H18: 149.85 | I18: 416099 | J18: 62371769.1 | K18: 2020-04-08 | L18: 10148 | M18: INE647O01011
A19: ABSLNN50ET | B19: EQ | C19: 244 | D19: 248 | E19: 210 | F19: 235 | G19: 235 | H19: 244 | I19: 56 | J19: 12779.4 | K19: 2020-04-08 | L19: 13 | M19: INF209KB1B87
A20: ACC | B20: EQ | C20: 1000 | D20: 1029.9 | E20: 941.25 | F20: 956.05 | G20: 958 | H20: 1009.95 | I20: 2153627 | J20: 2101320389 | K20: 2020-04-08 | L20: 79728 | M20: INE012A01025
A21: ACCELYA | B21: EQ | C21: 874.3 | D21: 886 | E21: 862 | F21: 880.45 | G21: 879.95 | H21: 874.3 | I21: 10865 | J21: 9557704.55 | K21: 2020-04-08 | L21: 923 | M21: INE793A01012
A22: ACE | B22: EQ | C22: 32.75 | D22: 35.2 | E22: 32.55 | F22: 33.25 | G22: 33.35 | H22: 32.95 | I22: 244708 | J22: 8296578.4 | K22: 2020-04-08 | L22: 2925 | M22: INE731H01025
A23: ADANIENT | B23: EQ | C23: 136.85 | D23: 147.15 | E23: 134.9 | F23: 138.1 | G23: 137.5 | H23: 138.15 | I23: 3237290 | J23: 456492273.1 | K23: 2020-04-08 | L23: 23696 | M23: INE423A01024
A24: ADANIGAS | B24: EQ | C24: 93.9 | D24: 96.35 | E24: 90.5 | F24: 90.8 | G24: 90.65 | H24: 94 | I24: 1888606 | J24: 176837924.4 | K24: 2020-04-08 | L24: 14517 | M24: INE399L01023
A25: ADANIGREEN | B25: EQ | C25: 166.85 | D25: 166.85 | E25: 162 | F25: 166.45 | G25: 166.85 | H25: 158.95 | I25: 702014 | J25: 116248737 | K25: 2020-04-08 | L25: 10187 | M25: INE364U01010
A26: ADANIPORTS | B26: EQ | C26: 248 | D26: 255.85 | E26: 242.75 | F26: 250.85 | G26: 249.7 | H26: 248.1 | I26: 6897883 | J26: 1724830525 | K26: 2020-04-08 | L26: 81499 | M26: INE742F01042
A27: ADANIPOWER | B27: EQ | C27: 28.65 | D27: 31.15 | E27: 27.5 | F27: 28.95 | G27: 28.85 | H27: 28.8 | I27: 12308064 | J27: 361987996.9 | K27: 2020-04-08 | L27: 23153 | M27: INE814H01011
A28: ADANITRANS | B28: EQ | C28: 196.65 | D28: 202 | E28: 190 | F28: 193.65 | G28: 193.5 | H28: 198.3 | I28: 306320 | J28: 59783940.3 | K28: 2020-04-08 | L28: 4236 | M28: INE931S01010
A29: ADFFOODS | B29: EQ | C29: 187.85 | D29: 192.25 | E29: 184 | F29: 187.7 | G29: 187.3 | H29: 183.1 | I29: 22107 | J29: 4185556.05 | K29: 2020-04-08 | L29: 773 | M29: INE982B01019
A30: ADHUNIKIND | B30: EQ | C30: 13.3 | D30: 13.3 | E30: 13.3 | F30: 13.3 | G30: 13.3 | H30: 12.7 | I30: 5518 | J30: 73389.4 | K30: 2020-04-08 | L30: 21 | M30: INE452L01012
A31: ADLABS | B31: EQ | C31: 2.75 | D31: 2.85 | E31: 2.75 | F31: 2.85 | G31: 2.85 | H31: 2.75 | I31: 19360 | J31: 54965.35 | K31: 2020-04-08 | L31: 72 | M31: INE172N01012
A32: ADORWELD | B32: EQ | C32: 195.7 | D32: 201.9 | E32: 193.95 | F32: 195.1 | G32: 194.45 | H32: 196.75 | I32: 1438 | J32: 283768.75 | K32: 2020-04-08 | L32: 94 | M32: INE045A01017
A33: ADROITINFO | B33: EQ | C33: 5.5 | D33: 5.7 | E33: 5.45 | F33: 5.7 | G33: 5.7 | H33: 5.7 | I33: 691 | J33: 3857 | K33: 2020-04-08 | L33: 25 | M33: INE737B01033
A34: ADSL | B34: EQ | C34: 13.05 | D34: 13.2 | E34: 12.4 | F34: 12.5 | G34: 12.45 | H34: 12.7 | I34: 16203 | J34: 205559.25 | K34: 2020-04-08 | L34: 143 | M34: INE102I01027
A35: ADVANIHOTR | B35: EQ | C35: 30.1 | D35: 33 | E35: 30.1 | F35: 31.8 | G35: 31.5 | H35: 30.65 | I35: 5340 | J35: 169948.95 | K35: 2020-04-08 | L35: 193 | M35: INE199C01026
A36: ADVENZYMES | B36: EQ | C36: 140.2 | D36: 146.55 | E36: 137.95 | F36: 139.2 | G36: 139.75 | H36: 136.55 | I36: 77441 | J36: 11046136.15 | K36: 2020-04-08 | L36: 1990 | M36: INE837H01020
A37: AEGISCHEM | B37: EQ | C37: 150 | D37: 158.5 | E37: 147.1 | F37: 156.35 | G37: 156.05 | H37: 144.1 | I37: 175470 | J37: 27041093.9 | K37: 2020-04-08 | L37: 4268 | M37: INE208C01025
A38: AFFLE | B38: BE | C38: 1050 | D38: 1053.45 | E38: 1030 | F38: 1053.45 | G38: 1053.45 | H38: 1003.3 | I38: 8191 | J38: 8619737.5 | K38: 2020-04-08 | L38: 470 | M38: INE00WC01019
A39: AGARIND | B39: EQ | C39: 49.8 | D39: 52.85 | E39: 49.05 | F39: 52.25 | G39: 52.5 | H39: 49.95 | I39: 7826 | J39: 404450.25 | K39: 2020-04-08 | L39: 207 | M39: INE204E01012
A40: AGCNET | B40: BE | C40: 224.35 | D40: 235.55 | E40: 213.25 | F40: 234.7 | G40: 235.55 | H40: 224.35 | I40: 2524 | J40: 573063 | K40: 2020-04-08 | L40: 70 | M40: INE676A01019
A41: AGRITECH | B41: EQ | C41: 23.95 | D41: 23.95 | E41: 23.95 | F41: 23.95 | G41: 23.95 | H41: 22.85 | I41: 504 | J41: 12070.8 | K41: 2020-04-08 | L41: 18 | M41: INE449G01018
A42: AGROPHOS | B42: EQ | C42: 5.7 | D42: 5.7 | E42: 5.2 | F42: 5.7 | G42: 5.7 | H42: 5.45 | I42: 40596 | J42: 227201.55 | K42: 2020-04-08 | L42: 340 | M42: INE740V01019
A43: AHLEAST | B43: EQ | C43: 133.15 | D43: 141.85 | E43: 128.15 | F43: 131.55 | G43: 128.35 | H43: 131.5 | I43: 3303 | J43: 439718.1 | K43: 2020-04-08 | L43: 350 | M43: INE926K01017
A44: AHLUCONT | B44: EQ | C44: 145.95 | D44: 148 | E44: 136 | F44: 146.3 | G44: 148 | H44: 144.1 | I44: 153910 | J44: 21077811.2 | K44: 2020-04-08 | L44: 995 | M44: INE758C01029
A45: AHLWEST | B45: EQ | C45: 289.9 | D45: 289.9 | E45: 270.95 | F45: 275 | G45: 275 | H45: 277 | I45: 238 | J45: 67030 | K45: 2020-04-08 | L45: 91 | M45: INE915K01010
A46: AIAENG | B46: EQ | C46: 1259.45 | D46: 1291 | E46: 1229 | F46: 1255.85 | G46: 1268 | H46: 1249.9 | I46: 73842 | J46: 92756824.05 | K46: 2020-04-08 | L46: 10503 | M46: INE212H01026
A47: AIONJSW | B47: EQ | C47: 10.9 | D47: 11.1 | E47: 10.2 | F47: 11.1 | G47: 11.1 | H47: 10.6 | I47: 90347 | J47: 996144.95 | K47: 2020-04-08 | L47: 180 | M47: INE743C01021
A48: AIRAN | B48: EQ | C48: 9.8 | D48: 10.3 | E48: 9.75 | F48: 9.8 | G48: 9.75 | H48: 9.85 | I48: 1826 | J48: 18127.1 | K48: 2020-04-08 | L48: 25 | M48: INE645W01026
A49: AJANTPHARM | B49: EQ | C49: 1325.75 | D49: 1450 | E49: 1325 | F49: 1367.5 | G49: 1363 | H49: 1340.2 | I49: 166582 | J49: 233126032.5 | K49: 2020-04-08 | L49: 8748 | M49: INE031B01049
A50: AJMERA | B50: EQ | C50: 64.95 | D50: 70.5 | E50: 64.6 | F50: 68.4 | G50: 69.9 | H50: 64.65 | I50: 31766 | J50: 2167947.5 | K50: 2020-04-08 | L50: 909 | M50: INE298G01027
A51: AKASH | B51: BE | C51: 90 | D51: 90 | E51: 90 | F51: 90 | G51: 90 | H51: 90.95 | I51: 500 | J51: 45000 | K51: 2020-04-08 | L51: 1 | M51: INE737W01013
A52: AKSHARCHEM | B52: EQ | C52: 174.75 | D52: 177.6 | E52: 165.3 | F52: 169.7 | G52: 167.15 | H52: 165.25 | I52: 3130 | J52: 531878.25 | K52: 2020-04-08 | L52: 293 | M52: INE542B01011
A53: AKSHOPTFBR | B53: EQ | C53: 3.6 | D53: 3.6 | E53: 3.6 | F53: 3.6 | G53: 3.6 | H53: 3.45 | I53: 27750 | J53: 99900 | K53: 2020-04-08 | L53: 45 | M53: INE523B01011
A54: AKZOINDIA | B54: EQ | C54: 2084.95 | D54: 2133 | E54: 2030 | F54: 2047.9 | G54: 2040 | H54: 2086.75 | I54: 12835 | J54: 26789836.95 | K54: 2020-04-08 | L54: 2242 | M54: INE133A01011
A55: ALANKIT | B55: EQ | C55: 12.9 | D55: 12.9 | E55: 12.9 | F55: 12.9 | G55: 12.9 | H55: 12.3 | I55: 14247 | J55: 183786.3 | K55: 2020-04-08 | L55: 75 | M55: INE914E01040
A56: ALBERTDAVD | B56: EQ | C56: 338.8 | D56: 364.75 | E56: 338.8 | F56: 353.15 | G56: 352 | H56: 341.15 | I56: 24334 | J56: 8579416.55 | K56: 2020-04-08 | L56: 1220 | M56: INE155C01010
A57: ALCHEM | B57: BE | C57: 1.4 | D57: 1.4 | E57: 1.4 | F57: 1.4 | G57: 1.4 | H57: 1.35 | I57: 8608 | J57: 12051.2 | K57: 2020-04-08 | L57: 18 | M57: INE964B01033
A58: ALEMBICLTD | B58: EQ | C58: 43.7 | D58: 48.05 | E58: 39.7 | F58: 45.05 | G58: 45.5 | H58: 42.15 | I58: 695128 | J58: 31779132.75 | K58: 2020-04-08 | L58: 6991 | M58: INE426A01027
A59: ALICON | B59: EQ | C59: 195.95 | D59: 196 | E59: 181.05 | F59: 184.75 | G59: 184 | H59: 189.25 | I59: 3909 | J59: 722322.5 | K59: 2020-04-08 | L59: 123 | M59: INE062D01024
A60: ALKALI | B60: EQ | C60: 29.95 | D60: 31.75 | E60: 29.65 | F60: 31.75 | G60: 31.75 | H60: 28.9 | I60: 9346 | J60: 289594.95 | K60: 2020-04-08 | L60: 349 | M60: INE773I01017
A61: ALKEM | B61: EQ | C61: 2360 | D61: 2736.5 | E61: 2326.2 | F61: 2671.15 | G61: 2639 | H61: 2324.05 | I61: 371259 | J61: 967330461.6 | K61: 2020-04-08 | L61: 44106 | M61: INE540L01014
A62: ALKYLAMINE | B62: EQ | C62: 1236.6 | D62: 1398 | E62: 1222.2 | F62: 1334.05 | G62: 1334 | H62: 1232.45 | I62: 41501 | J62: 55061848.25 | K62: 2020-04-08 | L62: 3832 | M62: INE150B01021
A63: ALLCARGO | B63: EQ | C63: 63.05 | D63: 65.85 | E63: 63 | F63: 65.7 | G63: 65.85 | H63: 59.9 | I63: 300794 | J63: 19569467.05 | K63: 2020-04-08 | L63: 3098 | M63: INE418H01029
A64: ALLSEC | B64: EQ | C64: 131.7 | D64: 131.9 | E64: 129.35 | F64: 131.9 | G64: 131.9 | H64: 125.65 | I64: 1335 | J64: 175836.2 | K64: 2020-04-08 | L64: 37 | M64: INE835G01018
A65: ALOKINDS | B65: EQ | C65: 4.7 | D65: 4.7 | E65: 4.7 | F65: 4.7 | G65: 4.7 | H65: 4.5 | I65: 1698707 | J65: 7983922.9 | K65: 2020-04-08 | L65: 397 | M65: INE270A01029
A66: ALPA | B66: EQ | C66: 18.55 | D66: 20.15 | E66: 17.8 | F66: 20.15 | G66: 20.15 | H66: 16.8 | I66: 131233 | J66: 2593665.9 | K66: 2020-04-08 | L66: 858 | M66: INE385I01010
A67: ALPHAGEO | B67: EQ | C67: 126 | D67: 137.5 | E67: 126 | F67: 134.45 | G67: 133.3 | H67: 129.7 | I67: 22258 | J67: 2986986.5 | K67: 2020-04-08 | L67: 783 | M67: INE137C01018
A68: ALPSINDUS | B68: EQ | C68: 0.65 | D68: 0.75 | E68: 0.65 | F68: 0.75 | G68: 0.7 | H68: 0.7 | I68: 25369 | J68: 18108.8 | K68: 2020-04-08 | L68: 33 | M68: INE093B01015
A69: AMARAJABAT | B69: EQ | C69: 501.1 | D69: 513.65 | E69: 488.45 | F69: 502.05 | G69: 504.9 | H69: 501.1 | I69: 755312 | J69: 378881689.9 | K69: 2020-04-08 | L69: 18162 | M69: INE885A01032
A70: AMBER | B70: EQ | C70: 1189.9 | D70: 1199 | E70: 1072 | F70: 1108.05 | G70: 1109.25 | H70: 1189.9 | I70: 93512 | J70: 105805912.2 | K70: 2020-04-08 | L70: 14252 | M70: INE371P01015
A71: AMBIKCO | B71: EQ | C71: 539.25 | D71: 559 | E71: 531.05 | F71: 545.2 | G71: 536.4 | H71: 537.25 | I71: 3988 | J71: 2168349.4 | K71: 2020-04-08 | L71: 406 | M71: INE540G01014
A72: AMBUJACEM | B72: EQ | C72: 158.5 | D72: 159.5 | E72: 148.2 | F72: 149.7 | G72: 149.55 | H72: 159 | I72: 10421438 | J72: 1597618498 | K72: 2020-04-08 | L72: 84074 | M72: INE079A01024
A73: AMDIND | B73: EQ | C73: 9.9 | D73: 10.5 | E73: 9.5 | F73: 9.8 | G73: 9.55 | H73: 10 | I73: 17757 | J73: 177659.15 | K73: 2020-04-08 | L73: 707 | M73: INE005I01014
A74: AMJLAND | B74: EQ | C74: 14.3 | D74: 14.95 | E74: 13.7 | F74: 14 | G74: 14 | H74: 14.25 | I74: 12523 | J74: 176065.3 | K74: 2020-04-08 | L74: 106 | M74: INE606A01024
A75: AMRUTANJAN | B75: EQ | C75: 326 | D75: 352 | E75: 320.1 | F75: 345.45 | G75: 344.3 | H75: 324 | I75: 278725 | J75: 95586275.35 | K75: 2020-04-08 | L75: 9075 | M75: INE098F01031
A76: ANANTRAJ | B76: EQ | C76: 19.55 | D76: 20.15 | E76: 18.6 | F76: 18.75 | G76: 18.8 | H76: 19.55 | I76: 184694 | J76: 3509270.8 | K76: 2020-04-08 | L76: 1012 | M76: INE242C01024
A77: ANDHRACEMT | B77: EQ | C77: 1.8 | D77: 1.9 | E77: 1.7 | F77: 1.85 | G77: 1.9 | H77: 1.75 | I77: 105618 | J77: 196578.05 | K77: 2020-04-08 | L77: 227 | M77: INE666E01012
A78: ANDHRAPAP | B78: EQ | C78: 148.55 | D78: 148.55 | E78: 147 | F78: 148.55 | G78: 148.55 | H78: 141.5 | I78: 2622 | J78: 389210.05 | K78: 2020-04-08 | L78: 70 | M78: INE435A01028
A79: ANDHRSUGAR | B79: EQ | C79: 206.95 | D79: 212 | E79: 195 | F79: 206.05 | G79: 205.85 | H79: 203.55 | I79: 35494 | J79: 7286675.25 | K79: 2020-04-08 | L79: 1328 | M79: INE715B01013
A80: ANIKINDS | B80: EQ | C80: 7.25 | D80: 7.25 | E80: 6.65 | F80: 6.8 | G80: 6.8 | H80: 6.95 | I80: 4994 | J80: 34701.65 | K80: 2020-04-08 | L80: 35 | M80: INE087B01017
A81: ANKITMETAL | B81: EQ | C81: 0.4 | D81: 0.45 | E81: 0.35 | F81: 0.45 | G81: 0.45 | H81: 0.4 | I81: 64810 | J81: 27213.05 | K81: 2020-04-08 | L81: 29 | M81: INE106I01010
A82: ANSALAPI | B82: EQ | C82: 3.65 | D82: 3.8 | E82: 3.65 | F82: 3.8 | G82: 3.8 | H82: 3.65 | I82: 3974 | J82: 15023.75 | K82: 2020-04-08 | L82: 28 | M82: INE436A01026
A83: ANSALHSG | B83: EQ | C83: 3 | D83: 3 | E83: 2.8 | F83: 2.9 | G83: 2.9 | H83: 2.9 | I83: 31510 | J83: 91846.6 | K83: 2020-04-08 | L83: 64 | M83: INE880B01015
A84: ANUP | B84: EQ | C84: 304.75 | D84: 323.7 | E84: 303.1 | F84: 313.2 | G84: 313.05 | H84: 312.75 | I84: 11786 | J84: 3732090.6 | K84: 2020-04-08 | L84: 460 | M84: INE294Z01018
A85: APARINDS | B85: EQ | C85: 296.95 | D85: 300.35 | E85: 290.6 | F85: 295.85 | G85: 295.5 | H85: 296.05 | I85: 6051 | J85: 1806443.45 | K85: 2020-04-08 | L85: 427 | M85: INE372A01015
A86: APCL | B86: EQ | C86: 102.4 | D86: 102.4 | E86: 95.2 | F86: 97.35 | G86: 97 | H86: 98.5 | I86: 3739 | J86: 362867.6 | K86: 2020-04-08 | L86: 79 | M86: INE071F01012
A87: APCOTEXIND | B87: EQ | C87: 87.55 | D87: 94.85 | E87: 86 | F87: 87.5 | G87: 86.1 | H87: 87.45 | I87: 13115 | J87: 1175575.25 | K87: 2020-04-08 | L87: 323 | M87: INE116A01032
A88: APEX | B88: EQ | C88: 190 | D88: 201.65 | E88: 185.1 | F88: 201.65 | G88: 201.65 | H88: 183.35 | I88: 141806 | J88: 27768799.35 | K88: 2020-04-08 | L88: 3293 | M88: INE346W01013
A89: APLAPOLLO | B89: EQ | C89: 1245 | D89: 1274 | E89: 1220 | F89: 1259.5 | G89: 1258 | H89: 1231.75 | I89: 21152 | J89: 26442272.1 | K89: 2020-04-08 | L89: 3032 | M89: INE702C01019
A90: APLLTD | B90: EQ | C90: 630 | D90: 702.65 | E90: 615.5 | F90: 640.85 | G90: 626 | H90: 610.2 | I90: 540272 | J90: 353935242.1 | K90: 2020-04-08 | L90: 30323 | M90: INE901L01018
A91: APOLLO | B91: EQ | C91: 45.5 | D91: 56 | E91: 45.25 | F91: 54.3 | G91: 53.55 | H91: 46.7 | I91: 68951 | J91: 3631629.4 | K91: 2020-04-08 | L91: 1694 | M91: INE713T01010
A92: APOLLOHOSP | B92: EQ | C92: 1225.9 | D92: 1338.4 | E92: 1211 | F92: 1263.95 | G92: 1261 | H92: 1225.95 | I92: 2070270 | J92: 2654141027 | K92: 2020-04-08 | L92: 156926 | M92: INE437A01024
A93: APOLLOPIPE | B93: EQ | C93: 279.5 | D93: 304 | E93: 262.95 | F93: 281.3 | G93: 281 | H93: 280.1 | I93: 12940 | J93: 3607793.25 | K93: 2020-04-08 | L93: 543 | M93: INE126J01016
A94: APOLLOTYRE | B94: EQ | C94: 83.5 | D94: 87.15 | E94: 82 | F94: 83.4 | G94: 83.15 | H94: 83.5 | I94: 2950752 | J94: 248872037.1 | K94: 2020-04-08 | L94: 19408 | M94: INE438A01022
A95: APOLSINHOT | B95: EQ | C95: 460.35 | D95: 460.4 | E95: 421.1 | F95: 439.8 | G95: 436 | H95: 438.6 | I95: 694 | J95: 306874.65 | K95: 2020-04-08 | L95: 84 | M95: INE451F01024
A96: APTECHT | B96: EQ | C96: 85.3 | D96: 87.7 | E96: 83.55 | F96: 84.6 | G96: 84.3 | H96: 85.3 | I96: 106721 | J96: 9133416.7 | K96: 2020-04-08 | L96: 2385 | M96: INE266F01018
A97: ARCHIDPLY | B97: EQ | C97: 16.55 | D97: 17 | E97: 16.45 | F97: 16.85 | G97: 16.95 | H97: 16.75 | I97: 4083 | J97: 68300.2 | K97: 2020-04-08 | L97: 63 | M97: INE877I01016
A98: ARCHIES | B98: EQ | C98: 9.4 | D98: 9.5 | E98: 9 | F98: 9.05 | G98: 9.15 | H98: 9.45 | I98: 24343 | J98: 224667.6 | K98: 2020-04-08 | L98: 150 | M98: INE731A01020
A99: ARCOTECH | B99: EQ | C99: 0.9 | D99: 0.95 | E99: 0.85 | F99: 0.9 | G99: 0.9 | H99: 0.9 | I99: 51482 | J99: 47500.05 | K99: 2020-04-08 | L99: 77 | M99: INE574I01035
A100: ARENTERP | B100: EQ | C100: 12.65 | D100: 12.65 | E100: 12.05 | F100: 12.05 | G100: 12.05 | H100: 12.65 | I100: 63 | J100: 765.15 | K100: 2020-04-08 | L100: 4 | M100: INE610C01014
A101: ARIES | B101: EQ | C101: 44.4 | D101: 47.6 | E101: 42.65 | F101: 43.6 | G101: 44 | H101: 44.4 | I101: 50875 | J101: 2250478.25 | K101: 2020-04-08 | L101: 1080 | M101: INE298I01015
A102: ARIHANT | B102: EQ | C102: 12.05 | D102: 12.55 | E102: 11.6 | F102: 12.15 | G102: 12.5 | H102: 12.05 | I102: 964 | J102: 11418.15 | K102: 2020-04-08 | L102: 27 | M102: INE413D01011
A103: ARIHANTSUP | B103: EQ | C103: 21.4 | D103: 21.45 | E103: 19.45 | F103: 19.5 | G103: 21 | H103: 20.45 | I103: 4362 | J103: 85414.05 | K103: 2020-04-08 | L103: 80 | M103: INE643K01018
A104: ARMANFIN | B104: EQ | C104: 340 | D104: 373.2 | E104: 337.7 | F104: 373.05 | G104: 373.2 | H104: 355.45 | I104: 50867 | J104: 18465582.65 | K104: 2020-04-08 | L104: 911 | M104: INE109C01017
A105: AROGRANITE | B105: EQ | C105: 21.95 | D105: 24.5 | E105: 20.85 | F105: 24.2 | G105: 24.5 | H105: 22.35 | I105: 26052 | J105: 602565.3 | K105: 2020-04-08 | L105: 183 | M105: INE210C01013
A106: ARROWGREEN | B106: BE | C106: 33.55 | D106: 35 | E106: 33.45 | F106: 33.45 | G106: 33.45 | H106: 33.85 | I106: 5735 | J106: 195198.5 | K106: 2020-04-08 | L106: 32 | M106: INE570D01018
A107: ARSHIYA | B107: EQ | C107: 7.1 | D107: 7.6 | E107: 7.1 | F107: 7.6 | G107: 7.6 | H107: 7.25 | I107: 23178 | J107: 175819.45 | K107: 2020-04-08 | L107: 63 | M107: INE968D01022
A108: ARSSINFRA | B108: EQ | C108: 11.25 | D108: 12.3 | E108: 10.9 | F108: 11.8 | G108: 11.85 | H108: 11.15 | I108: 16388 | J108: 189874.85 | K108: 2020-04-08 | L108: 107 | M108: INE267I01010
A109: ARTEMISMED | B109: EQ | C109: 140 | D109: 147 | E109: 136.3 | F109: 138 | G109: 137 | H109: 139.15 | I109: 1729 | J109: 245138.4 | K109: 2020-04-08 | L109: 31 | M109: INE025R01013
A110: ARVIND | B110: EQ | C110: 23.5 | D110: 24.4 | E110: 22.45 | F110: 23.75 | G110: 23.75 | H110: 22.2 | I110: 2137547 | J110: 50521243.45 | K110: 2020-04-08 | L110: 7057 | M110: INE034A01011
A111: ARVINDFASN | B111: EQ | C111: 139.8 | D111: 141.9 | E111: 132.2 | F111: 133.8 | G111: 134.75 | H111: 139.85 | I111: 46445 | J111: 6387304.5 | K111: 2020-04-08 | L111: 1243 | M111: INE955V01021
A112: ARVSMART | B112: EQ | C112: 64.05 | D112: 67 | E112: 64 | F112: 65.4 | G112: 65.5 | H112: 65 | I112: 10000 | J112: 656036.65 | K112: 2020-04-08 | L112: 320 | M112: INE034S01021
A113: ASAHIINDIA | B113: EQ | C113: 152 | D113: 158 | E113: 147.05 | F113: 155.5 | G113: 152.35 | H113: 153.2 | I113: 5605 | J113: 858978.65 | K113: 2020-04-08 | L113: 218 | M113: INE439A01020
A114: ASAHISONG | B114: EQ | C114: 80.8 | D114: 88.95 | E114: 80.05 | F114: 85.25 | G114: 86 | H114: 80.9 | I114: 8055 | J114: 692533.2 | K114: 2020-04-08 | L114: 314 | M114: INE228I01012
A115: ASAL | B115: EQ | C115: 14.8 | D115: 14.9 | E115: 14.5 | F115: 14.5 | G115: 14.5 | H115: 14.25 | I115: 8037 | J115: 118819.3 | K115: 2020-04-08 | L115: 36 | M115: INE900C01027
A116: ASALCBR | B116: EQ | C116: 164.9 | D116: 175 | E116: 158 | F116: 165.7 | G116: 165 | H116: 162.9 | I116: 31033 | J116: 5116102.05 | K116: 2020-04-08 | L116: 970 | M116: INE073G01016
A117: ASHAPURMIN | B117: EQ | C117: 22.1 | D117: 22.1 | E117: 22.05 | F117: 22.1 | G117: 22.1 | H117: 21.05 | I117: 8770 | J117: 193792 | K117: 2020-04-08 | L117: 43 | M117: INE348A01023
A118: ASHIANA | B118: EQ | C118: 52.9 | D118: 52.9 | E118: 49.1 | F118: 49.95 | G118: 50 | H118: 50 | I118: 69042 | J118: 3480534.3 | K118: 2020-04-08 | L118: 621 | M118: INE365D01021
A119: ASHIMASYN | B119: EQ | C119: 3.9 | D119: 3.9 | E119: 3.9 | F119: 3.9 | G119: 3.9 | H119: 3.55 | I119: 28914 | J119: 112764.6 | K119: 2020-04-08 | L119: 46 | M119: INE440A01010
A120: ASHOKA | B120: EQ | C120: 38.35 | D120: 42.7 | E120: 37.8 | F120: 42.7 | G120: 42.7 | H120: 38.85 | I120: 1577514 | J120: 65134101.3 | K120: 2020-04-08 | L120: 8475 | M120: INE442H01029
A121: ASHOKLEY | B121: EQ | C121: 39.85 | D121: 47.8 | E121: 38.75 | F121: 43.85 | G121: 43.6 | H121: 39.85 | I121: 76817768 | J121: 3355417806 | K121: 2020-04-08 | L121: 169889 | M121: INE208A01029
A122: ASIANHOTNR | B122: EQ | C122: 70 | D122: 71.8 | E122: 66 | F122: 71.55 | G122: 71.5 | H122: 65.4 | I122: 4982 | J122: 349215.55 | K122: 2020-04-08 | L122: 198 | M122: INE363A01022
A123: ASIANPAINT | B123: EQ | C123: 1623.8 | D123: 1687.8 | E123: 1600 | F123: 1608.95 | G123: 1608 | H123: 1623.8 | I123: 2382216 | J123: 3911658954 | K123: 2020-04-08 | L123: 101146 | M123: INE021A01026
A124: ASIANTILES | B124: EQ | C124: 156 | D124: 162.9 | E124: 155 | F124: 157.6 | G124: 156.5 | H124: 157.65 | I124: 19917 | J124: 3151924.4 | K124: 2020-04-08 | L124: 431 | M124: INE022I01019
A125: ASPINWALL | B125: EQ | C125: 93 | D125: 98.7 | E125: 83.55 | F125: 93 | G125: 93 | H125: 90 | I125: 413 | J125: 38837.15 | K125: 2020-04-08 | L125: 20 | M125: INE991I01015
A126: ASTEC | B126: EQ | C126: 450.65 | D126: 465.05 | E126: 440 | F126: 460.05 | G126: 460.3 | H126: 443.9 | I126: 5283 | J126: 2392645.5 | K126: 2020-04-08 | L126: 494 | M126: INE563J01010
A127: ASTERDM | B127: EQ | C127: 96 | D127: 103.5 | E127: 93.8 | F127: 99.25 | G127: 99 | H127: 94.55 | I127: 996205 | J127: 98978623.7 | K127: 2020-04-08 | L127: 4570 | M127: INE914M01019
A128: ASTRAL | B128: EQ | C128: 962 | D128: 986 | E128: 952 | F128: 955.45 | G128: 954 | H128: 973.85 | I128: 59212 | J128: 57381672.65 | K128: 2020-04-08 | L128: 7623 | M128: INE006I01046
A129: ASTRAMICRO | B129: EQ | C129: 56.9 | D129: 62.55 | E129: 55.85 | F129: 61.7 | G129: 62.55 | H129: 56.9 | I129: 253097 | J129: 15146656.55 | K129: 2020-04-08 | L129: 1961 | M129: INE386C01029
A130: ASTRAZEN | B130: EQ | C130: 2700 | D130: 2830 | E130: 2544 | F130: 2561.6 | G130: 2549 | H130: 2693.65 | I130: 38510 | J130: 104113109 | K130: 2020-04-08 | L130: 6647 | M130: INE203A01020
A131: ASTRON | B131: EQ | C131: 26.15 | D131: 29.9 | E131: 25.3 | F131: 27.5 | G131: 27.8 | H131: 27.65 | I131: 61618 | J131: 1693449.45 | K131: 2020-04-08 | L131: 1743 | M131: INE646X01014
A132: ATFL | B132: EQ | C132: 479.65 | D132: 499 | E132: 475 | F132: 481.55 | G132: 475 | H132: 479.65 | I132: 6104 | J132: 2975754.9 | K132: 2020-04-08 | L132: 411 | M132: INE209A01019
A133: ATLANTA | B133: EQ | C133: 3 | D133: 3.15 | E133: 3 | F133: 3.15 | G133: 3.15 | H133: 3 | I133: 8624 | J133: 26936.35 | K133: 2020-04-08 | L133: 28 | M133: INE285H01022
A134: ATLASCYCLE | B134: BE | C134: 30 | D134: 31.5 | E134: 29.5 | F134: 30.7 | G134: 30.7 | H134: 30 | I134: 2000 | J134: 60118.65 | K134: 2020-04-08 | L134: 42 | M134: INE446A01025
A135: ATNINTER | B135: BE | C135: 0.1 | D135: 0.1 | E135: 0.1 | F135: 0.1 | G135: 0.1 | H135: 0.1 | I135: 12716 | J135: 1271.6 | K135: 2020-04-08 | L135: 5 | M135: INE803A01027
A136: ATUL | B136: EQ | C136: 3930 | D136: 4005 | E136: 3908.35 | F136: 3951.85 | G136: 3954.95 | H136: 3927.1 | I136: 76768 | J136: 304824820.4 | K136: 2020-04-08 | L136: 11635 | M136: INE100A01010
A137: ATULAUTO | B137: EQ | C137: 151.35 | D137: 154.05 | E137: 146.8 | F137: 153.45 | G137: 153.95 | H137: 146.75 | I137: 13699 | J137: 2093863.3 | K137: 2020-04-08 | L137: 810 | M137: INE951D01028
A138: AUBANK | B138: EQ | C138: 461.2 | D138: 490 | E138: 457 | F138: 480.3 | G138: 473 | H138: 478.4 | I138: 1791057 | J138: 837589012.6 | K138: 2020-04-08 | L138: 59410 | M138: INE949L01017
A139: AURIONPRO | B139: EQ | C139: 41.75 | D139: 43.7 | E139: 40 | F139: 42.9 | G139: 42.9 | H139: 40.95 | I139: 8828 | J139: 376649.05 | K139: 2020-04-08 | L139: 213 | M139: INE132H01018
A140: AUROPHARMA | B140: EQ | C140: 432.5 | D140: 476.3 | E140: 426.3 | F140: 438.15 | G140: 438.9 | H140: 445.7 | I140: 13186213 | J140: 5925576015 | K140: 2020-04-08 | L140: 205238 | M140: INE406A01037
A141: AUSOMENT | B141: EQ | C141: 26.1 | D141: 26.1 | E141: 26.1 | F141: 26.1 | G141: 26.1 | H141: 25 | I141: 100 | J141: 2610 | K141: 2020-04-08 | L141: 1 | M141: INE218C01016
A142: AUTOAXLES | B142: EQ | C142: 413 | D142: 423.5 | E142: 398.05 | F142: 413.45 | G142: 416 | H142: 399.3 | I142: 5448 | J142: 2244823.45 | K142: 2020-04-08 | L142: 638 | M142: INE449A01011
A143: AUTOIND | B143: EQ | C143: 11.3 | D143: 11.35 | E143: 11.1 | F143: 11.35 | G143: 11.35 | H143: 10.85 | I143: 9358 | J143: 105383.05 | K143: 2020-04-08 | L143: 68 | M143: INE718H01014
A144: AUTOLITIND | B144: EQ | C144: 13.2 | D144: 14.4 | E144: 13.2 | F144: 13.8 | G144: 13.9 | H144: 13.75 | I144: 4699 | J144: 65525.8 | K144: 2020-04-08 | L144: 68 | M144: INE448A01013
A145: AVADHSUGAR | B145: EQ | C145: 143.55 | D145: 143.55 | E145: 143.55 | F145: 143.55 | G145: 143.55 | H145: 136.75 | I145: 13174 | J145: 1891127.7 | K145: 2020-04-08 | L145: 157 | M145: INE349W01017
A146: AVANTIFEED | B146: EQ | C146: 311 | D146: 341.55 | E146: 310.5 | F146: 341.35 | G146: 341.55 | H146: 310.5 | I146: 748404 | J146: 246839085.1 | K146: 2020-04-08 | L146: 23272 | M146: INE871C01038
A147: AVTNPL | B147: EQ | C147: 25.45 | D147: 27.8 | E147: 24.25 | F147: 27.25 | G147: 27 | H147: 25.05 | I147: 213540 | J147: 5643644.4 | K147: 2020-04-08 | L147: 1601 | M147: INE488D01021
A148: AXISBANK | B148: EQ | C148: 383.75 | D148: 427.7 | E148: 373.5 | F148: 391.35 | G148: 391.4 | H148: 388.85 | I148: 64930772 | J148: 2.575974593e+10 | K148: 2020-04-08 | L148: 769506 | M148: INE238A01034
A149: AXISCADES | B149: EQ | C149: 30.9 | D149: 31.5 | E149: 28.65 | F149: 31.4 | G149: 31.5 | H149: 30 | I149: 39670 | J149: 1232336.75 | K149: 2020-04-08 | L149: 621 | M149: INE555B01013
A150: AXISGOLD | B150: EQ | C150: 3969.9 | D150: 3989 | E150: 3925 | F150: 3973.3 | G150: 3983 | H150: 3919.55 | I150: 701 | J150: 2769851.6 | K150: 2020-04-08 | L150: 206 | M150: INF846K01347
A151: AXISNIFTY | B151: EQ | C151: 1000.01 | D151: 1000.01 | E151: 1000.01 | F151: 1000.01 | G151: 1000.01 | H151: 1007 | I151: 2 | J151: 2000.02 | K151: 2020-04-08 | L151: 1 | M151: INF846K01ZL0
A152: AYMSYNTEX | B152: EQ | C152: 15.5 | D152: 16.8 | E152: 15.5 | F152: 16.5 | G152: 16.5 | H152: 16.1 | I152: 2637 | J152: 43548.55 | K152: 2020-04-08 | L152: 26 | M152: INE193B01039
A153: BAFNAPH | B153: EQ | C153: 16.05 | D153: 16.05 | E153: 16.05 | F153: 16.05 | G153: 16.05 | H153: 15.3 | I153: 272 | J153: 4365.6 | K153: 2020-04-08 | L153: 8 | M153: INE878I01022
A154: BAGFILMS | B154: BE | C154: 1.75 | D154: 1.8 | E154: 1.75 | F154: 1.8 | G154: 1.8 | H154: 1.75 | I154: 3861 | J154: 6912.3 | K154: 2020-04-08 | L154: 20 | M154: INE116D01028
A155: BAJAJ-AUTO | B155: EQ | C155: 2180 | D155: 2383.45 | E155: 2168.55 | F155: 2241.7 | G155: 2260 | H155: 2280.05 | I155: 840875 | J155: 1933266167 | K155: 2020-04-08 | L155: 59866 | M155: INE917I01010
A156: BAJAJCON | B156: EQ | C156: 136 | D156: 148.65 | E156: 135.1 | F156: 137.95 | G156: 138 | H156: 138.15 | I156: 1031633 | J156: 145711259.1 | K156: 2020-04-08 | L156: 26102 | M156: INE933K01021
A157: BAJAJELEC | B157: EQ | C157: 277.3 | D157: 294.5 | E157: 277.3 | F157: 287.8 | G157: 289 | H157: 277.3 | I157: 58251 | J157: 16797537.55 | K157: 2020-04-08 | L157: 3821 | M157: INE193E01025
A158: BAJAJFINSV | B158: EQ | C158: 4575 | D158: 4950 | E158: 4537.8 | F158: 4608.5 | G158: 4604 | H158: 4724.9 | I158: 1113057 | J158: 5259493342 | K158: 2020-04-08 | L158: 158158 | M158: INE918I01018
A159: BAJAJHIND | B159: EQ | C159: 3.05 | D159: 3.05 | E159: 3.05 | F159: 3.05 | G159: 3.05 | H159: 2.95 | I159: 80900 | J159: 246745 | K159: 2020-04-08 | L159: 110 | M159: INE306A01021
A160: BAJAJHLDNG | B160: EQ | C160: 2027.95 | D160: 2073.85 | E160: 1925 | F160: 2024.75 | G160: 2025 | H160: 1978.9 | I160: 25453 | J160: 51363834.45 | K160: 2020-04-08 | L160: 6198 | M160: INE118A01012
A161: BAJFINANCE | B161: EQ | C161: 2184 | D161: 2374 | E161: 2144.15 | F161: 2332.9 | G161: 2329 | H161: 2253.35 | I161: 9109346 | J161: 2.088826331e+10 | K161: 2020-04-08 | L161: 516967 | M161: INE296A01024
A162: BALAJITELE | B162: EQ | C162: 43 | D162: 45 | E162: 40.8 | F162: 41.9 | G162: 42.15 | H162: 43.75 | I162: 194912 | J162: 8414452.4 | K162: 2020-04-08 | L162: 1677 | M162: INE794B01026
A163: BALAMINES | B163: EQ | C163: 277 | D163: 296 | E163: 260.4 | F163: 283.65 | G163: 284.45 | H163: 271.2 | I163: 70594 | J163: 20058887.5 | K163: 2020-04-08 | L163: 2337 | M163: INE050E01027
A164: BALAXI | B164: BE | C164: 82.7 | D164: 82.7 | E164: 75.05 | F164: 79.9 | G164: 79.9 | H164: 79 | I164: 1047 | J164: 78761.9 | K164: 2020-04-08 | L164: 24 | M164: INE618N01014
A165: BALKRISHNA | B165: EQ | C165: 8.6 | D165: 8.8 | E165: 8.35 | F165: 8.8 | G165: 8.8 | H165: 8.4 | I165: 7860 | J165: 67624.35 | K165: 2020-04-08 | L165: 49 | M165: INE875R01011
A166: BALKRISIND | B166: EQ | C166: 822 | D166: 862 | E166: 815 | F166: 821.35 | G166: 818.3 | H166: 823.55 | I166: 444079 | J166: 371870250.3 | K166: 2020-04-08 | L166: 24462 | M166: INE787D01026
A167: BALLARPUR | B167: EQ | C167: 0.4 | D167: 0.4 | E167: 0.3 | F167: 0.35 | G167: 0.35 | H167: 0.35 | I167: 9769871 | J167: 3419941.15 | K167: 2020-04-08 | L167: 514 | M167: INE294A01037
A168: BALMLAWRIE | B168: EQ | C168: 84 | D168: 87.9 | E168: 81 | F168: 84.75 | G168: 85.65 | H168: 85.5 | I168: 202053 | J168: 17357055.25 | K168: 2020-04-08 | L168: 3105 | M168: INE164A01016
A169: BALPHARMA | B169: EQ | C169: 38.9 | D169: 41.7 | E169: 38.9 | F169: 41.7 | G169: 41.7 | H169: 37.95 | I169: 40933 | J169: 1688199.5 | K169: 2020-04-08 | L169: 518 | M169: INE083D01012
A170: BALRAMCHIN | B170: EQ | C170: 123.85 | D170: 126.4 | E170: 123 | F170: 126.4 | G170: 126.4 | H170: 120.4 | I170: 642515 | J170: 80884980.2 | K170: 2020-04-08 | L170: 7125 | M170: INE119A01028
A171: BANARBEADS | B171: EQ | C171: 30.25 | D171: 32.5 | E171: 29.6 | F171: 29.75 | G171: 29.75 | H171: 31.5 | I171: 160 | J171: 4873.85 | K171: 2020-04-08 | L171: 26 | M171: INE655B01011
A172: BANARISUG | B172: EQ | C172: 900 | D172: 925 | E172: 880 | F172: 886.1 | G172: 880 | H172: 893.1 | I172: 410 | J172: 368979.1 | K172: 2020-04-08 | L172: 94 | M172: INE459A01010
A173: BANCOINDIA | B173: EQ | C173: 65.45 | D173: 67.5 | E173: 64.1 | F173: 65.95 | G173: 66 | H173: 65.45 | I173: 40062 | J173: 2654130.6 | K173: 2020-04-08 | L173: 1013 | M173: INE213C01025
A174: BANDHANBNK | B174: EQ | C174: 167.95 | D174: 209.05 | E174: 167.5 | F174: 193.75 | G174: 195.25 | H174: 167.25 | I174: 30692919 | J174: 5833285762 | K174: 2020-04-08 | L174: 332020 | M174: INE545U01014
A175: BANG | B175: EQ | C175: 12.05 | D175: 13.1 | E175: 11.9 | F175: 13.1 | G175: 13.1 | H175: 12.5 | I175: 1590 | J175: 20489 | K175: 2020-04-08 | L175: 31 | M175: INE863I01016
A176: BANKBARODA | B176: EQ | C176: 48 | D176: 51.5 | E176: 47.3 | F176: 48.35 | G176: 48.45 | H176: 48.15 | I176: 27159204 | J176: 1340103716 | K176: 2020-04-08 | L176: 77070 | M176: INE028A01039
A177: BANKBEES | B177: EQ | C177: 190 | D177: 205.4 | E177: 186.06 | F177: 191.28 | G177: 191.4 | H177: 192.12 | I177: 676832 | J177: 131368353.2 | K177: 2020-04-08 | L177: 10023 | M177: INF204KB15I9
A178: BANKINDIA | B178: EQ | C178: 32.7 | D178: 34.75 | E178: 32.5 | F178: 33.35 | G178: 33.25 | H178: 32.95 | I178: 1236627 | J178: 41574499.75 | K178: 2020-04-08 | L178: 6257 | M178: INE084A01016
A179: BANSWRAS | B179: EQ | C179: 77.4 | D179: 77.4 | E179: 70.2 | F179: 71.15 | G179: 70.2 | H179: 73.75 | I179: 22922 | J179: 1667255.55 | K179: 2020-04-08 | L179: 137 | M179: INE629D01012
A180: BASF | B180: EQ | C180: 1154 | D180: 1154 | E180: 1105 | F180: 1119.95 | G180: 1120.5 | H180: 1138.25 | I180: 26139 | J180: 29425244.35 | K180: 2020-04-08 | L180: 2640 | M180: INE373A01013
A181: BASML | B181: EQ | C181: 74.05 | D181: 84 | E181: 74.05 | F181: 80 | G181: 80 | H181: 78.7 | I181: 1648 | J181: 135366.45 | K181: 2020-04-08 | L181: 154 | M181: INE186H01014
A182: BATAINDIA | B182: EQ | C182: 1246.5 | D182: 1339 | E182: 1228 | F182: 1240.05 | G182: 1238.95 | H182: 1246.4 | I182: 1346088 | J182: 1726485633 | K182: 2020-04-08 | L182: 66274 | M182: INE176A01028
A183: BAYERCROP | B183: EQ | C183: 3500 | D183: 3946.6 | E183: 3499.3 | F183: 3818.15 | G183: 3772.15 | H183: 3510 | I183: 32833 | J183: 125437264 | K183: 2020-04-08 | L183: 6737 | M183: INE462A01022
A184: BBL | B184: EQ | C184: 590 | D184: 621.25 | E184: 590 | F184: 613.05 | G184: 621.25 | H184: 589.55 | I184: 9335 | J184: 5684085.45 | K184: 2020-04-08 | L184: 804 | M184: INE464A01028
A185: BBTC | B185: EQ | C185: 810 | D185: 854.3 | E185: 774 | F185: 784.2 | G185: 787.95 | H185: 788.4 | I185: 76612 | J185: 62014517.65 | K185: 2020-04-08 | L185: 5281 | M185: INE050A01025
A186: BCG | B186: EQ | C186: 3.6 | D186: 3.65 | E186: 3.55 | F186: 3.65 | G186: 3.65 | H186: 3.5 | I186: 305718 | J186: 1113234.95 | K186: 2020-04-08 | L186: 149 | M186: INE425B01027
A187: BCP | B187: EQ | C187: 10.75 | D187: 10.75 | E187: 10.5 | F187: 10.75 | G187: 10.75 | H187: 10.25 | I187: 8192 | J187: 87934.6 | K187: 2020-04-08 | L187: 28 | M187: INE905P01028
A188: BDL | B188: EQ | C188: 191 | D188: 229 | E188: 188.2 | F188: 218.2 | G188: 216.4 | H188: 191.4 | I188: 448405 | J188: 97968192.25 | K188: 2020-04-08 | L188: 13672 | M188: INE171Z01018
A189: BEARDSELL | B189: EQ | C189: 6.7 | D189: 7.3 | E189: 6.7 | F189: 7.3 | G189: 7.3 | H189: 7.05 | I189: 1250 | J189: 8417 | K189: 2020-04-08 | L189: 4 | M189: INE520H01022
A190: BEDMUTHA | B190: EQ | C190: 12.8 | D190: 13.05 | E190: 12.45 | F190: 12.45 | G190: 12.45 | H190: 13.1 | I190: 19584 | J190: 245429.15 | K190: 2020-04-08 | L190: 32 | M190: INE844K01012
A191: BEL | B191: EQ | C191: 69 | D191: 71.3 | E191: 65.1 | F191: 66.4 | G191: 66.5 | H191: 69 | I191: 16699885 | J191: 1138705070 | K191: 2020-04-08 | L191: 69587 | M191: INE263A01024
A192: BEML | B192: EQ | C192: 492 | D192: 523.5 | E192: 492 | F192: 503.6 | G192: 503 | H192: 475.95 | I192: 890527 | J192: 458689246.6 | K192: 2020-04-08 | L192: 23670 | M192: INE258A01016
A193: BEPL | B193: EQ | C193: 31 | D193: 32.75 | E193: 30.3 | F193: 31.25 | G193: 31.6 | H193: 30.25 | I193: 333595 | J193: 10578641.1 | K193: 2020-04-08 | L193: 3321 | M193: INE922A01025
A194: BERGEPAINT | B194: EQ | C194: 479.9 | D194: 487.65 | E194: 460 | F194: 463.5 | G194: 462 | H194: 479.2 | I194: 1729062 | J194: 817908730.6 | K194: 2020-04-08 | L194: 32950 | M194: INE463A01038
A195: BFINVEST | B195: EQ | C195: 258 | D195: 268.8 | E195: 244.6 | F195: 246.3 | G195: 248.95 | H195: 257.45 | I195: 4938 | J195: 1236639.95 | K195: 2020-04-08 | L195: 244 | M195: INE878K01010
A196: BFUTILITIE | B196: EQ | C196: 158.35 | D196: 158.35 | E196: 151.05 | F196: 154.05 | G196: 153.7 | H196: 150.85 | I196: 138134 | J196: 21700813.75 | K196: 2020-04-08 | L196: 1649 | M196: INE243D01012
A197: BGRENERGY | B197: EQ | C197: 22.1 | D197: 22.85 | E197: 20.95 | F197: 21.1 | G197: 21.15 | H197: 22.2 | I197: 172282 | J197: 3763089.75 | K197: 2020-04-08 | L197: 1108 | M197: INE661I01014
A198: BHAGERIA | B198: EQ | C198: 85 | D198: 91.05 | E198: 80.65 | F198: 81.6 | G198: 82.3 | H198: 84.2 | I198: 34795 | J198: 2944870.7 | K198: 2020-04-08 | L198: 925 | M198: INE354C01027
A199: BHAGYANGR | B199: EQ | C199: 14.05 | D199: 15.2 | E199: 14 | F199: 14.4 | G199: 14.4 | H199: 14.4 | I199: 1338 | J199: 19622.25 | K199: 2020-04-08 | L199: 50 | M199: INE458B01036
A200: BHAGYAPROP | B200: EQ | C200: 18 | D200: 20 | E200: 18 | F200: 20 | G200: 20 | H200: 19 | I200: 999 | J200: 19011 | K200: 2020-04-08 | L200: 5 | M200: INE363W01018
... 1470 more rows

Sheet Sheet1 (hidden)

Sheet Sheet3 (hidden)

Sheet Sheet4 (hidden)

Sheet Sheet5 (hidden)
